Organisation Code,Organisation Label,Effective Date,Organisational Unit,Service Division Label,Category Internal Name,Purpose,Detailed Expenditure Code,Payment Date,Transaction Number,Irrecoverable VAT Amount,Amount,Capital Or Revenue,Benificiary Name,Procurement Card
Http://opendatacommunities.org/id/metropolitan-district-council/leeds,Leeds City Council,31/12/2018,Communities and Environment,Benefits  Wlefare And Poverty  ,Supplies and Services,Telephones,213,15/11/2018,1812-00001,0.00,80.00,R,(Aq) Limited,Yes
Http://opendatacommunities.org/id/metropolitan-district-council/leeds,Leeds City Council,31/12/2018,Resources and Housing,Leeds Building Services,Supplies and Services,Operational Materials,205,05/12/2018,1812-00002,0.00,194.91,R,A & A Electrical Distributors Ltd,No
Http://opendatacommunities.org/id/metropolitan-district-council/leeds,Leeds City Council,31/12/2018,Resources and Housing,Leeds Building Services,Supplies and Services,Operational Materials,205,19/12/2018,1812-00003,0.00,195.75,R,A & A Electrical Distributors Ltd,No
Http://opendatacommunities.org/id/metropolitan-district-council/leeds,Leeds City Council,31/12/2018,Children and Families,Social Care,Supplies and Services,Bought In Professional Services,277,27/12/2018,1812-00004,0.00,135.00,R,A Ajmal,No
Http://opendatacommunities.org/id/metropolitan-district-council/leeds,Leeds City Council,31/12/2018,Resources and Housing,Leeds Building Services,Supplies and Services,Operational Materials,205,07/12/2018,1812-00005,0.00,61.39,R,A Andrews & Sons (Marbles & Tiles),No
Http://opendatacommunities.org/id/metropolitan-district-council/leeds,Leeds City Council,31/12/2018,Resources and Housing,Leeds Building Services,Supplies and Services,Operational Materials,205,07/12/2018,1812-00006,0.00,3.42,R,A Andrews & Sons (Marbles & Tiles),No
Http://opendatacommunities.org/id/metropolitan-district-council/leeds,Leeds City Council,31/12/2018,Resources and Housing,Leeds Building Services,Supplies and Services,Operational Materials,205,07/12/2018,1812-00007,0.00,28.11,R,A Andrews & Sons (Marbles & Tiles),No
Http://opendatacommunities.org/id/metropolitan-district-council/leeds,Leeds City Council,31/12/2018,Children and Families,Social Care,Third Party Payments,Services Rendered By Other Organisations,511,21/12/2018,1812-00008,0.00,119.00,R,REDACTED PERSONAL DATA,No
Http://opendatacommunities.org/id/metropolitan-district-council/leeds,Leeds City Council,31/12/2018,Resources and Housing,HRA Housing Leeds,Capital,Construction,3,07/12/2018,1812-00009,0.00,264448.50,C,A Connolly Limited,No
Http://opendatacommunities.org/id/metropolitan-district-council/leeds,Leeds City Council,31/12/2018,Children and Families,Learning,Supplies and Services,Bought In Professional Services,277,07/12/2018,1812-00010,0.00,300.00,R,A Craven-Griffiths,No
Http://opendatacommunities.org/id/metropolitan-district-council/leeds,Leeds City Council,31/12/2018,Children and Families,Social Care,Third Party Payments,Services Rendered By Voluntary Sector,505,19/12/2018,1812-00011,0.00,1836.00,R,REDACTED PERSONAL DATA,No
Http://opendatacommunities.org/id/metropolitan-district-council/leeds,Leeds City Council,31/12/2018,Children and Families,Social Care,Third Party Payments,Services Rendered By Other Organisations,511,21/12/2018,1812-00012,0.00,1606.50,R,REDACTED PERSONAL DATA,No
Http://opendatacommunities.org/id/metropolitan-district-council/leeds,Leeds City Council,31/12/2018,Children and Families,Social Care,Third Party Payments,Services Rendered By Other Organisations,511,21/12/2018,1812-00013,0.00,445.20,R,REDACTED PERSONAL DATA,No
Http://opendatacommunities.org/id/metropolitan-district-council/leeds,Leeds City Council,31/12/2018,City Development,Highways,Supplies and Services,Other Hired And Contracted Services,265,17/12/2018,1812-00014,0.00,136800.40,R,A E Yates Ltd,No
Http://opendatacommunities.org/id/metropolitan-district-council/leeds,Leeds City Council,31/12/2018,City Development,Highways,Capital,Construction,3,18/12/2018,1812-00015,0.00,228636.95,C,A E Yates Ltd,No
Http://opendatacommunities.org/id/metropolitan-district-council/leeds,Leeds City Council,31/12/2018,Children and Families,Social Care,Third Party Payments,Services Rendered By Other Organisations,511,21/12/2018,1812-00016,0.00,1011.50,R,REDACTED PERSONAL DATA,No
Http://opendatacommunities.org/id/metropolitan-district-council/leeds,Leeds City Council,31/12/2018,Children and Families,Social Care,Third Party Payments,Services Rendered By Other Organisations,511,21/12/2018,1812-00017,0.00,520.62,R,REDACTED PERSONAL DATA,No
Http://opendatacommunities.org/id/metropolitan-district-council/leeds,Leeds City Council,31/12/2018,Children and Families,Social Care,Third Party Payments,Services Rendered By Other Organisations,511,21/12/2018,1812-00018,0.00,223.12,R,REDACTED PERSONAL DATA,No
Http://opendatacommunities.org/id/metropolitan-district-council/leeds,Leeds City Council,31/12/2018,Children and Families,Social Care,Third Party Payments,Services Rendered By Other Organisations,511,21/12/2018,1812-00019,0.00,282.62,R,REDACTED PERSONAL DATA,No
Http://opendatacommunities.org/id/metropolitan-district-council/leeds,Leeds City Council,31/12/2018,Communities and Environment,Communities,Supplies and Services,Other Hired And Contracted Services,265,24/12/2018,1812-00020,0.00,229.50,R,REDACTED PERSONAL DATA,No
Http://opendatacommunities.org/id/metropolitan-district-council/leeds,Leeds City Council,31/12/2018,City Development,Libraries  Arts & Heritage,Supplies and Services,Other Hired And Contracted Services,265,27/12/2018,1812-00021,0.00,70.00,R,REDACTED COMMERCIAL CONFIDENTIALITY,No
Http://opendatacommunities.org/id/metropolitan-district-council/leeds,Leeds City Council,31/12/2018,Resources and Housing,Leeds Building Services,Supplies and Services,Operational Materials,205,07/12/2018,1812-00022,0.00,432.00,R,A J H  Pump Supply & Repair Ltd,No
Http://opendatacommunities.org/id/metropolitan-district-council/leeds,Leeds City Council,31/12/2018,Resources and Housing,Leeds Building Services,Supplies and Services,Operational Materials,205,07/12/2018,1812-00023,0.00,675.00,R,A J H  Pump Supply & Repair Ltd,No
Http://opendatacommunities.org/id/metropolitan-district-council/leeds,Leeds City Council,31/12/2018,Resources and Housing,Leeds Building Services,Supplies and Services,Operational Materials,205,07/12/2018,1812-00024,0.00,225.00,R,A J H  Pump Supply & Repair Ltd,No
Http://opendatacommunities.org/id/metropolitan-district-council/leeds,Leeds City Council,31/12/2018,Resources and Housing,Leeds Building Services,Supplies and Services,Operational Materials,205,07/12/2018,1812-00025,0.00,201.83,R,A J H  Pump Supply & Repair Ltd,No
Http://opendatacommunities.org/id/metropolitan-district-council/leeds,Leeds City Council,31/12/2018,Resources and Housing,Leeds Building Services,Supplies and Services,Operational Materials,205,07/12/2018,1812-00026,0.00,61.12,R,A J H  Pump Supply & Repair Ltd,No
Http://opendatacommunities.org/id/metropolitan-district-council/leeds,Leeds City Council,31/12/2018,Resources and Housing,Leeds Building Services,Supplies and Services,Operational Materials,205,07/12/2018,1812-00027,0.00,77.42,R,A J H  Pump Supply & Repair Ltd,No
Http://opendatacommunities.org/id/metropolitan-district-council/leeds,Leeds City Council,31/12/2018,Resources and Housing,Leeds Building Services,Supplies and Services,Operational Materials,205,07/12/2018,1812-00028,0.00,79.71,R,A J H  Pump Supply & Repair Ltd,No
Http://opendatacommunities.org/id/metropolitan-district-council/leeds,Leeds City Council,31/12/2018,Resources and Housing,Leeds Building Services,Supplies and Services,Operational Materials,205,07/12/2018,1812-00029,0.00,262.90,R,A J H  Pump Supply & Repair Ltd,No
Http://opendatacommunities.org/id/metropolitan-district-council/leeds,Leeds City Council,31/12/2018,Resources and Housing,Leeds Building Services,Supplies and Services,Operational Materials,205,07/12/2018,1812-00030,0.00,489.07,R,A J H  Pump Supply & Repair Ltd,No
Http://opendatacommunities.org/id/metropolitan-district-council/leeds,Leeds City Council,31/12/2018,Resources and Housing,Leeds Building Services,Supplies and Services,Operational Materials,205,07/12/2018,1812-00031,0.00,47.20,R,A J H  Pump Supply & Repair Ltd,No
Http://opendatacommunities.org/id/metropolitan-district-council/leeds,Leeds City Council,31/12/2018,Resources and Housing,Leeds Building Services,Supplies and Services,Operational Materials,205,07/12/2018,1812-00032,0.00,78.13,R,A J H  Pump Supply & Repair Ltd,No
Http://opendatacommunities.org/id/metropolitan-district-council/leeds,Leeds City Council,31/12/2018,Resources and Housing,Leeds Building Services,Supplies and Services,Operational Materials,205,11/12/2018,1812-00033,0.00,372.11,R,A J H  Pump Supply & Repair Ltd,No
Http://opendatacommunities.org/id/metropolitan-district-council/leeds,Leeds City Council,31/12/2018,Resources and Housing,Leeds Building Services,Supplies and Services,Operational Materials,205,14/12/2018,1812-00034,0.00,215.00,R,A J H  Pump Supply & Repair Ltd,No
Http://opendatacommunities.org/id/metropolitan-district-council/leeds,Leeds City Council,31/12/2018,Resources and Housing,Leeds Building Services,Supplies and Services,Operational Materials,205,20/12/2018,1812-00035,0.00,330.50,R,A J H  Pump Supply & Repair Ltd,No
Http://opendatacommunities.org/id/metropolitan-district-council/leeds,Leeds City Council,31/12/2018,Resources and Housing,Leeds Building Services,Supplies and Services,Operational Materials,205,20/12/2018,1812-00036,0.00,110.00,R,A J H  Pump Supply & Repair Ltd,No
Http://opendatacommunities.org/id/metropolitan-district-council/leeds,Leeds City Council,31/12/2018,Resources and Housing,Leeds Building Services,Supplies and Services,Operational Materials,205,20/12/2018,1812-00037,0.00,136.99,R,A J H  Pump Supply & Repair Ltd,No
Http://opendatacommunities.org/id/metropolitan-district-council/leeds,Leeds City Council,31/12/2018,Resources and Housing,Leeds Building Services,Supplies and Services,Operational Materials,205,20/12/2018,1812-00038,0.00,229.71,R,A J H  Pump Supply & Repair Ltd,No
Http://opendatacommunities.org/id/metropolitan-district-council/leeds,Leeds City Council,31/12/2018,Resources and Housing,Leeds Building Services,Supplies and Services,Operational Materials,205,20/12/2018,1812-00039,0.00,25.35,R,A J H  Pump Supply & Repair Ltd,No
Http://opendatacommunities.org/id/metropolitan-district-council/leeds,Leeds City Council,31/12/2018,Resources and Housing,Leeds Building Services,Supplies and Services,Operational Materials,205,20/12/2018,1812-00040,0.00,22.85,R,A J H  Pump Supply & Repair Ltd,No
Http://opendatacommunities.org/id/metropolitan-district-council/leeds,Leeds City Council,31/12/2018,Resources and Housing,Leeds Building Services,Supplies and Services,Operational Materials,205,20/12/2018,1812-00041,0.00,233.00,R,A J H  Pump Supply & Repair Ltd,No
Http://opendatacommunities.org/id/metropolitan-district-council/leeds,Leeds City Council,31/12/2018,Resources and Housing,Leeds Building Services,Supplies and Services,Operational Materials,205,20/12/2018,1812-00042,0.00,34.44,R,A J H  Pump Supply & Repair Ltd,No
Http://opendatacommunities.org/id/metropolitan-district-council/leeds,Leeds City Council,31/12/2018,Resources and Housing,Leeds Building Services,Supplies and Services,Operational Materials,205,20/12/2018,1812-00043,0.00,17.50,R,A J H  Pump Supply & Repair Ltd,No
Http://opendatacommunities.org/id/metropolitan-district-council/leeds,Leeds City Council,31/12/2018,Resources and Housing,Leeds Building Services,Supplies and Services,Operational Materials,205,20/12/2018,1812-00044,0.00,252.46,R,A J H  Pump Supply & Repair Ltd,No
Http://opendatacommunities.org/id/metropolitan-district-council/leeds,Leeds City Council,31/12/2018,Resources and Housing,Leeds Building Services,Supplies and Services,Operational Materials,205,20/12/2018,1812-00045,0.00,205.00,R,A J H  Pump Supply & Repair Ltd,No
Http://opendatacommunities.org/id/metropolitan-district-council/leeds,Leeds City Council,31/12/2018,Resources and Housing,Leeds Building Services,Supplies and Services,Operational Materials,205,20/12/2018,1812-00046,0.00,44.05,R,A J H  Pump Supply & Repair Ltd,No
Http://opendatacommunities.org/id/metropolitan-district-council/leeds,Leeds City Council,31/12/2018,Resources and Housing,Leeds Building Services,Supplies and Services,Operational Materials,205,20/12/2018,1812-00047,0.00,234.74,R,A J H  Pump Supply & Repair Ltd,No
Http://opendatacommunities.org/id/metropolitan-district-council/leeds,Leeds City Council,31/12/2018,Resources and Housing,Leeds Building Services,Supplies and Services,Operational Furniture And Equipment,203,20/12/2018,1812-00048,0.00,335.00,R,A J H  Pump Supply & Repair Ltd,No
Http://opendatacommunities.org/id/metropolitan-district-council/leeds,Leeds City Council,31/12/2018,Resources and Housing,Leeds Building Services,Supplies and Services,Operational Materials,205,20/12/2018,1812-00049,0.00,138.75,R,A J H  Pump Supply & Repair Ltd,No
Http://opendatacommunities.org/id/metropolitan-district-council/leeds,Leeds City Council,31/12/2018,Resources and Housing,Leeds Building Services,Supplies and Services,Operational Materials,205,20/12/2018,1812-00050,0.00,48.85,R,A J H  Pump Supply & Repair Ltd,No
Http://opendatacommunities.org/id/metropolitan-district-council/leeds,Leeds City Council,31/12/2018,Resources and Housing,Leeds Building Services,Supplies and Services,Operational Materials,205,20/12/2018,1812-00051,0.00,277.00,R,A J H  Pump Supply & Repair Ltd,No
Http://opendatacommunities.org/id/metropolitan-district-council/leeds,Leeds City Council,31/12/2018,Resources and Housing,Leeds Building Services,Supplies and Services,Operational Materials,205,20/12/2018,1812-00052,0.00,55.40,R,A J H  Pump Supply & Repair Ltd,No
Http://opendatacommunities.org/id/metropolitan-district-council/leeds,Leeds City Council,31/12/2018,Resources and Housing,Leeds Building Services,Supplies and Services,Operational Materials,205,20/12/2018,1812-00053,0.00,8.95,R,A J H  Pump Supply & Repair Ltd,No
Http://opendatacommunities.org/id/metropolitan-district-council/leeds,Leeds City Council,31/12/2018,Resources and Housing,Leeds Building Services,Supplies and Services,Operational Materials,205,20/12/2018,1812-00054,0.00,251.00,R,A J H  Pump Supply & Repair Ltd,No
Http://opendatacommunities.org/id/metropolitan-district-council/leeds,Leeds City Council,31/12/2018,Resources and Housing,Leeds Building Services,Supplies and Services,Operational Materials,205,20/12/2018,1812-00055,0.00,21.00,R,A J H  Pump Supply & Repair Ltd,No
Http://opendatacommunities.org/id/metropolitan-district-council/leeds,Leeds City Council,31/12/2018,Resources and Housing,Leeds Building Services,Supplies and Services,Operational Materials,205,20/12/2018,1812-00056,0.00,89.00,R,A J H  Pump Supply & Repair Ltd,No
Http://opendatacommunities.org/id/metropolitan-district-council/leeds,Leeds City Council,31/12/2018,Resources and Housing,Leeds Building Services,Supplies and Services,Operational Materials,205,20/12/2018,1812-00057,0.00,18.00,R,A J H  Pump Supply & Repair Ltd,No
Http://opendatacommunities.org/id/metropolitan-district-council/leeds,Leeds City Council,31/12/2018,Resources and Housing,Leeds Building Services,Supplies and Services,Operational Materials,205,20/12/2018,1812-00058,0.00,125.50,R,A J H  Pump Supply & Repair Ltd,No
Http://opendatacommunities.org/id/metropolitan-district-council/leeds,Leeds City Council,31/12/2018,Resources and Housing,Leeds Building Services,Supplies and Services,Operational Materials,205,20/12/2018,1812-00059,0.00,49.40,R,A J H  Pump Supply & Repair Ltd,No
Http://opendatacommunities.org/id/metropolitan-district-council/leeds,Leeds City Council,31/12/2018,Resources and Housing,Leeds Building Services,Supplies and Services,Operational Materials,205,20/12/2018,1812-00060,0.00,94.04,R,A J H  Pump Supply & Repair Ltd,No
Http://opendatacommunities.org/id/metropolitan-district-council/leeds,Leeds City Council,31/12/2018,Resources and Housing,Leeds Building Services,Supplies and Services,Operational Materials,205,20/12/2018,1812-00061,0.00,80.20,R,A J H  Pump Supply & Repair Ltd,No
Http://opendatacommunities.org/id/metropolitan-district-council/leeds,Leeds City Council,31/12/2018,Resources and Housing,Leeds Building Services,Supplies and Services,Operational Materials,205,20/12/2018,1812-00062,0.00,74.90,R,A J H  Pump Supply & Repair Ltd,No
Http://opendatacommunities.org/id/metropolitan-district-council/leeds,Leeds City Council,31/12/2018,Resources and Housing,Leeds Building Services,Supplies and Services,Operational Materials,205,20/12/2018,1812-00063,0.00,1009.18,R,A J H  Pump Supply & Repair Ltd,No
Http://opendatacommunities.org/id/metropolitan-district-council/leeds,Leeds City Council,31/12/2018,Resources and Housing,Leeds Building Services,Supplies and Services,Operational Materials,205,20/12/2018,1812-00064,0.00,90.00,R,A J H  Pump Supply & Repair Ltd,No
Http://opendatacommunities.org/id/metropolitan-district-council/leeds,Leeds City Council,31/12/2018,Resources and Housing,Leeds Building Services,Supplies and Services,Operational Materials,205,20/12/2018,1812-00065,0.00,321.67,R,A J H  Pump Supply & Repair Ltd,No
Http://opendatacommunities.org/id/metropolitan-district-council/leeds,Leeds City Council,31/12/2018,Resources and Housing,Leeds Building Services,Supplies and Services,Operational Materials,205,20/12/2018,1812-00066,0.00,224.00,R,A J H  Pump Supply & Repair Ltd,No
Http://opendatacommunities.org/id/metropolitan-district-council/leeds,Leeds City Council,31/12/2018,Resources and Housing,Leeds Building Services,Supplies and Services,Operational Materials,205,20/12/2018,1812-00067,0.00,265.02,R,A J H  Pump Supply & Repair Ltd,No
Http://opendatacommunities.org/id/metropolitan-district-council/leeds,Leeds City Council,31/12/2018,Resources and Housing,Leeds Building Services,Supplies and Services,Operational Materials,205,20/12/2018,1812-00068,0.00,125.46,R,A J H  Pump Supply & Repair Ltd,No
Http://opendatacommunities.org/id/metropolitan-district-council/leeds,Leeds City Council,31/12/2018,Resources and Housing,Leeds Building Services,Supplies and Services,Operational Materials,205,21/12/2018,1812-00069,0.00,63.22,R,A J H  Pump Supply & Repair Ltd,No
Http://opendatacommunities.org/id/metropolitan-district-council/leeds,Leeds City Council,31/12/2018,Resources and Housing,Leeds Building Services,Supplies and Services,Operational Materials,205,21/12/2018,1812-00070,0.00,185.90,R,A J H  Pump Supply & Repair Ltd,No
Http://opendatacommunities.org/id/metropolitan-district-council/leeds,Leeds City Council,31/12/2018,Resources and Housing,Leeds Building Services,Supplies and Services,Operational Materials,205,21/12/2018,1812-00071,0.00,227.42,R,A J H  Pump Supply & Repair Ltd,No
Http://opendatacommunities.org/id/metropolitan-district-council/leeds,Leeds City Council,31/12/2018,Resources and Housing,Leeds Building Services,Supplies and Services,Operational Materials,205,21/12/2018,1812-00072,0.00,62.00,R,A J H  Pump Supply & Repair Ltd,No
Http://opendatacommunities.org/id/metropolitan-district-council/leeds,Leeds City Council,31/12/2018,City Development,Libraries  Arts & Heritage,Supplies and Services,Art Galleries Total Stores,3,14/12/2018,1812-00073,0.00,567.36,R,A J Promotions,No
Http://opendatacommunities.org/id/metropolitan-district-council/leeds,Leeds City Council,31/12/2018,City Development,Libraries  Arts & Heritage,Supplies and Services,Art Galleries Total Stores,3,19/12/2018,1812-00074,0.00,165.06,R,A J Promotions,No
Http://opendatacommunities.org/id/metropolitan-district-council/leeds,Leeds City Council,31/12/2018,City Development,Libraries  Arts & Heritage,Supplies and Services,Art Galleries Total Stores,3,27/12/2018,1812-00075,0.00,464.00,R,A J Promotions,No
Http://opendatacommunities.org/id/metropolitan-district-council/leeds,Leeds City Council,31/12/2018,Children and Families,Social Care,Third Party Payments,Services Rendered By Other Organisations,511,19/12/2018,1812-00076,0.00,535.50,R,REDACTED PERSONAL DATA,No
Http://opendatacommunities.org/id/metropolitan-district-council/leeds,Leeds City Council,31/12/2018,Children and Families,Social Care,Third Party Payments,Services Rendered By Other Organisations,511,21/12/2018,1812-00077,0.00,297.50,R,REDACTED PERSONAL DATA,No
Http://opendatacommunities.org/id/metropolitan-district-council/leeds,Leeds City Council,31/12/2018,Children and Families,Social Care,Third Party Payments,Services Rendered By Voluntary Sector,505,12/12/2018,1812-00078,0.00,-131.25,R,A Little Something Extra Ltd,No
Http://opendatacommunities.org/id/metropolitan-district-council/leeds,Leeds City Council,31/12/2018,Children and Families,Social Care,Third Party Payments,Services Rendered By Voluntary Sector,505,12/12/2018,1812-00079,0.00,-43.75,R,A Little Something Extra Ltd,No
Http://opendatacommunities.org/id/metropolitan-district-council/leeds,Leeds City Council,31/12/2018,Children and Families,Social Care,Third Party Payments,Services Rendered By Voluntary Sector,505,12/12/2018,1812-00080,0.00,87.50,R,A Little Something Extra Ltd,No
Http://opendatacommunities.org/id/metropolitan-district-council/leeds,Leeds City Council,31/12/2018,Children and Families,Social Care,Third Party Payments,Services Rendered By Voluntary Sector,505,12/12/2018,1812-00081,0.00,630.00,R,A Little Something Extra Ltd,No
Http://opendatacommunities.org/id/metropolitan-district-council/leeds,Leeds City Council,31/12/2018,Children and Families,Social Care,Third Party Payments,Services Rendered By Voluntary Sector,505,12/12/2018,1812-00082,0.00,17.50,R,A Little Something Extra Ltd,No
Http://opendatacommunities.org/id/metropolitan-district-council/leeds,Leeds City Council,31/12/2018,Children and Families,Social Care,Third Party Payments,Services Rendered By Voluntary Sector,505,12/12/2018,1812-00083,0.00,840.00,R,A Little Something Extra Ltd,No
Http://opendatacommunities.org/id/metropolitan-district-council/leeds,Leeds City Council,31/12/2018,Children and Families,Social Care,Third Party Payments,Services Rendered By Voluntary Sector,505,12/12/2018,1812-00084,0.00,70.00,R,A Little Something Extra Ltd,No
Http://opendatacommunities.org/id/metropolitan-district-council/leeds,Leeds City Council,31/12/2018,Children and Families,Social Care,Third Party Payments,Services Rendered By Voluntary Sector,505,12/12/2018,1812-00085,0.00,840.00,R,A Little Something Extra Ltd,No
Http://opendatacommunities.org/id/metropolitan-district-council/leeds,Leeds City Council,31/12/2018,Children and Families,Social Care,Third Party Payments,Services Rendered By Voluntary Sector,505,12/12/2018,1812-00086,0.00,840.00,R,A Little Something Extra Ltd,No
Http://opendatacommunities.org/id/metropolitan-district-council/leeds,Leeds City Council,31/12/2018,Children and Families,Social Care,Third Party Payments,Services Rendered By Voluntary Sector,505,13/12/2018,1812-00087,0.00,490.00,R,A Little Something Extra Ltd,No
Http://opendatacommunities.org/id/metropolitan-district-council/leeds,Leeds City Council,31/12/2018,Communities and Environment,Customer Access,Supplies and Services,Other Hired And Contracted Services,265,11/12/2018,1812-00088,0.00,510.00,R,A Mohammed,No
Http://opendatacommunities.org/id/metropolitan-district-council/leeds,Leeds City Council,31/12/2018,Communities and Environment,Customer Access,Supplies and Services,Other Hired And Contracted Services,265,20/12/2018,1812-00089,0.00,667.00,R,A Mohammed,No
Http://opendatacommunities.org/id/metropolitan-district-council/leeds,Leeds City Council,31/12/2018,Communities and Environment,Parks and Countryside,Supplies and Services,Operational Materials,205,13/12/2018,1812-00090,0.00,746.00,R,A Newton,No
Http://opendatacommunities.org/id/metropolitan-district-council/leeds,Leeds City Council,31/12/2018,Communities and Environment,Parks and Countryside,Supplies and Services,Operational Materials,205,20/12/2018,1812-00091,0.00,864.00,R,A Newton,No
Http://opendatacommunities.org/id/metropolitan-district-council/leeds,Leeds City Council,31/12/2018,City Development,Libraries  Arts & Heritage,Supplies and Services,Non-Recurring Grants,227,12/12/2018,1812-00092,0.00,7500.00,R,A Quiet Word Ltd,No
Http://opendatacommunities.org/id/metropolitan-district-council/leeds,Leeds City Council,31/12/2018,City Development,Markets & City Centre Management  ,Premises,Plant and Machinery,102,01/11/2018,1812-00093,0.00,157.50,R,A R C Appliances Limited,Yes
Http://opendatacommunities.org/id/metropolitan-district-council/leeds,Leeds City Council,31/12/2018,Children and Families,Social Care,Third Party Payments,Services Rendered By Other Organisations,511,21/12/2018,1812-00094,0.00,148.75,R,REDACTED PERSONAL DATA,No
Http://opendatacommunities.org/id/metropolitan-district-council/leeds,Leeds City Council,31/12/2018,Resources and Housing,Shared Services,Supplies and Services,Other Hired And Contracted Services,265,10/12/2018,1812-00095,0.00,46.25,R,A Star Couriers Ltd,No
Http://opendatacommunities.org/id/metropolitan-district-council/leeds,Leeds City Council,31/12/2018,Resources and Housing,Shared Services,Supplies and Services,Other Hired And Contracted Services,265,14/12/2018,1812-00096,0.00,81.25,R,A Star Couriers Ltd,No
Http://opendatacommunities.org/id/metropolitan-district-council/leeds,Leeds City Council,31/12/2018,Communities and Environment,Communities,Supplies and Services,Other Hired And Contracted Services,265,21/12/2018,1812-00097,0.00,100.00,R,A Strniskova,No
Http://opendatacommunities.org/id/metropolitan-district-council/leeds,Leeds City Council,31/12/2018,City Development,Markets & City Centre Management,Supplies and Services,Publication And Promotion,267,27/12/2018,1812-00098,0.00,450.00,R,A T Graphics Limited,No
Http://opendatacommunities.org/id/metropolitan-district-council/leeds,Leeds City Council,31/12/2018,Communities and Environment,Waste Management,Employees,Training & Development,70,07/12/2018,1812-00099,0.00,105.00,R,A T Nerac Ltd,No
Http://opendatacommunities.org/id/metropolitan-district-council/leeds,Leeds City Council,31/12/2018,Children and Families,Social Care,Third Party Payments,Placement Support,550,18/12/2018,1812-00100,0.00,144.00,R,A Taxis,No
Http://opendatacommunities.org/id/metropolitan-district-council/leeds,Leeds City Council,31/12/2018,Children and Families,Social Care,Third Party Payments,Services Rendered By Other Organisations,511,19/12/2018,1812-00101,0.00,116.02,R,REDACTED PERSONAL DATA,No
Http://opendatacommunities.org/id/metropolitan-district-council/leeds,Leeds City Council,31/12/2018,Children and Families,Social Care,Third Party Payments,Services Rendered By Other Organisations,511,19/12/2018,1812-00102,0.00,267.75,R,REDACTED PERSONAL DATA,No
Http://opendatacommunities.org/id/metropolitan-district-council/leeds,Leeds City Council,31/12/2018,Children and Families,Social Care,Third Party Payments,Services Rendered By Other Organisations,511,21/12/2018,1812-00103,0.00,223.12,R,REDACTED PERSONAL DATA,No
Http://opendatacommunities.org/id/metropolitan-district-council/leeds,Leeds City Council,31/12/2018,Children and Families,Social Care,Third Party Payments,Services Rendered By Other Organisations,511,21/12/2018,1812-00104,0.00,471.75,R,REDACTED PERSONAL DATA,No
Http://opendatacommunities.org/id/metropolitan-district-council/leeds,Leeds City Council,31/12/2018,Children and Families,Social Care,Third Party Payments,General External Residential Placements,507,05/12/2018,1812-00105,0.00,321.30,R,A Wilderness Way Ltd,No
Http://opendatacommunities.org/id/metropolitan-district-council/leeds,Leeds City Council,31/12/2018,Children and Families,Social Care,Third Party Payments,General External Residential Placements,507,05/12/2018,1812-00106,0.00,321.30,R,A Wilderness Way Ltd,No
Http://opendatacommunities.org/id/metropolitan-district-council/leeds,Leeds City Council,31/12/2018,Children and Families,Social Care,Third Party Payments,General External Residential Placements,507,05/12/2018,1812-00107,0.00,107.10,R,A Wilderness Way Ltd,No
Http://opendatacommunities.org/id/metropolitan-district-council/leeds,Leeds City Council,31/12/2018,Children and Families,Social Care,Third Party Payments,General External Residential Placements,507,05/12/2018,1812-00108,0.00,107.10,R,A Wilderness Way Ltd,No
Http://opendatacommunities.org/id/metropolitan-district-council/leeds,Leeds City Council,31/12/2018,Children and Families,Social Care,Third Party Payments,General External Residential Placements,507,07/12/2018,1812-00109,0.00,17828.40,R,A Wilderness Way Ltd,No
Http://opendatacommunities.org/id/metropolitan-district-council/leeds,Leeds City Council,31/12/2018,Children and Families,Social Care,Third Party Payments,General External Residential Placements,507,12/12/2018,1812-00110,0.00,34066.27,R,A Wilderness Way Ltd,No
Http://opendatacommunities.org/id/metropolitan-district-council/leeds,Leeds City Council,31/12/2018,Children and Families,Social Care,Third Party Payments,General External Residential Placements,507,12/12/2018,1812-00111,0.00,33021.56,R,A Wilderness Way Ltd,No
Http://opendatacommunities.org/id/metropolitan-district-council/leeds,Leeds City Council,31/12/2018,Children and Families,Social Care,Third Party Payments,General External Residential Placements,507,12/12/2018,1812-00112,0.00,178.20,R,A Wilderness Way Ltd,No
Http://opendatacommunities.org/id/metropolitan-district-council/leeds,Leeds City Council,31/12/2018,Children and Families,Social Care,Third Party Payments,General External Residential Placements,507,12/12/2018,1812-00113,0.00,2060.45,R,A Wilderness Way Ltd,No
Http://opendatacommunities.org/id/metropolitan-district-council/leeds,Leeds City Council,31/12/2018,Children and Families,Social Care,Third Party Payments,General External Residential Placements,507,28/12/2018,1812-00114,0.00,28542.01,R,A Wilderness Way Ltd,No
Http://opendatacommunities.org/id/metropolitan-district-council/leeds,Leeds City Council,31/12/2018,Children and Families,Social Care,Third Party Payments,General External Residential Placements,507,28/12/2018,1812-00115,0.00,18422.68,R,A Wilderness Way Ltd,No
Http://opendatacommunities.org/id/metropolitan-district-council/leeds,Leeds City Council,31/12/2018,Resources and Housing,Leeds Building Services,Supplies and Services,Other Hired And Contracted Services,265,07/12/2018,1812-00116,0.00,7150.00,R,A1 Stair Lift Services,No
Http://opendatacommunities.org/id/metropolitan-district-council/leeds,Leeds City Council As Accountable Body,31/12/2018,Social Services Pooled Budgets,Jcs For People With Learning Disabilitie,Supplies and Services,Other Equipment,203,12/12/2018,1812-00117,0.00,1379.99,R,Aat (Gb) Ltd,No
Http://opendatacommunities.org/id/metropolitan-district-council/leeds,Leeds City Council As Accountable Body,31/12/2018,Social Services Pooled Budgets,Leeds Community Equip Store Pooled Budgt,Supplies and Services,Other Equipment,203,19/12/2018,1812-00118,0.00,879.00,R,Aat (Gb) Ltd,No
Http://opendatacommunities.org/id/metropolitan-district-council/leeds,Leeds City Council,31/12/2018,Adults and Health,Social Services Support Services,Transport,Public Transport Expenses,310,06/12/2018,1812-00119,0.00,-464.00,R,Ab Cars,No
Http://opendatacommunities.org/id/metropolitan-district-council/leeds,Leeds City Council,31/12/2018,Adults and Health,Social Services Support Services,Transport,Public Transport Expenses,310,06/12/2018,1812-00120,0.00,464.00,R,Ab Cars,No
Http://opendatacommunities.org/id/metropolitan-district-council/leeds,Leeds City Council,31/12/2018,Adults and Health,Social Services Support Services,Transport,Public Transport Expenses,310,06/12/2018,1812-00121,0.00,476.00,R,Ab Cars,No
Http://opendatacommunities.org/id/metropolitan-district-council/leeds,Leeds City Council,31/12/2018,Children and Families,Social Care,Support Services,Legal Disbursements,411,12/12/2018,1812-00122,0.00,31.02,R,Abacus Express Limited,No
Http://opendatacommunities.org/id/metropolitan-district-council/leeds,Leeds City Council,31/12/2018,Children and Families,Social Care,Support Services,Legal Disbursements,411,21/12/2018,1812-00123,0.00,23.11,R,Abacus Express Limited,No
Http://opendatacommunities.org/id/metropolitan-district-council/leeds,Leeds City Council,31/12/2018,Children and Families,Social Care,Support Services,Legal Disbursements,411,28/12/2018,1812-00124,0.00,31.02,R,Abacus Express Limited,No
Http://opendatacommunities.org/id/metropolitan-district-council/leeds,Leeds City Council,31/12/2018,Adults and Health,Services For Adults Under 65 Mental/Dis,Third Party Payments,Nursing Home,570,12/12/2018,1812-00125,0.00,1852.00,R,Abbey Grange Nursing Home,No
Http://opendatacommunities.org/id/metropolitan-district-council/leeds,Leeds City Council,31/12/2018,Communities and Environment,Environmental Health,Supplies and Services,Bought In Professional Services,277,05/12/2018,1812-00126,0.00,103.58,R,Abbey House Veterinary Hospital,No
Http://opendatacommunities.org/id/metropolitan-district-council/leeds,Leeds City Council,31/12/2018,Communities and Environment,Environmental Health,Supplies and Services,Bought In Professional Services,277,05/12/2018,1812-00127,0.00,53.29,R,Abbey House Veterinary Hospital,No
Http://opendatacommunities.org/id/metropolitan-district-council/leeds,Leeds City Council,31/12/2018,Communities and Environment,Environmental Health,Supplies and Services,Bought In Professional Services,277,05/12/2018,1812-00128,0.00,347.70,R,Abbey House Veterinary Hospital,No
Http://opendatacommunities.org/id/metropolitan-district-council/leeds,Leeds City Council,31/12/2018,Communities and Environment,Environmental Health,Supplies and Services,Bought In Professional Services,277,21/12/2018,1812-00129,0.00,71.25,R,Abbey House Veterinary Hospital,No
Http://opendatacommunities.org/id/metropolitan-district-council/leeds,Leeds City Council,31/12/2018,Communities and Environment,Environmental Health,Supplies and Services,Bought In Professional Services,277,24/12/2018,1812-00130,0.00,43.55,R,Abbey House Veterinary Hospital,No
Http://opendatacommunities.org/id/metropolitan-district-council/leeds,Leeds City Council,31/12/2018,Children and Families,Learning,Supplies and Services,Other Hired And Contracted Services,265,10/12/2018,1812-00131,0.00,1105.32,R,Abbey Multi Academy Trust,No
Http://opendatacommunities.org/id/metropolitan-district-council/leeds,Leeds City Council,31/12/2018,Children and Families,Learning,Supplies and Services,Other Hired And Contracted Services,265,19/12/2018,1812-00132,0.00,52.20,R,Abbey Multi Academy Trust,No
Http://opendatacommunities.org/id/metropolitan-district-council/leeds,Leeds City Council,31/12/2018,Children and Families,Learning,Supplies and Services,Other Hired And Contracted Services,265,19/12/2018,1812-00133,0.00,54.00,R,Abbey Multi Academy Trust,No
Http://opendatacommunities.org/id/metropolitan-district-council/leeds,Leeds City Council,31/12/2018,Children and Families,Social Care,Supplies and Services,Other Hired And Contracted Services,265,19/12/2018,1812-00134,0.00,33.60,R,Abbey Multi Academy Trust,No
Http://opendatacommunities.org/id/metropolitan-district-council/leeds,Leeds City Council,31/12/2018,Children and Families,Learning,Supplies and Services,Other Hired And Contracted Services,265,27/12/2018,1812-00135,0.00,3000.00,R,Abbey Multi Academy Trust,No
Http://opendatacommunities.org/id/metropolitan-district-council/leeds,Leeds City Council,31/12/2018,Children and Families,Social Care,Supplies and Services,Teaching Materials,202,11/12/2018,1812-00136,0.00,300.00,R,Abc Awards,No
Http://opendatacommunities.org/id/metropolitan-district-council/leeds,Leeds City Council,31/12/2018,Children and Families,Social Care,Third Party Payments,Services Rendered By Other Organisations,511,19/12/2018,1812-00137,0.00,1434.37,R,Abc Daycare And Ozone Out Of School,No
Http://opendatacommunities.org/id/metropolitan-district-council/leeds,Leeds City Council,31/12/2018,Children and Families,Social Care,Third Party Payments,Services Rendered By Other Organisations,511,21/12/2018,1812-00138,0.00,7283.43,R,Abc Daycare And Ozone Out Of School,No
Http://opendatacommunities.org/id/metropolitan-district-council/leeds,Leeds City Council,31/12/2018,Children and Families,Social Care,Third Party Payments,Services Rendered By Other Organisations,511,21/12/2018,1812-00139,0.00,135.15,R,Abc Daycare And Ozone Out Of School,No
Http://opendatacommunities.org/id/metropolitan-district-council/leeds,Leeds City Council,31/12/2018,Children and Families,Social Care,Third Party Payments,Services Rendered By Other Organisations,511,19/12/2018,1812-00140,0.00,5622.75,R,Abc Nursery At Lufc,No
Http://opendatacommunities.org/id/metropolitan-district-council/leeds,Leeds City Council,31/12/2018,Children and Families,Social Care,Third Party Payments,Services Rendered By Other Organisations,511,21/12/2018,1812-00141,0.00,7229.32,R,Abc Nursery At Lufc,No
Http://opendatacommunities.org/id/metropolitan-district-council/leeds,Leeds City Council,31/12/2018,Children and Families,Social Care,Third Party Payments,Services Rendered By Other Organisations,511,21/12/2018,1812-00142,0.00,333.90,R,Abc Nursery At Lufc,No
Http://opendatacommunities.org/id/metropolitan-district-council/leeds,Leeds City Council,31/12/2018,Children and Families,Social Care,Third Party Payments,Services Rendered By Other Organisations,511,19/12/2018,1812-00143,0.00,2142.00,R,Abc@D'S Childcare Services,No
Http://opendatacommunities.org/id/metropolitan-district-council/leeds,Leeds City Council,31/12/2018,Children and Families,Social Care,Third Party Payments,Services Rendered By Other Organisations,511,21/12/2018,1812-00144,0.00,6024.37,R,Abc@D'S Childcare Services,No
Http://opendatacommunities.org/id/metropolitan-district-council/leeds,Leeds City Council,31/12/2018,Children and Families,Social Care,Third Party Payments,Services Rendered By Other Organisations,511,21/12/2018,1812-00145,0.00,222.60,R,Abc@D'S Childcare Services,No
Http://opendatacommunities.org/id/metropolitan-district-council/leeds,Leeds City Council,31/12/2018,Communities and Environment,Customer Access,Supplies and Services,Other Hired And Contracted Services,265,11/12/2018,1812-00146,0.00,176.00,R,Abdul Wadood Kazizadha,No
Http://opendatacommunities.org/id/metropolitan-district-council/leeds,Leeds City Council,31/12/2018,Communities and Environment,Customer Access,Supplies and Services,Other Hired And Contracted Services,265,11/12/2018,1812-00147,0.00,522.50,R,Abdulahad Denha,No
Http://opendatacommunities.org/id/metropolitan-district-council/leeds,Leeds City Council,31/12/2018,Communities and Environment,Customer Access,Supplies and Services,Other Hired And Contracted Services,265,20/12/2018,1812-00148,0.00,108.00,R,Abdulahad Denha,No
Http://opendatacommunities.org/id/metropolitan-district-council/leeds,Leeds City Council,31/12/2018,Adults and Health,Services For Older People - 65 And Over,Third Party Payments,Nursing Home,570,12/12/2018,1812-00149,0.00,26572.89,R,Aberford Hall,No
Http://opendatacommunities.org/id/metropolitan-district-council/leeds,Leeds City Council,31/12/2018,Adults and Health,Services For Older People - 65 And Over,Third Party Payments,Nursing Care Dementia,574,12/12/2018,1812-00150,0.00,1778.24,R,Aberford Hall,No
Http://opendatacommunities.org/id/metropolitan-district-council/leeds,Leeds City Council,31/12/2018,Adults and Health,Services For Older People - 65 And Over,Third Party Payments,Residential,580,12/12/2018,1812-00151,0.00,1531.12,R,Aberford Hall,No
Http://opendatacommunities.org/id/metropolitan-district-council/leeds,Leeds City Council,31/12/2018,Resources and Housing,Leeds Building Services,Supplies and Services,Operational Materials,205,07/12/2018,1812-00152,0.00,1562.70,R,Abi Garage Doors Ltd,No
Http://opendatacommunities.org/id/metropolitan-district-council/leeds,Leeds City Council,31/12/2018,Resources and Housing,Leeds Building Services,Supplies and Services,Operational Materials,205,07/12/2018,1812-00153,0.00,30.00,R,Abi Garage Doors Ltd,No
Http://opendatacommunities.org/id/metropolitan-district-council/leeds,Leeds City Council,31/12/2018,Resources and Housing,Leeds Building Services,Supplies and Services,Operational Materials,205,20/12/2018,1812-00154,0.00,260.45,R,Abi Garage Doors Ltd,No
Http://opendatacommunities.org/id/metropolitan-district-council/leeds,Leeds City Council,31/12/2018,Communities and Environment,Parks And Countryside  ,Supplies and Services,Operational Materials,205,09/11/2018,1812-00155,0.00,555.00,R,Abram Pulman & Sons Ltd,Yes
Http://opendatacommunities.org/id/metropolitan-district-council/leeds,Leeds City Council,31/12/2018,Communities and Environment,Parks And Countryside  ,Premises,Maintenance Of Buildings,101,09/11/2018,1812-00156,0.00,1155.00,R,Abram Pulman & Sons Ltd,Yes
Http://opendatacommunities.org/id/metropolitan-district-council/leeds,Leeds City Council,31/12/2018,Insurance,Insurance,Supplies and Services,Insurance Claims,248,20/12/2018,1812-00157,0.00,2328.00,R,Absolute Law,No
Http://opendatacommunities.org/id/metropolitan-district-council/leeds,Leeds City Council,31/12/2018,City Development,Libraries  Arts & Heritage  ,Supplies and Services,Operational Furniture And Equipment,203,15/11/2018,1812-00158,0.00,576.25,R,Absoluteproduct.Co,Yes
Http://opendatacommunities.org/id/metropolitan-district-council/leeds,Leeds City Council,31/12/2018,Children and Families,Social Care  ,Supplies and Services,Subsistence,256,15/11/2018,1812-00159,0.00,5.40,R,Abu 2 Go Ltd,Yes
Http://opendatacommunities.org/id/metropolitan-district-council/leeds,Leeds City Council,31/12/2018,Children and Families,Social Care,Employees,Agency Staff,8,07/12/2018,1812-00160,0.00,3630.00,R,Academic Appointments Ltd,No
Http://opendatacommunities.org/id/metropolitan-district-council/leeds,Leeds City Council,31/12/2018,Children and Families,Learning,Employees,Agency Staff,8,13/12/2018,1812-00161,0.00,486.00,R,Academic Appointments Ltd,No
Http://opendatacommunities.org/id/metropolitan-district-council/leeds,Leeds City Council,31/12/2018,Children and Families,Social Care,Supplies and Services,Teaching Materials,202,14/12/2018,1812-00162,0.00,2178.00,R,Academic Appointments Ltd,No
Http://opendatacommunities.org/id/metropolitan-district-council/leeds,Leeds City Council,31/12/2018,Children and Families,Social Care,Employees,Agency Staff,8,14/12/2018,1812-00163,0.00,152.00,R,Academic Appointments Ltd,No
Http://opendatacommunities.org/id/metropolitan-district-council/leeds,Leeds City Council,31/12/2018,Children and Families,Social Care,Supplies and Services,Teaching Materials,202,21/12/2018,1812-00164,0.00,3630.00,R,Academic Appointments Ltd,No
Http://opendatacommunities.org/id/metropolitan-district-council/leeds,Leeds City Council,31/12/2018,Children and Families,Learning,Employees,Agency Staff,8,24/12/2018,1812-00165,0.00,616.00,R,Academic Appointments Ltd,No
Http://opendatacommunities.org/id/metropolitan-district-council/leeds,Leeds City Council,31/12/2018,Children and Families,Learning,Employees,Agency Staff,8,24/12/2018,1812-00166,0.00,279.20,R,Academic Appointments Ltd,No
Http://opendatacommunities.org/id/metropolitan-district-council/leeds,Leeds City Council,31/12/2018,Children and Families,Social Care,Employees,Agency Staff,8,28/12/2018,1812-00167,0.00,3103.00,R,Academic Appointments Ltd,No
Http://opendatacommunities.org/id/metropolitan-district-council/leeds,Leeds City Council,31/12/2018,Children and Families,Learning,Supplies and Services,Other Hired And Contracted Services,265,10/12/2018,1812-00168,0.00,3552.50,R,Academies Enterprise Trust (Aet),No
Http://opendatacommunities.org/id/metropolitan-district-council/leeds,Leeds City Council,31/12/2018,Communities and Environment,Elections  Licensing and Registration,Supplies and Services,Other Hired And Contracted Services,265,21/12/2018,1812-00169,0.00,150.00,R,Access Committee For Leeds,No
Http://opendatacommunities.org/id/metropolitan-district-council/leeds,Leeds City Council,31/12/2018,Communities and Environment,Community Safety,Transport,Hire Of Movable Plant & Machinery,315,27/12/2018,1812-00170,0.00,1268.57,R,Access Hire Nationwide Ltd,No
Http://opendatacommunities.org/id/metropolitan-district-council/leeds,Leeds City Council,31/12/2018,Strategic Landlord,Housing Management,Supplies and Services,Operational Furniture And Equipment,203,05/12/2018,1812-00171,0.00,57.00,R,Access Locksmiths (Leeds) Limited,No
Http://opendatacommunities.org/id/metropolitan-district-council/leeds,Leeds City Council,31/12/2018,Strategic Landlord,Property and Contracts,Supplies and Services,Office Consumables,210,05/12/2018,1812-00172,0.00,59.75,R,Access Locksmiths (Leeds) Limited,No
Http://opendatacommunities.org/id/metropolitan-district-council/leeds,Leeds City Council,31/12/2018,Resources and Housing,HRA Housing Leeds,Capital,Other Costs,7,05/12/2018,1812-00173,0.00,2387.46,C,Access Locksmiths (Leeds) Limited,No
Http://opendatacommunities.org/id/metropolitan-district-council/leeds,Leeds City Council,31/12/2018,Strategic Landlord,Housing Management,Premises,General Maintenance,104,05/12/2018,1812-00174,0.00,114.00,R,Access Locksmiths (Leeds) Limited,No
Http://opendatacommunities.org/id/metropolitan-district-council/leeds,Leeds City Council,31/12/2018,Strategic Landlord,Housing Management,Supplies and Services,Resaleable Materials,204,05/12/2018,1812-00175,0.00,208.50,R,Access Locksmiths (Leeds) Limited,No
Http://opendatacommunities.org/id/metropolitan-district-council/leeds,Leeds City Council,31/12/2018,Strategic Landlord,Housing Management,Supplies and Services,Resaleable Materials,204,05/12/2018,1812-00176,0.00,12.50,R,Access Locksmiths (Leeds) Limited,No
Http://opendatacommunities.org/id/metropolitan-district-council/leeds,Leeds City Council,31/12/2018,Strategic Landlord,Housing Management,Supplies and Services,Office Furniture & Equipment,201,05/12/2018,1812-00177,0.00,16.00,R,Access Locksmiths (Leeds) Limited,No
Http://opendatacommunities.org/id/metropolitan-district-council/leeds,Leeds City Council,31/12/2018,Resources and Housing,HRA Housing Leeds,Capital,Other Costs,7,05/12/2018,1812-00178,0.00,40.36,C,Access Locksmiths (Leeds) Limited,No
Http://opendatacommunities.org/id/metropolitan-district-council/leeds,Leeds City Council,31/12/2018,Strategic Landlord,Housing Management,Supplies and Services,Operational Furniture And Equipment,203,05/12/2018,1812-00179,0.00,34.20,R,Access Locksmiths (Leeds) Limited,No
Http://opendatacommunities.org/id/metropolitan-district-council/leeds,Leeds City Council,31/12/2018,Resources and Housing,Leeds Building Services,Supplies and Services,Operational Materials,205,05/12/2018,1812-00180,0.00,8.20,R,Access Locksmiths (Leeds) Limited,No
Http://opendatacommunities.org/id/metropolitan-district-council/leeds,Leeds City Council,31/12/2018,Resources and Housing,Leeds Building Services,Supplies and Services,Operational Materials,205,05/12/2018,1812-00181,0.00,120.04,R,Access Locksmiths (Leeds) Limited,No
Http://opendatacommunities.org/id/metropolitan-district-council/leeds,Leeds City Council,31/12/2018,Resources and Housing,Leeds Building Services,Supplies and Services,Operational Materials,205,05/12/2018,1812-00182,0.00,1054.05,R,Access Locksmiths (Leeds) Limited,No
Http://opendatacommunities.org/id/metropolitan-district-council/leeds,Leeds City Council,31/12/2018,Resources and Housing,Leeds Building Services,Supplies and Services,Operational Materials,205,05/12/2018,1812-00183,0.00,11.25,R,Access Locksmiths (Leeds) Limited,No
Http://opendatacommunities.org/id/metropolitan-district-council/leeds,Leeds City Council,31/12/2018,Resources and Housing,Leeds Building Services,Supplies and Services,Operational Materials,205,05/12/2018,1812-00184,0.00,23.65,R,Access Locksmiths (Leeds) Limited,No
Http://opendatacommunities.org/id/metropolitan-district-council/leeds,Leeds City Council,31/12/2018,Resources and Housing,Leeds Building Services,Supplies and Services,Operational Materials,205,05/12/2018,1812-00185,0.00,43.48,R,Access Locksmiths (Leeds) Limited,No
Http://opendatacommunities.org/id/metropolitan-district-council/leeds,Leeds City Council,31/12/2018,Resources and Housing,Leeds Building Services,Supplies and Services,Operational Materials,205,05/12/2018,1812-00186,0.00,45.27,R,Access Locksmiths (Leeds) Limited,No
Http://opendatacommunities.org/id/metropolitan-district-council/leeds,Leeds City Council,31/12/2018,Resources and Housing,Leeds Building Services,Supplies and Services,Operational Materials,205,05/12/2018,1812-00187,0.00,25.11,R,Access Locksmiths (Leeds) Limited,No
Http://opendatacommunities.org/id/metropolitan-district-council/leeds,Leeds City Council,31/12/2018,Resources and Housing,Leeds Building Services,Supplies and Services,Operational Materials,205,05/12/2018,1812-00188,0.00,36.06,R,Access Locksmiths (Leeds) Limited,No
Http://opendatacommunities.org/id/metropolitan-district-council/leeds,Leeds City Council,31/12/2018,Resources and Housing,Leeds Building Services,Supplies and Services,Operational Materials,205,05/12/2018,1812-00189,0.00,16.99,R,Access Locksmiths (Leeds) Limited,No
Http://opendatacommunities.org/id/metropolitan-district-council/leeds,Leeds City Council,31/12/2018,Resources and Housing,Leeds Building Services,Supplies and Services,Operational Materials,205,05/12/2018,1812-00190,0.00,6.75,R,Access Locksmiths (Leeds) Limited,No
Http://opendatacommunities.org/id/metropolitan-district-council/leeds,Leeds City Council,31/12/2018,Resources and Housing,Leeds Building Services,Supplies and Services,Operational Materials,205,05/12/2018,1812-00191,0.00,89.78,R,Access Locksmiths (Leeds) Limited,No
Http://opendatacommunities.org/id/metropolitan-district-council/leeds,Leeds City Council,31/12/2018,Resources and Housing,Leeds Building Services,Supplies and Services,Operational Materials,205,05/12/2018,1812-00192,0.00,29.79,R,Access Locksmiths (Leeds) Limited,No
Http://opendatacommunities.org/id/metropolitan-district-council/leeds,Leeds City Council,31/12/2018,Resources and Housing,Leeds Building Services,Supplies and Services,Operational Materials,205,05/12/2018,1812-00193,0.00,19.69,R,Access Locksmiths (Leeds) Limited,No
Http://opendatacommunities.org/id/metropolitan-district-council/leeds,Leeds City Council,31/12/2018,Communities and Environment,Waste Management,Supplies and Services,Operational Furniture And Equipment,203,05/12/2018,1812-00194,0.00,228.00,R,Access Locksmiths (Leeds) Limited,No
Http://opendatacommunities.org/id/metropolitan-district-council/leeds,Leeds City Council,31/12/2018,Strategic Landlord,Housing Management,Supplies and Services,Resaleable Materials,204,14/12/2018,1812-00195,0.00,456.00,R,Access Locksmiths (Leeds) Limited,No
Http://opendatacommunities.org/id/metropolitan-district-council/leeds,Leeds City Council,31/12/2018,Strategic Landlord,Housing Management,Supplies and Services,Resaleable Materials,204,14/12/2018,1812-00196,0.00,182.40,R,Access Locksmiths (Leeds) Limited,No
Http://opendatacommunities.org/id/metropolitan-district-council/leeds,Leeds City Council,31/12/2018,Strategic Landlord,Housing Management,Premises,General Maintenance,104,14/12/2018,1812-00197,0.00,60.54,R,Access Locksmiths (Leeds) Limited,No
Http://opendatacommunities.org/id/metropolitan-district-council/leeds,Leeds City Council,31/12/2018,Strategic Landlord,Housing Management,Supplies and Services,Operational Furniture And Equipment,203,14/12/2018,1812-00198,0.00,1140.00,R,Access Locksmiths (Leeds) Limited,No
Http://opendatacommunities.org/id/metropolitan-district-council/leeds,Leeds City Council,31/12/2018,Resources and Housing,HRA Housing Leeds,Capital,Construction,3,14/12/2018,1812-00199,0.00,461.47,C,Access Locksmiths (Leeds) Limited,No
Http://opendatacommunities.org/id/metropolitan-district-council/leeds,Leeds City Council,31/12/2018,Communities and Environment,Waste Management,Supplies and Services,Operational Furniture And Equipment,203,19/12/2018,1812-00200,0.00,302.70,R,Access Locksmiths (Leeds) Limited,No
Http://opendatacommunities.org/id/metropolitan-district-council/leeds,Leeds City Council,31/12/2018,Resources and Housing,Commercial Services,Supplies and Services,Operational Furniture And Equipment,203,19/12/2018,1812-00201,0.00,262.34,R,Access Locksmiths (Leeds) Limited,No
Http://opendatacommunities.org/id/metropolitan-district-council/leeds,Leeds City Council,31/12/2018,Strategic Landlord,Property and Contracts,Premises,General Maintenance,104,21/12/2018,1812-00202,0.00,1013.35,R,Access Locksmiths (Leeds) Limited,No
Http://opendatacommunities.org/id/metropolitan-district-council/leeds,Leeds City Council,31/12/2018,Strategic Landlord,Property and Contracts,Premises,General Maintenance,104,21/12/2018,1812-00203,0.00,1058.00,R,Access Locksmiths (Leeds) Limited,No
Http://opendatacommunities.org/id/metropolitan-district-council/leeds,Leeds City Council,31/12/2018,Strategic Landlord,Property and Contracts,Premises,General Maintenance,104,21/12/2018,1812-00204,0.00,898.80,R,Access Locksmiths (Leeds) Limited,No
Http://opendatacommunities.org/id/metropolitan-district-council/leeds,Leeds City Council,31/12/2018,Strategic Landlord,Property and Contracts,Premises,General Maintenance,104,21/12/2018,1812-00205,0.00,385.89,R,Access Locksmiths (Leeds) Limited,No
Http://opendatacommunities.org/id/metropolitan-district-council/leeds,Leeds City Council,31/12/2018,Strategic Landlord,Housing Management,Supplies and Services,Resaleable Materials,204,24/12/2018,1812-00206,0.00,80.72,R,Access Locksmiths (Leeds) Limited,No
Http://opendatacommunities.org/id/metropolitan-district-council/leeds,Leeds City Council,31/12/2018,Resources and Housing,Leeds Building Services,Supplies and Services,Operational Materials,205,28/12/2018,1812-00207,0.00,68.00,R,Access Opening Systems,No
Http://opendatacommunities.org/id/metropolitan-district-council/leeds,Leeds City Council,31/12/2018,Resources and Housing,Leeds Building Services,Supplies and Services,Operational Materials,205,28/12/2018,1812-00208,0.00,122.50,R,Access Opening Systems,No
Http://opendatacommunities.org/id/metropolitan-district-council/leeds,Leeds City Council,31/12/2018,Resources and Housing,Leeds Building Services,Supplies and Services,Operational Materials,205,28/12/2018,1812-00209,0.00,175.00,R,Access Opening Systems,No
Http://opendatacommunities.org/id/metropolitan-district-council/leeds,Leeds City Council,31/12/2018,Resources and Housing,Leeds Building Services,Supplies and Services,Operational Materials,205,28/12/2018,1812-00210,0.00,122.50,R,Access Opening Systems,No
Http://opendatacommunities.org/id/metropolitan-district-council/leeds,Leeds City Council,31/12/2018,Resources and Housing,Leeds Building Services,Supplies and Services,Operational Materials,205,28/12/2018,1812-00211,0.00,25.00,R,Access Opening Systems,No
Http://opendatacommunities.org/id/metropolitan-district-council/leeds,Leeds City Council,31/12/2018,Resources and Housing,Leeds Building Services,Supplies and Services,Operational Materials,205,28/12/2018,1812-00212,0.00,75.00,R,Access Opening Systems,No
Http://opendatacommunities.org/id/metropolitan-district-council/leeds,Leeds City Council,31/12/2018,Resources and Housing,Leeds Building Services,Supplies and Services,Operational Materials,205,28/12/2018,1812-00213,0.00,107.50,R,Access Opening Systems,No
Http://opendatacommunities.org/id/metropolitan-district-council/leeds,Leeds City Council,31/12/2018,Resources and Housing,Leeds Building Services,Supplies and Services,Operational Materials,205,28/12/2018,1812-00214,0.00,160.00,R,Access Opening Systems,No
Http://opendatacommunities.org/id/metropolitan-district-council/leeds,Leeds City Council,31/12/2018,Insurance,Insurance,Supplies and Services,Insurance Claims,248,19/12/2018,1812-00215,0.00,2500.00,R,Accountant General Of The Senior Courts,No
Http://opendatacommunities.org/id/metropolitan-district-council/leeds,Leeds City Council,31/12/2018,City Development,Recreation,Transport,External Hire -Occasional,304,12/12/2018,1812-00216,0.00,128.65,R,Ace Container Services Limited,No
Http://opendatacommunities.org/id/metropolitan-district-council/leeds,Leeds City Council,31/12/2018,City Development,Recreation,Supplies and Services,Other Hired And Contracted Services,265,28/12/2018,1812-00217,0.00,93.00,R,Ace Container Services Limited,No
Http://opendatacommunities.org/id/metropolitan-district-council/leeds,Leeds City Council,31/12/2018,City Development,Recreation,Transport,External Hire -Occasional,304,28/12/2018,1812-00218,0.00,128.65,R,Ace Container Services Limited,No
Http://opendatacommunities.org/id/metropolitan-district-council/leeds,Leeds City Council,31/12/2018,City Development,Libraries  Arts & Heritage,Supplies and Services,Other Hired And Contracted Services,265,28/12/2018,1812-00219,0.00,46.50,R,Ace Container Services Limited,No
Http://opendatacommunities.org/id/metropolitan-district-council/leeds,Leeds City Council,31/12/2018,Children and Families,Learning Places,Capital,Other Costs,7,12/12/2018,1812-00220,0.00,140.00,C,Ace Leaflet Distribution & Print Ltd,No
Http://opendatacommunities.org/id/metropolitan-district-council/leeds,Leeds City Council,31/12/2018,City Development,Asset Management Services,Employees,Training & Development,70,07/12/2018,1812-00221,0.00,60.00,R,Aces (North East Branch ),No
Http://opendatacommunities.org/id/metropolitan-district-council/leeds,Leeds City Council,31/12/2018,Resources and Housing,Strategic Housing Partnership & Support,Supplies and Services,Other Hired And Contracted Services,265,21/12/2018,1812-00222,0.00,900.00,R,Acj Properties,No
Http://opendatacommunities.org/id/metropolitan-district-council/leeds,Leeds City Council,31/12/2018,Children and Families,Partnerships & Health,Third Party Payments,Adoptions - Allowances,560,13/12/2018,1812-00223,0.00,-176.53,R,Ackworth School,No
Http://opendatacommunities.org/id/metropolitan-district-council/leeds,Leeds City Council,31/12/2018,Children and Families,Partnerships & Health,Third Party Payments,SEN Placements,566,13/12/2018,1812-00224,0.00,17653.00,R,Ackworth School,No
Http://opendatacommunities.org/id/metropolitan-district-council/leeds,Leeds City Council,31/12/2018,Children and Families,Partnerships & Health,Third Party Payments,SEN Placements,566,13/12/2018,1812-00225,0.00,17479.47,R,Ackworth School,No
Http://opendatacommunities.org/id/metropolitan-district-council/leeds,Leeds City Council,31/12/2018,Children and Families,Partnerships & Health,Third Party Payments,SEN Placements,566,13/12/2018,1812-00226,0.00,17486.47,R,Ackworth School,No
Http://opendatacommunities.org/id/metropolitan-district-council/leeds,Leeds City Council,31/12/2018,Children and Families,Partnerships & Health,Third Party Payments,SEN Placements,566,13/12/2018,1812-00227,0.00,17476.47,R,Ackworth School,No
Http://opendatacommunities.org/id/metropolitan-district-council/leeds,Leeds City Council,31/12/2018,Children and Families,Partnerships & Health,Third Party Payments,SEN Placements,566,13/12/2018,1812-00228,0.00,17476.47,R,Ackworth School,No
Http://opendatacommunities.org/id/metropolitan-district-council/leeds,Leeds City Council,31/12/2018,Children and Families,Partnerships & Health,Third Party Payments,SEN Placements,566,13/12/2018,1812-00229,0.00,25198.47,R,Ackworth School,No
Http://opendatacommunities.org/id/metropolitan-district-council/leeds,Leeds City Council,31/12/2018,Communities and Environment,Waste Management,Supplies and Services,Other Hired And Contracted Services,265,13/12/2018,1812-00230,0.00,200.00,R,Acorn Analytical Services Limited,No
Http://opendatacommunities.org/id/metropolitan-district-council/leeds,Leeds City Council,31/12/2018,Adults and Health,Services For Older People - 65 And Over,Third Party Payments,Nursing Care Dementia,574,12/12/2018,1812-00231,0.00,1625.64,R,Acorn Nursing Home,No
Http://opendatacommunities.org/id/metropolitan-district-council/leeds,Leeds City Council,31/12/2018,Communities and Environment,Parks and Countryside,Supplies and Services,Other Hired And Contracted Services,265,21/12/2018,1812-00232,0.00,450.00,R,Acorn Scaffolding (Yorkshire) Ltd,No
Http://opendatacommunities.org/id/metropolitan-district-council/leeds,Leeds City Council,31/12/2018,City Development,Libraries  Arts & Heritage,Supplies and Services,Other Hired And Contracted Services,265,24/12/2018,1812-00233,0.00,1118.78,R,Acorn Scaffolding (Yorkshire) Ltd,No
Http://opendatacommunities.org/id/metropolitan-district-council/leeds,Leeds City Council,31/12/2018,City Development,Libraries  Arts & Heritage,Supplies and Services,Other Hired And Contracted Services,265,28/12/2018,1812-00234,0.00,150.00,R,Acorn Scaffolding (Yorkshire) Ltd,No
Http://opendatacommunities.org/id/metropolitan-district-council/leeds,Leeds City Council,31/12/2018,Children and Families,Social Care,Third Party Payments,Services Rendered By Other Organisations,511,21/12/2018,1812-00235,0.00,13597.87,R,Acorns Nursery,No
Http://opendatacommunities.org/id/metropolitan-district-council/leeds,Leeds City Council,31/12/2018,Adults and Health,Services For Older People Under 65 P/Dis,Third Party Payments,Nursing Home,570,12/12/2018,1812-00236,0.00,2200.00,R,Acre Green,No
Http://opendatacommunities.org/id/metropolitan-district-council/leeds,Leeds City Council,31/12/2018,Adults and Health,Services For Older People - 65 And Over,Third Party Payments,Nursing Home,570,12/12/2018,1812-00237,0.00,33139.20,R,Acre Green,No
Http://opendatacommunities.org/id/metropolitan-district-council/leeds,Leeds City Council,31/12/2018,Adults and Health,Services For Older People Under 65 P/Dis,Third Party Payments,Residential,580,12/12/2018,1812-00238,0.00,3581.80,R,Acre Green,No
Http://opendatacommunities.org/id/metropolitan-district-council/leeds,Leeds City Council,31/12/2018,Adults and Health,Services For Older People - 65 And Over,Third Party Payments,Residential,580,12/12/2018,1812-00239,0.00,3631.60,R,Acre Green,No
Http://opendatacommunities.org/id/metropolitan-district-council/leeds,Leeds City Council,31/12/2018,Children and Families,Social Care,Third Party Payments,Services Rendered By Other Organisations,511,19/12/2018,1812-00240,0.00,4284.00,R,Acre Wood Day Nursery,No
Http://opendatacommunities.org/id/metropolitan-district-council/leeds,Leeds City Council,31/12/2018,Children and Families,Social Care,Third Party Payments,Services Rendered By Other Organisations,511,21/12/2018,1812-00241,0.00,13536.25,R,Acre Wood Day Nursery,No
Http://opendatacommunities.org/id/metropolitan-district-council/leeds,Leeds City Council,31/12/2018,City Development,Highways,Supplies and Services,Operational Materials,205,17/12/2018,1812-00242,0.00,830.00,R,Actavo (Leeds H & S),No
Http://opendatacommunities.org/id/metropolitan-district-council/leeds,Leeds City Council,31/12/2018,Children and Families,Social Care,Third Party Payments,Independent Fostering Agencies,509,28/12/2018,1812-00243,0.00,4622.40,R,Action For Children,No
Http://opendatacommunities.org/id/metropolitan-district-council/leeds,Leeds City Council,31/12/2018,Children and Families,Social Care,Third Party Payments,Independent Fostering Agencies,509,28/12/2018,1812-00244,0.00,4622.40,R,Action For Children,No
Http://opendatacommunities.org/id/metropolitan-district-council/leeds,Leeds City Council,31/12/2018,Children and Families,Social Care,Third Party Payments,Independent Fostering Agencies,509,28/12/2018,1812-00245,0.00,4622.40,R,Action For Children,No
Http://opendatacommunities.org/id/metropolitan-district-council/leeds,Leeds City Council,31/12/2018,Children and Families,Social Care,Third Party Payments,Independent Fostering Agencies,509,28/12/2018,1812-00246,0.00,4622.40,R,Action For Children,No
Http://opendatacommunities.org/id/metropolitan-district-council/leeds,Leeds City Council,31/12/2018,Children and Families,Social Care,Third Party Payments,Independent Fostering Agencies,509,20/12/2018,1812-00247,0.00,3331.43,R,Action For Children Services Ltd,No
Http://opendatacommunities.org/id/metropolitan-district-council/leeds,Leeds City Council,31/12/2018,Children and Families,Social Care,Third Party Payments,Independent Fostering Agencies,509,20/12/2018,1812-00248,0.00,18156.13,R,Action For Children Services Ltd,No
Http://opendatacommunities.org/id/metropolitan-district-council/leeds,Leeds City Council,31/12/2018,Adults and Health,Services For Older People - 65 And Over,Third Party Payments,Payments To Voluntary Organisations,561,31/12/2018,1812-00249,0.00,44068.00,R,Action For Gipton Elderly,No
Http://opendatacommunities.org/id/metropolitan-district-council/leeds,Leeds City Council,31/12/2018,Children and Families,Social Care,Third Party Payments,Services Rendered By Other Organisations,511,21/12/2018,1812-00250,0.00,865.65,R,Active Kids Yeadon Llp,No
Http://opendatacommunities.org/id/metropolitan-district-council/leeds,Leeds City Council,31/12/2018,Communities and Environment,Cleaner Neighbourhood Teams,Premises,Removal Of Workplace Waste,126,07/12/2018,1812-00251,0.00,110.00,R,Acumen Waste Services Ltd,No
Http://opendatacommunities.org/id/metropolitan-district-council/leeds,Leeds City Council,31/12/2018,Communities and Environment,Cleaner Neighbourhood Teams,Premises,Removal Of Workplace Waste,126,07/12/2018,1812-00252,0.00,110.00,R,Acumen Waste Services Ltd,No
Http://opendatacommunities.org/id/metropolitan-district-council/leeds,Leeds City Council,31/12/2018,Communities and Environment,Cleaner Neighbourhood Teams,Premises,Removal Of Workplace Waste,126,07/12/2018,1812-00253,0.00,110.00,R,Acumen Waste Services Ltd,No
Http://opendatacommunities.org/id/metropolitan-district-council/leeds,Leeds City Council,31/12/2018,Communities and Environment,Cleaner Neighbourhood Teams,Premises,Removal Of Workplace Waste,126,07/12/2018,1812-00254,0.00,110.00,R,Acumen Waste Services Ltd,No
Http://opendatacommunities.org/id/metropolitan-district-council/leeds,Leeds City Council,31/12/2018,Communities and Environment,Cleaner Neighbourhood Teams,Premises,Removal Of Workplace Waste,126,07/12/2018,1812-00255,0.00,110.00,R,Acumen Waste Services Ltd,No
Http://opendatacommunities.org/id/metropolitan-district-council/leeds,Leeds City Council,31/12/2018,Communities and Environment,Cleaner Neighbourhood Teams,Premises,Removal Of Workplace Waste,126,07/12/2018,1812-00256,0.00,110.00,R,Acumen Waste Services Ltd,No
Http://opendatacommunities.org/id/metropolitan-district-council/leeds,Leeds City Council,31/12/2018,Communities and Environment,Cleaner Neighbourhood Teams,Premises,Removal Of Workplace Waste,126,07/12/2018,1812-00257,0.00,110.00,R,Acumen Waste Services Ltd,No
Http://opendatacommunities.org/id/metropolitan-district-council/leeds,Leeds City Council,31/12/2018,Communities and Environment,Cleaner Neighbourhood Teams,Premises,Removal Of Workplace Waste,126,07/12/2018,1812-00258,0.00,110.00,R,Acumen Waste Services Ltd,No
Http://opendatacommunities.org/id/metropolitan-district-council/leeds,Leeds City Council,31/12/2018,Communities and Environment,Cleaner Neighbourhood Teams,Premises,Removal Of Workplace Waste,126,07/12/2018,1812-00259,0.00,110.00,R,Acumen Waste Services Ltd,No
Http://opendatacommunities.org/id/metropolitan-district-council/leeds,Leeds City Council,31/12/2018,Communities and Environment,Cleaner Neighbourhood Teams,Premises,Removal Of Workplace Waste,126,07/12/2018,1812-00260,0.00,110.00,R,Acumen Waste Services Ltd,No
Http://opendatacommunities.org/id/metropolitan-district-council/leeds,Leeds City Council,31/12/2018,Communities and Environment,Cleaner Neighbourhood Teams,Premises,Removal Of Workplace Waste,126,07/12/2018,1812-00261,0.00,110.00,R,Acumen Waste Services Ltd,No
Http://opendatacommunities.org/id/metropolitan-district-council/leeds,Leeds City Council,31/12/2018,Communities and Environment,Cleaner Neighbourhood Teams,Premises,Removal Of Workplace Waste,126,07/12/2018,1812-00262,0.00,110.00,R,Acumen Waste Services Ltd,No
Http://opendatacommunities.org/id/metropolitan-district-council/leeds,Leeds City Council,31/12/2018,Communities and Environment,Cleaner Neighbourhood Teams,Premises,Removal Of Workplace Waste,126,07/12/2018,1812-00263,0.00,110.00,R,Acumen Waste Services Ltd,No
Http://opendatacommunities.org/id/metropolitan-district-council/leeds,Leeds City Council,31/12/2018,Communities and Environment,Cleaner Neighbourhood Teams,Premises,Removal Of Workplace Waste,126,12/12/2018,1812-00264,0.00,110.00,R,Acumen Waste Services Ltd,No
Http://opendatacommunities.org/id/metropolitan-district-council/leeds,Leeds City Council,31/12/2018,Communities and Environment,Cleaner Neighbourhood Teams,Premises,Removal Of Workplace Waste,126,12/12/2018,1812-00265,0.00,50.00,R,Acumen Waste Services Ltd,No
Http://opendatacommunities.org/id/metropolitan-district-council/leeds,Leeds City Council,31/12/2018,Communities and Environment,Cleaner Neighbourhood Teams,Premises,Removal Of Workplace Waste,126,12/12/2018,1812-00266,0.00,110.00,R,Acumen Waste Services Ltd,No
Http://opendatacommunities.org/id/metropolitan-district-council/leeds,Leeds City Council,31/12/2018,Communities and Environment,Cleaner Neighbourhood Teams,Premises,Removal Of Workplace Waste,126,12/12/2018,1812-00267,0.00,110.00,R,Acumen Waste Services Ltd,No
Http://opendatacommunities.org/id/metropolitan-district-council/leeds,Leeds City Council,31/12/2018,Communities and Environment,Cleaner Neighbourhood Teams,Premises,Removal Of Workplace Waste,126,12/12/2018,1812-00268,0.00,110.00,R,Acumen Waste Services Ltd,No
Http://opendatacommunities.org/id/metropolitan-district-council/leeds,Leeds City Council,31/12/2018,Communities and Environment,Waste Management,Supplies and Services,Recycling & Reuse Charges,234,12/12/2018,1812-00269,0.00,4466.22,R,Acumen Waste Services Ltd,No
Http://opendatacommunities.org/id/metropolitan-district-council/leeds,Leeds City Council,31/12/2018,Communities and Environment,Waste Management,Supplies and Services,Recycling & Reuse Charges,234,13/12/2018,1812-00270,0.00,659.28,R,Acumen Waste Services Ltd,No
Http://opendatacommunities.org/id/metropolitan-district-council/leeds,Leeds City Council,31/12/2018,Communities and Environment,Cleaner Neighbourhood Teams,Premises,Removal Of Workplace Waste,126,13/12/2018,1812-00271,0.00,110.00,R,Acumen Waste Services Ltd,No
Http://opendatacommunities.org/id/metropolitan-district-council/leeds,Leeds City Council,31/12/2018,Communities and Environment,Cleaner Neighbourhood Teams,Premises,Removal Of Workplace Waste,126,13/12/2018,1812-00272,0.00,110.00,R,Acumen Waste Services Ltd,No
Http://opendatacommunities.org/id/metropolitan-district-council/leeds,Leeds City Council,31/12/2018,Communities and Environment,Cleaner Neighbourhood Teams,Premises,Removal Of Workplace Waste,126,13/12/2018,1812-00273,0.00,110.00,R,Acumen Waste Services Ltd,No
Http://opendatacommunities.org/id/metropolitan-district-council/leeds,Leeds City Council,31/12/2018,Communities and Environment,Cleaner Neighbourhood Teams,Premises,Removal Of Workplace Waste,126,13/12/2018,1812-00274,0.00,110.00,R,Acumen Waste Services Ltd,No
Http://opendatacommunities.org/id/metropolitan-district-council/leeds,Leeds City Council,31/12/2018,Communities and Environment,Cleaner Neighbourhood Teams,Premises,Removal Of Workplace Waste,126,13/12/2018,1812-00275,0.00,110.00,R,Acumen Waste Services Ltd,No
Http://opendatacommunities.org/id/metropolitan-district-council/leeds,Leeds City Council,31/12/2018,Communities and Environment,Cleaner Neighbourhood Teams,Premises,Removal Of Workplace Waste,126,13/12/2018,1812-00276,0.00,110.00,R,Acumen Waste Services Ltd,No
Http://opendatacommunities.org/id/metropolitan-district-council/leeds,Leeds City Council,31/12/2018,Communities and Environment,Cleaner Neighbourhood Teams,Premises,Removal Of Workplace Waste,126,13/12/2018,1812-00277,0.00,110.00,R,Acumen Waste Services Ltd,No
Http://opendatacommunities.org/id/metropolitan-district-council/leeds,Leeds City Council,31/12/2018,Communities and Environment,Cleaner Neighbourhood Teams,Premises,Removal Of Workplace Waste,126,13/12/2018,1812-00278,0.00,110.00,R,Acumen Waste Services Ltd,No
Http://opendatacommunities.org/id/metropolitan-district-council/leeds,Leeds City Council,31/12/2018,Communities and Environment,Cleaner Neighbourhood Teams,Premises,Removal Of Workplace Waste,126,14/12/2018,1812-00279,0.00,110.00,R,Acumen Waste Services Ltd,No
Http://opendatacommunities.org/id/metropolitan-district-council/leeds,Leeds City Council,31/12/2018,Communities and Environment,Cleaner Neighbourhood Teams,Premises,Removal Of Workplace Waste,126,14/12/2018,1812-00280,0.00,110.00,R,Acumen Waste Services Ltd,No
Http://opendatacommunities.org/id/metropolitan-district-council/leeds,Leeds City Council,31/12/2018,Communities and Environment,Cleaner Neighbourhood Teams,Premises,Removal Of Workplace Waste,126,14/12/2018,1812-00281,0.00,110.00,R,Acumen Waste Services Ltd,No
Http://opendatacommunities.org/id/metropolitan-district-council/leeds,Leeds City Council,31/12/2018,Communities and Environment,Cleaner Neighbourhood Teams,Premises,Removal Of Workplace Waste,126,19/12/2018,1812-00282,0.00,110.00,R,Acumen Waste Services Ltd,No
Http://opendatacommunities.org/id/metropolitan-district-council/leeds,Leeds City Council,31/12/2018,Communities and Environment,Cleaner Neighbourhood Teams,Premises,Removal Of Workplace Waste,126,19/12/2018,1812-00283,0.00,110.00,R,Acumen Waste Services Ltd,No
Http://opendatacommunities.org/id/metropolitan-district-council/leeds,Leeds City Council,31/12/2018,Communities and Environment,Waste Management,Supplies and Services,Recycling & Reuse Charges,234,19/12/2018,1812-00284,0.00,4987.48,R,Acumen Waste Services Ltd,No
Http://opendatacommunities.org/id/metropolitan-district-council/leeds,Leeds City Council,31/12/2018,Communities and Environment,Cleaner Neighbourhood Teams,Premises,Removal Of Workplace Waste,126,19/12/2018,1812-00285,0.00,110.00,R,Acumen Waste Services Ltd,No
Http://opendatacommunities.org/id/metropolitan-district-council/leeds,Leeds City Council,31/12/2018,Communities and Environment,Cleaner Neighbourhood Teams,Premises,Removal Of Workplace Waste,126,19/12/2018,1812-00286,0.00,110.00,R,Acumen Waste Services Ltd,No
Http://opendatacommunities.org/id/metropolitan-district-council/leeds,Leeds City Council,31/12/2018,Communities and Environment,Cleaner Neighbourhood Teams,Premises,Removal Of Workplace Waste,126,19/12/2018,1812-00287,0.00,110.00,R,Acumen Waste Services Ltd,No
Http://opendatacommunities.org/id/metropolitan-district-council/leeds,Leeds City Council,31/12/2018,Communities and Environment,Cleaner Neighbourhood Teams,Premises,Removal Of Workplace Waste,126,19/12/2018,1812-00288,0.00,110.00,R,Acumen Waste Services Ltd,No
Http://opendatacommunities.org/id/metropolitan-district-council/leeds,Leeds City Council,31/12/2018,Communities and Environment,Cleaner Neighbourhood Teams,Premises,Removal Of Workplace Waste,126,19/12/2018,1812-00289,0.00,110.00,R,Acumen Waste Services Ltd,No
Http://opendatacommunities.org/id/metropolitan-district-council/leeds,Leeds City Council,31/12/2018,Communities and Environment,Cleaner Neighbourhood Teams,Premises,Removal Of Workplace Waste,126,19/12/2018,1812-00290,0.00,110.00,R,Acumen Waste Services Ltd,No
Http://opendatacommunities.org/id/metropolitan-district-council/leeds,Leeds City Council,31/12/2018,Communities and Environment,Cleaner Neighbourhood Teams,Premises,Removal Of Workplace Waste,126,19/12/2018,1812-00291,0.00,110.00,R,Acumen Waste Services Ltd,No
Http://opendatacommunities.org/id/metropolitan-district-council/leeds,Leeds City Council,31/12/2018,Communities and Environment,Cleaner Neighbourhood Teams,Premises,Removal Of Workplace Waste,126,21/12/2018,1812-00292,0.00,110.00,R,Acumen Waste Services Ltd,No
Http://opendatacommunities.org/id/metropolitan-district-council/leeds,Leeds City Council,31/12/2018,Communities and Environment,Cleaner Neighbourhood Teams,Premises,Removal Of Workplace Waste,126,21/12/2018,1812-00293,0.00,110.00,R,Acumen Waste Services Ltd,No
Http://opendatacommunities.org/id/metropolitan-district-council/leeds,Leeds City Council,31/12/2018,Communities and Environment,Cleaner Neighbourhood Teams,Premises,Removal Of Workplace Waste,126,21/12/2018,1812-00294,0.00,50.00,R,Acumen Waste Services Ltd,No
Http://opendatacommunities.org/id/metropolitan-district-council/leeds,Leeds City Council,31/12/2018,Communities and Environment,Waste Management,Supplies and Services,Recycling & Reuse Charges,234,24/12/2018,1812-00295,0.00,8198.12,R,Acumen Waste Services Ltd,No
Http://opendatacommunities.org/id/metropolitan-district-council/leeds,Leeds City Council,31/12/2018,Communities and Environment,Cleaner Neighbourhood Teams,Premises,Removal Of Workplace Waste,126,24/12/2018,1812-00296,0.00,110.00,R,Acumen Waste Services Ltd,No
Http://opendatacommunities.org/id/metropolitan-district-council/leeds,Leeds City Council,31/12/2018,Communities and Environment,Cleaner Neighbourhood Teams,Premises,Removal Of Workplace Waste,126,28/12/2018,1812-00297,0.00,110.00,R,Acumen Waste Services Ltd,No
Http://opendatacommunities.org/id/metropolitan-district-council/leeds,Leeds City Council,31/12/2018,Communities and Environment,Cleaner Neighbourhood Teams,Premises,Removal Of Workplace Waste,126,28/12/2018,1812-00298,0.00,110.00,R,Acumen Waste Services Ltd,No
Http://opendatacommunities.org/id/metropolitan-district-council/leeds,Leeds City Council,31/12/2018,Communities and Environment,Cleaner Neighbourhood Teams,Premises,Removal Of Workplace Waste,126,28/12/2018,1812-00299,0.00,110.00,R,Acumen Waste Services Ltd,No
Http://opendatacommunities.org/id/metropolitan-district-council/leeds,Leeds City Council,31/12/2018,Communities and Environment,Cleaner Neighbourhood Teams,Premises,Removal Of Workplace Waste,126,28/12/2018,1812-00300,0.00,110.00,R,Acumen Waste Services Ltd,No
Http://opendatacommunities.org/id/metropolitan-district-council/leeds,Leeds City Council,31/12/2018,Communities and Environment,Cleaner Neighbourhood Teams,Premises,Removal Of Workplace Waste,126,28/12/2018,1812-00301,0.00,110.00,R,Acumen Waste Services Ltd,No
Http://opendatacommunities.org/id/metropolitan-district-council/leeds,Leeds City Council,31/12/2018,Communities and Environment,Cleaner Neighbourhood Teams,Premises,Removal Of Workplace Waste,126,28/12/2018,1812-00302,0.00,110.00,R,Acumen Waste Services Ltd,No
Http://opendatacommunities.org/id/metropolitan-district-council/leeds,Leeds City Council,31/12/2018,Communities and Environment,Cleaner Neighbourhood Teams,Premises,Removal Of Workplace Waste,126,28/12/2018,1812-00303,0.00,110.00,R,Acumen Waste Services Ltd,No
Http://opendatacommunities.org/id/metropolitan-district-council/leeds,Leeds City Council,31/12/2018,Communities and Environment,Cleaner Neighbourhood Teams,Premises,Removal Of Workplace Waste,126,28/12/2018,1812-00304,0.00,110.00,R,Acumen Waste Services Ltd,No
Http://opendatacommunities.org/id/metropolitan-district-council/leeds,Leeds City Council,31/12/2018,Communities and Environment,Cleaner Neighbourhood Teams,Premises,Removal Of Workplace Waste,126,28/12/2018,1812-00305,0.00,110.00,R,Acumen Waste Services Ltd,No
Http://opendatacommunities.org/id/metropolitan-district-council/leeds,Leeds City Council,31/12/2018,Communities and Environment,Cleaner Neighbourhood Teams,Premises,Removal Of Workplace Waste,126,28/12/2018,1812-00306,0.00,110.00,R,Acumen Waste Services Ltd,No
Http://opendatacommunities.org/id/metropolitan-district-council/leeds,Leeds City Council,31/12/2018,Communities and Environment,Cleaner Neighbourhood Teams,Premises,Removal Of Workplace Waste,126,28/12/2018,1812-00307,0.00,110.00,R,Acumen Waste Services Ltd,No
Http://opendatacommunities.org/id/metropolitan-district-council/leeds,Leeds City Council,31/12/2018,Communities and Environment,Cleaner Neighbourhood Teams,Premises,Removal Of Workplace Waste,126,28/12/2018,1812-00308,0.00,110.00,R,Acumen Waste Services Ltd,No
Http://opendatacommunities.org/id/metropolitan-district-council/leeds,Leeds City Council,31/12/2018,Communities and Environment,Cleaner Neighbourhood Teams,Premises,Removal Of Workplace Waste,126,28/12/2018,1812-00309,0.00,110.00,R,Acumen Waste Services Ltd,No
Http://opendatacommunities.org/id/metropolitan-district-council/leeds,Leeds City Council,31/12/2018,Communities and Environment,Cleaner Neighbourhood Teams,Premises,Removal Of Workplace Waste,126,28/12/2018,1812-00310,0.00,110.00,R,Acumen Waste Services Ltd,No
Http://opendatacommunities.org/id/metropolitan-district-council/leeds,Leeds City Council,31/12/2018,Communities and Environment,Cleaner Neighbourhood Teams,Premises,Removal Of Workplace Waste,126,28/12/2018,1812-00311,0.00,110.00,R,Acumen Waste Services Ltd,No
Http://opendatacommunities.org/id/metropolitan-district-council/leeds,Leeds City Council,31/12/2018,Communities and Environment,Cleaner Neighbourhood Teams,Premises,Removal Of Workplace Waste,126,28/12/2018,1812-00312,0.00,110.00,R,Acumen Waste Services Ltd,No
Http://opendatacommunities.org/id/metropolitan-district-council/leeds,Leeds City Council,31/12/2018,Communities and Environment,Cleaner Neighbourhood Teams,Premises,Removal Of Workplace Waste,126,28/12/2018,1812-00313,0.00,110.00,R,Acumen Waste Services Ltd,No
Http://opendatacommunities.org/id/metropolitan-district-council/leeds,Leeds City Council,31/12/2018,Communities and Environment,Cleaner Neighbourhood Teams,Premises,Removal Of Workplace Waste,126,28/12/2018,1812-00314,0.00,110.00,R,Acumen Waste Services Ltd,No
Http://opendatacommunities.org/id/metropolitan-district-council/leeds,Leeds City Council,31/12/2018,Communities and Environment,Cleaner Neighbourhood Teams,Premises,Removal Of Workplace Waste,126,28/12/2018,1812-00315,0.00,110.00,R,Acumen Waste Services Ltd,No
Http://opendatacommunities.org/id/metropolitan-district-council/leeds,Leeds City Council,31/12/2018,Communities and Environment,Cleaner Neighbourhood Teams,Premises,Removal Of Workplace Waste,126,28/12/2018,1812-00316,0.00,110.00,R,Acumen Waste Services Ltd,No
Http://opendatacommunities.org/id/metropolitan-district-council/leeds,Leeds City Council,31/12/2018,Communities and Environment,Cleaner Neighbourhood Teams,Premises,Removal Of Workplace Waste,126,28/12/2018,1812-00317,0.00,110.00,R,Acumen Waste Services Ltd,No
Http://opendatacommunities.org/id/metropolitan-district-council/leeds,Leeds City Council,31/12/2018,Communities and Environment,Cleaner Neighbourhood Teams,Premises,Removal Of Workplace Waste,126,28/12/2018,1812-00318,0.00,110.00,R,Acumen Waste Services Ltd,No
Http://opendatacommunities.org/id/metropolitan-district-council/leeds,Leeds City Council,31/12/2018,Communities and Environment,Cleaner Neighbourhood Teams,Premises,Removal Of Workplace Waste,126,28/12/2018,1812-00319,0.00,110.00,R,Acumen Waste Services Ltd,No
Http://opendatacommunities.org/id/metropolitan-district-council/leeds,Leeds City Council,31/12/2018,Communities and Environment,Parks and Countryside,Supplies and Services,Resaleable Materials,204,04/12/2018,1812-00320,0.00,185.00,R,Acushnet Europe Limited,No
Http://opendatacommunities.org/id/metropolitan-district-council/leeds,Leeds City Council,31/12/2018,Resources and Housing,Shared Services,Supplies and Services,Operational Materials,205,21/12/2018,1812-00321,0.00,705.00,R,Ad3 Envelope Printers Limited,No
Http://opendatacommunities.org/id/metropolitan-district-council/leeds,Leeds City Council,31/12/2018,Resources and Housing,Shared Services,Supplies and Services,Other Hired And Contracted Services,265,28/12/2018,1812-00322,0.00,96.44,R,Ad3 Envelope Printers Limited,No
Http://opendatacommunities.org/id/metropolitan-district-council/leeds,Leeds City Council,31/12/2018,Children and Families,Social Care,Transfer Payments,Leaving Care Allowances,634,14/12/2018,1812-00323,0.00,50.00,R,REDACTED PERSONAL DATA,No
Http://opendatacommunities.org/id/metropolitan-district-council/leeds,Leeds City Council,31/12/2018,Resources and Housing,Strategic Housing Partnerships,Capital,Construction,3,14/12/2018,1812-00324,0.00,11351.97,C,Adam Mackenzie,No
Http://opendatacommunities.org/id/metropolitan-district-council/leeds,Leeds City Council,31/12/2018,Adults and Health,Services For Older People - 65 And Over,Third Party Payments,Nursing Home,570,12/12/2018,1812-00325,0.00,3897.12,R,Adbolton Hall,No
Http://opendatacommunities.org/id/metropolitan-district-council/leeds,Leeds City Council,31/12/2018,Resources and Housing,Sustainable Energy & Climate Change,Capital,Other Costs,7,31/12/2018,1812-00326,0.00,9316.00,C,Addleshaw Goddard Llp,No
Http://opendatacommunities.org/id/metropolitan-district-council/leeds,Leeds City Council,31/12/2018,Resources and Housing,Human Resources,Employees,Occupational Health,85,14/12/2018,1812-00327,0.00,80.00,R,Addlestone & Partners,No
Http://opendatacommunities.org/id/metropolitan-district-council/leeds,Leeds City Council,31/12/2018,Communities and Environment,Parks and Countryside,Premises,Rents,141,06/12/2018,1812-00328,0.00,5783.79,R,Addplant Limited,No
Http://opendatacommunities.org/id/metropolitan-district-council/leeds,Leeds City Council,31/12/2018,Strategic Accounts,Miscellaneous,Supplies and Services,Non-Recurring Grants,227,03/12/2018,1812-00329,0.00,70.00,R,Adel Association,No
Http://opendatacommunities.org/id/metropolitan-district-council/leeds,Leeds City Council,31/12/2018,Children and Families,Social Care,Third Party Payments,Services Rendered By Voluntary Sector,505,21/12/2018,1812-00330,0.00,4239.37,R,Adel Pre School,No
Http://opendatacommunities.org/id/metropolitan-district-council/leeds,Leeds City Council,31/12/2018,Children and Families,Social Care,Third Party Payments,Section 17,551,07/12/2018,1812-00331,0.00,151.80,R,REDACTED PERSONAL DATA,No
Http://opendatacommunities.org/id/metropolitan-district-council/leeds,Leeds City Council,31/12/2018,Children and Families,Social Care,Third Party Payments,Section 17,551,14/12/2018,1812-00332,0.00,151.80,R,REDACTED PERSONAL DATA,No
Http://opendatacommunities.org/id/metropolitan-district-council/leeds,Leeds City Council,31/12/2018,Children and Families,Social Care,Third Party Payments,Section 17,551,21/12/2018,1812-00333,0.00,151.80,R,REDACTED PERSONAL DATA,No
Http://opendatacommunities.org/id/metropolitan-district-council/leeds,Leeds City Council,31/12/2018,Children and Families,Social Care,Third Party Payments,Section 17,551,19/12/2018,1812-00334,0.00,450.00,R,REDACTED PERSONAL DATA,No
Http://opendatacommunities.org/id/metropolitan-district-council/leeds,Leeds City Council,31/12/2018,Children and Families,Social Care,Third Party Payments,Services Rendered By Other Organisations,511,21/12/2018,1812-00335,0.00,223.12,R,REDACTED PERSONAL DATA,No
Http://opendatacommunities.org/id/metropolitan-district-council/leeds,Leeds City Council,31/12/2018,Children and Families,Social Care,Third Party Payments,Services Rendered By Other Organisations,511,21/12/2018,1812-00336,0.00,229.50,R,REDACTED PERSONAL DATA,No
Http://opendatacommunities.org/id/metropolitan-district-council/leeds,Leeds City Council,31/12/2018,Children and Families,Social Care,Third Party Payments,Services Rendered By Other Organisations,511,21/12/2018,1812-00337,0.00,357.00,R,REDACTED PERSONAL DATA,No
Http://opendatacommunities.org/id/metropolitan-district-council/leeds,Leeds City Council,31/12/2018,Adults and Health,Services For Older People - 65 And Over,Third Party Payments,Nursing Home,570,12/12/2018,1812-00338,0.00,1184.76,R,Aden House,No
Http://opendatacommunities.org/id/metropolitan-district-council/leeds,Leeds City Council,31/12/2018,Resources and Housing,Leeds Building Services,Supplies and Services,Operational Materials,205,14/12/2018,1812-00339,0.00,34.50,R,Adi Global,No
Http://opendatacommunities.org/id/metropolitan-district-council/leeds,Leeds City Council,31/12/2018,Resources and Housing,Leeds Building Services,Supplies and Services,Operational Materials,205,14/12/2018,1812-00340,0.00,98.40,R,Adi Global,No
Http://opendatacommunities.org/id/metropolitan-district-council/leeds,Leeds City Council,31/12/2018,Resources and Housing,Leeds Building Services,Supplies and Services,Operational Materials,205,14/12/2018,1812-00341,0.00,17.38,R,Adi Global,No
Http://opendatacommunities.org/id/metropolitan-district-council/leeds,Leeds City Council,31/12/2018,Resources and Housing,Leeds Building Services,Supplies and Services,Operational Materials,205,19/12/2018,1812-00342,0.00,119.06,R,Adi Global,No
Http://opendatacommunities.org/id/metropolitan-district-council/leeds,Leeds City Council,31/12/2018,Resources and Housing,Leeds Building Services,Supplies and Services,Operational Materials,205,20/12/2018,1812-00343,0.00,41063.35,R,Adi Global,No
Http://opendatacommunities.org/id/metropolitan-district-council/leeds,Leeds City Council,31/12/2018,Resources and Housing,Leeds Building Services,Supplies and Services,Operational Materials,205,24/12/2018,1812-00344,0.00,57.75,R,Adi Global,No
Http://opendatacommunities.org/id/metropolitan-district-council/leeds,Leeds City Council,31/12/2018,Communities and Environment,Community Safety  ,Supplies and Services,Other Hired And Contracted Services,265,23/11/2018,1812-00345,0.00,510.95,R,Adi-Gardiner Ltd,Yes
Http://opendatacommunities.org/id/metropolitan-district-council/leeds,Leeds City Council,31/12/2018,Adults and Health,Services For Older People - 65 And Over,Third Party Payments,Home Care,568,03/12/2018,1812-00346,0.00,16468.75,R,Adjuvo,No
Http://opendatacommunities.org/id/metropolitan-district-council/leeds,Leeds City Council,31/12/2018,Adults and Health,Services For Older People Under 65 P/Dis,Third Party Payments,Home Care,568,03/12/2018,1812-00347,0.00,2074.00,R,Adjuvo,No
Http://opendatacommunities.org/id/metropolitan-district-council/leeds,Leeds City Council,31/12/2018,Adults and Health,Services For Older People - 65 And Over,Third Party Payments,Home Care,568,03/12/2018,1812-00348,0.00,5144.00,R,Adjuvo,No
Http://opendatacommunities.org/id/metropolitan-district-council/leeds,Leeds City Council,31/12/2018,Adults and Health,Services For Adults Under 65 Mental/Dis,Third Party Payments,Home Care,568,05/12/2018,1812-00349,0.00,240.00,R,Adjuvo,No
Http://opendatacommunities.org/id/metropolitan-district-council/leeds,Leeds City Council,31/12/2018,City Development,Libraries  Arts & Heritage  ,Supplies and Services,Computer Software & Equipment,214,08/11/2018,1812-00350,0.00,947.88,R,Adobe Products,Yes
Http://opendatacommunities.org/id/metropolitan-district-council/leeds,Leeds City Council,31/12/2018,Children and Families,Social Care,Third Party Payments,Independent Fostering Agencies,509,12/12/2018,1812-00351,0.00,2945.00,R,Adolescent And Childrens Trust,No
Http://opendatacommunities.org/id/metropolitan-district-council/leeds,Leeds City Council,31/12/2018,Children and Families,Social Care,Third Party Payments,Independent Fostering Agencies,509,12/12/2018,1812-00352,0.00,2945.00,R,Adolescent And Childrens Trust,No
Http://opendatacommunities.org/id/metropolitan-district-council/leeds,Leeds City Council,31/12/2018,Children and Families,Social Care,Third Party Payments,Independent Fostering Agencies,509,12/12/2018,1812-00353,0.00,2945.00,R,Adolescent And Childrens Trust,No
Http://opendatacommunities.org/id/metropolitan-district-council/leeds,Leeds City Council,31/12/2018,Children and Families,Social Care,Third Party Payments,Independent Fostering Agencies,509,12/12/2018,1812-00354,0.00,3193.00,R,Adolescent And Childrens Trust,No
Http://opendatacommunities.org/id/metropolitan-district-council/leeds,Leeds City Council,31/12/2018,Children and Families,Social Care,Third Party Payments,Independent Fostering Agencies,509,12/12/2018,1812-00355,0.00,3193.00,R,Adolescent And Childrens Trust,No
Http://opendatacommunities.org/id/metropolitan-district-council/leeds,Leeds City Council,31/12/2018,Children and Families,Social Care,Third Party Payments,Independent Fostering Agencies,509,12/12/2018,1812-00356,0.00,3129.14,R,Adolescent And Childrens Trust,No
Http://opendatacommunities.org/id/metropolitan-district-council/leeds,Leeds City Council,31/12/2018,Children and Families,Social Care,Third Party Payments,Independent Fostering Agencies,509,12/12/2018,1812-00357,0.00,2624.44,R,Adolescent And Childrens Trust,No
Http://opendatacommunities.org/id/metropolitan-district-council/leeds,Leeds City Council,31/12/2018,Children and Families,Social Care,Third Party Payments,Independent Fostering Agencies,509,12/12/2018,1812-00358,0.00,2624.44,R,Adolescent And Childrens Trust,No
Http://opendatacommunities.org/id/metropolitan-district-council/leeds,Leeds City Council,31/12/2018,Children and Families,Social Care,Third Party Payments,Independent Fostering Agencies,509,12/12/2018,1812-00359,0.00,2943.82,R,Adolescent And Childrens Trust,No
Http://opendatacommunities.org/id/metropolitan-district-council/leeds,Leeds City Council,31/12/2018,Children and Families,Social Care,Third Party Payments,Placement Support,550,14/12/2018,1812-00360,0.00,142.86,R,REDACTED PERSONAL DATA,No
Http://opendatacommunities.org/id/metropolitan-district-council/leeds,Leeds City Council,31/12/2018,Strategic Landlord,Property and Contracts,Premises,Maintenance Of Buildings,101,12/12/2018,1812-00361,0.00,453.80,R,Adt Fire And Security Plc,No
Http://opendatacommunities.org/id/metropolitan-district-council/leeds,Leeds City Council,31/12/2018,Strategic Landlord,Property and Contracts,Premises,Maintenance Of Buildings,101,12/12/2018,1812-00362,0.00,116.00,R,Adt Fire And Security Plc,No
Http://opendatacommunities.org/id/metropolitan-district-council/leeds,Leeds City Council,31/12/2018,Resources and Housing,Corporate Property Management,Premises,Maintenance Of Buildings,101,13/12/2018,1812-00363,0.00,159.00,R,Adt Fire And Security Plc,No
Http://opendatacommunities.org/id/metropolitan-district-council/leeds,Leeds City Council As Accountable Body,31/12/2018,Social Services Pooled Budgets,Jcs For People With Learning Disabilitie,Third Party Payments,Sheltered Accommodation,569,07/12/2018,1812-00364,0.00,332.99,R,Adult Placement Services,No
Http://opendatacommunities.org/id/metropolitan-district-council/leeds,Leeds City Council As Accountable Body,31/12/2018,Social Services Pooled Budgets,Jcs For People With Learning Disabilitie,Third Party Payments,Sheltered Accommodation,569,21/12/2018,1812-00365,0.00,237.85,R,Adult Placement Services,No
Http://opendatacommunities.org/id/metropolitan-district-council/leeds,Leeds City Council,31/12/2018,City Development,Libraries  Arts & Heritage,Supplies and Services,External Audit Fees,261,04/12/2018,1812-00366,0.00,90.00,R,Advance Stocks Ltd,No
Http://opendatacommunities.org/id/metropolitan-district-council/leeds,Leeds City Council,31/12/2018,City Development,Libraries  Arts & Heritage,Supplies and Services,External Audit Fees,261,04/12/2018,1812-00367,0.00,85.00,R,Advance Stocks Ltd,No
Http://opendatacommunities.org/id/metropolitan-district-council/leeds,Leeds City Council,31/12/2018,City Development,Recreation,Supplies and Services,External Audit Fees,261,12/12/2018,1812-00368,0.00,135.00,R,Advance Stocks Ltd,No
Http://opendatacommunities.org/id/metropolitan-district-council/leeds,Leeds City Council,31/12/2018,Resources and Housing,Leeds Building Services,Supplies and Services,Operational Materials,205,10/12/2018,1812-00369,0.00,133.98,R,Advanced Labelling Limited,No
Http://opendatacommunities.org/id/metropolitan-district-council/leeds,Leeds City Council,31/12/2018,Resources and Housing,Leeds Building Services,Supplies and Services,Operational Materials,205,14/12/2018,1812-00370,0.00,289.92,R,Advanced Labelling Limited,No
Http://opendatacommunities.org/id/metropolitan-district-council/leeds,Leeds City Council As Accountable Body,31/12/2018,Social Services Pooled Budgets,Jcs For People With Learning Disabilitie,Third Party Payments,Residential,580,12/12/2018,1812-00371,0.00,17782.08,R,Advitam Ltd,No
Http://opendatacommunities.org/id/metropolitan-district-council/leeds,Leeds City Council,31/12/2018,Adults and Health,Social Services Support Services,Employees,Training & Development,70,07/12/2018,1812-00372,0.00,1380.00,R,Advonet,No
Http://opendatacommunities.org/id/metropolitan-district-council/leeds,Leeds City Council,31/12/2018,Adults and Health,Services For Older People - 65 And Over,Third Party Payments,Payments To Voluntary Organisations,561,28/12/2018,1812-00373,0.00,103916.67,R,Advonet,No
Http://opendatacommunities.org/id/metropolitan-district-council/leeds,Leeds City Council,31/12/2018,City Development,Highways,Capital,Other Costs,7,17/12/2018,1812-00374,0.00,4135.00,C,Aecom Limited,No
Http://opendatacommunities.org/id/metropolitan-district-council/leeds,Leeds City Council,31/12/2018,City Development,Highways,Capital,Other Costs,7,27/12/2018,1812-00375,0.00,24777.31,C,Aecom Limited,No
Http://opendatacommunities.org/id/metropolitan-district-council/leeds,Leeds City Council As Accountable Body,31/12/2018,Social Services Pooled Budgets,Jcs For People With Learning Disabilitie,Third Party Payments,Day Centre,564,05/12/2018,1812-00376,0.00,1440.00,R,Affinity Trust,No
Http://opendatacommunities.org/id/metropolitan-district-council/leeds,Leeds City Council As Accountable Body,31/12/2018,Social Services Pooled Budgets,Jcs For People With Learning Disabilitie,Third Party Payments,Day Centre,564,05/12/2018,1812-00377,0.00,1050.66,R,Affinity Trust,No
Http://opendatacommunities.org/id/metropolitan-district-council/leeds,Leeds City Council As Accountable Body,31/12/2018,Social Services Pooled Budgets,Jcs For People With Learning Disabilitie,Third Party Payments,Home Care,568,05/12/2018,1812-00378,0.00,1050.00,R,Affinity Trust,No
Http://opendatacommunities.org/id/metropolitan-district-council/leeds,Leeds City Council As Accountable Body,31/12/2018,Social Services Pooled Budgets,Jcs For People With Learning Disabilitie,Third Party Payments,Home Care,568,05/12/2018,1812-00379,0.00,631.98,R,Affinity Trust,No
Http://opendatacommunities.org/id/metropolitan-district-council/leeds,Leeds City Council As Accountable Body,31/12/2018,Social Services Pooled Budgets,Jcs For People With Learning Disabilitie,Third Party Payments,Home Care,568,05/12/2018,1812-00380,0.00,1170.00,R,Affinity Trust,No
Http://opendatacommunities.org/id/metropolitan-district-council/leeds,Leeds City Council As Accountable Body,31/12/2018,Social Services Pooled Budgets,Jcs For People With Learning Disabilitie,Third Party Payments,Home Care,568,05/12/2018,1812-00381,0.00,2752.80,R,Affinity Trust,No
Http://opendatacommunities.org/id/metropolitan-district-council/leeds,Leeds City Council As Accountable Body,31/12/2018,Social Services Pooled Budgets,Jcs For People With Learning Disabilitie,Third Party Payments,Home Care,568,05/12/2018,1812-00382,0.00,2011.20,R,Affinity Trust,No
Http://opendatacommunities.org/id/metropolitan-district-council/leeds,Leeds City Council As Accountable Body,31/12/2018,Social Services Pooled Budgets,Jcs For People With Learning Disabilitie,Third Party Payments,Day Centre,564,05/12/2018,1812-00383,0.00,402.24,R,Affinity Trust,No
Http://opendatacommunities.org/id/metropolitan-district-council/leeds,Leeds City Council As Accountable Body,31/12/2018,Social Services Pooled Budgets,Jcs For People With Learning Disabilitie,Third Party Payments,Home Care,568,05/12/2018,1812-00384,0.00,1481.45,R,Affinity Trust,No
Http://opendatacommunities.org/id/metropolitan-district-council/leeds,Leeds City Council As Accountable Body,31/12/2018,Social Services Pooled Budgets,Jcs For People With Learning Disabilitie,Third Party Payments,Home Care,568,05/12/2018,1812-00385,0.00,1741.32,R,Affinity Trust,No
Http://opendatacommunities.org/id/metropolitan-district-council/leeds,Leeds City Council As Accountable Body,31/12/2018,Social Services Pooled Budgets,Jcs For People With Learning Disabilitie,Third Party Payments,Home Care,568,05/12/2018,1812-00386,0.00,1005.60,R,Affinity Trust,No
Http://opendatacommunities.org/id/metropolitan-district-council/leeds,Leeds City Council,31/12/2018,Adults and Health,Services For Older People Under 65 P/Dis,Third Party Payments,Home Care,568,05/12/2018,1812-00387,0.00,319.60,R,Affinity Trust,No
Http://opendatacommunities.org/id/metropolitan-district-council/leeds,Leeds City Council As Accountable Body,31/12/2018,Social Services Pooled Budgets,Jcs For People With Learning Disabilitie,Third Party Payments,Home Care,568,07/12/2018,1812-00388,0.00,1065.33,R,Affinity Trust,No
Http://opendatacommunities.org/id/metropolitan-district-council/leeds,Leeds City Council As Accountable Body,31/12/2018,Social Services Pooled Budgets,Jcs For People With Learning Disabilitie,Third Party Payments,Home Care,568,07/12/2018,1812-00389,0.00,804.48,R,Affinity Trust,No
Http://opendatacommunities.org/id/metropolitan-district-council/leeds,Leeds City Council,31/12/2018,Adults and Health,Services For Older People Under 65 P/Dis,Third Party Payments,Home Care,568,07/12/2018,1812-00390,0.00,526.68,R,Affinity Trust,No
Http://opendatacommunities.org/id/metropolitan-district-council/leeds,Leeds City Council,31/12/2018,Adults and Health,Assessment And Care Management,Third Party Payments,Home Care,568,07/12/2018,1812-00391,0.00,511.36,R,Affinity Trust,No
Http://opendatacommunities.org/id/metropolitan-district-council/leeds,Leeds City Council,31/12/2018,Adults and Health,Services For Older People Under 65 P/Dis,Third Party Payments,Home Care,568,07/12/2018,1812-00392,0.00,639.16,R,Affinity Trust,No
Http://opendatacommunities.org/id/metropolitan-district-council/leeds,Leeds City Council,31/12/2018,Adults and Health,Services For Older People - 65 And Over,Third Party Payments,Home Care,568,07/12/2018,1812-00393,0.00,431.46,R,Affinity Trust,No
Http://opendatacommunities.org/id/metropolitan-district-council/leeds,Leeds City Council,31/12/2018,Adults and Health,Services For Older People Under 65 P/Dis,Third Party Payments,Home Care,568,28/12/2018,1812-00394,0.00,319.60,R,Affinity Trust,No
Http://opendatacommunities.org/id/metropolitan-district-council/leeds,Leeds City Council,31/12/2018,Adults and Health,Services For Older People Under 65 P/Dis,Third Party Payments,Home Care,568,28/12/2018,1812-00395,0.00,2181.27,R,Affinity Trust,No
Http://opendatacommunities.org/id/metropolitan-district-council/leeds,Leeds City Council As Accountable Body,31/12/2018,Social Services Pooled Budgets,Jcs For People With Learning Disabilitie,Third Party Payments,Home Care,568,31/12/2018,1812-00396,0.00,525.72,R,Affinity Trust,No
Http://opendatacommunities.org/id/metropolitan-district-council/leeds,Leeds City Council As Accountable Body,31/12/2018,Social Services Pooled Budgets,Jcs For People With Learning Disabilitie,Third Party Payments,Day Centre,564,31/12/2018,1812-00397,0.00,2055.60,R,Affinity Trust,No
Http://opendatacommunities.org/id/metropolitan-district-council/leeds,Leeds City Council As Accountable Body,31/12/2018,Social Services Pooled Budgets,Jcs For People With Learning Disabilitie,Third Party Payments,Home Care,568,31/12/2018,1812-00398,0.00,360.00,R,Affinity Trust,No
Http://opendatacommunities.org/id/metropolitan-district-council/leeds,Leeds City Council As Accountable Body,31/12/2018,Social Services Pooled Budgets,Jcs For People With Learning Disabilitie,Third Party Payments,Day Centre,564,31/12/2018,1812-00399,0.00,714.78,R,Affinity Trust,No
Http://opendatacommunities.org/id/metropolitan-district-council/leeds,Leeds City Council As Accountable Body,31/12/2018,Social Services Pooled Budgets,Jcs For People With Learning Disabilitie,Third Party Payments,Day Centre,564,31/12/2018,1812-00400,0.00,2346.40,R,Affinity Trust,No
Http://opendatacommunities.org/id/metropolitan-district-council/leeds,Leeds City Council As Accountable Body,31/12/2018,Social Services Pooled Budgets,Jcs For People With Learning Disabilitie,Third Party Payments,Day Centre,564,31/12/2018,1812-00401,0.00,1293.30,R,Affinity Trust,No
Http://opendatacommunities.org/id/metropolitan-district-council/leeds,Leeds City Council As Accountable Body,31/12/2018,Social Services Pooled Budgets,Jcs For People With Learning Disabilitie,Third Party Payments,Home Care,568,31/12/2018,1812-00402,0.00,1548.89,R,Affinity Trust,No
Http://opendatacommunities.org/id/metropolitan-district-council/leeds,Leeds City Council As Accountable Body,31/12/2018,Social Services Pooled Budgets,Jcs For People With Learning Disabilitie,Third Party Payments,Day Centre,564,31/12/2018,1812-00403,0.00,2031.48,R,Affinity Trust,No
Http://opendatacommunities.org/id/metropolitan-district-council/leeds,Leeds City Council,31/12/2018,Adults and Health,Services For Older People - 65 And Over,Third Party Payments,Home Care,568,31/12/2018,1812-00404,0.00,495.38,R,Affinity Trust,No
Http://opendatacommunities.org/id/metropolitan-district-council/leeds,Leeds City Council As Accountable Body,31/12/2018,Social Services Pooled Budgets,Jcs For People With Learning Disabilitie,Third Party Payments,Home Care,568,31/12/2018,1812-00405,0.00,2752.80,R,Affinity Trust,No
Http://opendatacommunities.org/id/metropolitan-district-council/leeds,Leeds City Council As Accountable Body,31/12/2018,Social Services Pooled Budgets,Jcs For People With Learning Disabilitie,Third Party Payments,Sheltered Accommodation,569,12/12/2018,1812-00406,0.00,144364.30,R,Affinity Trust North Divisional Office,No
Http://opendatacommunities.org/id/metropolitan-district-council/leeds,Leeds City Council,31/12/2018,Communities and Environment,Parks And Countryside  ,Transport,External Hire -Occasional,304,06/11/2018,1812-00407,0.00,1900.00,R,Afi Uplift,Yes
Http://opendatacommunities.org/id/metropolitan-district-council/leeds,Leeds City Council,31/12/2018,Communities and Environment,Parks And Countryside  ,Transport,External Hire -Occasional,304,06/11/2018,1812-00408,0.00,1900.00,R,Afi Uplift,Yes
Http://opendatacommunities.org/id/metropolitan-district-council/leeds,Leeds City Council,31/12/2018,Communities and Environment,Parks and Countryside,Supplies and Services,Other Hired And Contracted Services,265,11/12/2018,1812-00409,0.00,525.00,R,Afi-Uplift Limited,No
Http://opendatacommunities.org/id/metropolitan-district-council/leeds,Leeds City Council,31/12/2018,Communities and Environment,Parks and Countryside,Supplies and Services,Other Hired And Contracted Services,265,11/12/2018,1812-00410,0.00,525.00,R,Afi-Uplift Limited,No
Http://opendatacommunities.org/id/metropolitan-district-council/leeds,Leeds City Council,31/12/2018,Communities and Environment,Parks and Countryside,Supplies and Services,Other Hired And Contracted Services,265,11/12/2018,1812-00411,0.00,525.00,R,Afi-Uplift Limited,No
Http://opendatacommunities.org/id/metropolitan-district-council/leeds,Leeds City Council,31/12/2018,Resources and Housing,Commercial Services,Supplies and Services,Compensation Claims,200,17/12/2018,1812-00412,0.00,658.66,R,Afzana Shan,No
Http://opendatacommunities.org/id/metropolitan-district-council/leeds,Leeds City Council,31/12/2018,City Development,Recreation,Supplies and Services,Other Hired And Contracted Services,265,28/12/2018,1812-00413,0.00,2513.74,R,Age Uk Leeds,No
Http://opendatacommunities.org/id/metropolitan-district-council/leeds,Leeds City Council,31/12/2018,Adults and Health,Services For Older People - 65 And Over,Third Party Payments,Payments To Voluntary Organisations,561,31/12/2018,1812-00414,0.00,10599.75,R,Age Uk Leeds,No
Http://opendatacommunities.org/id/metropolitan-district-council/leeds,Leeds City Council,31/12/2018,City Development,Libraries  Arts & Heritage,Supplies and Services,Bought In Professional Services,277,12/12/2018,1812-00415,0.00,150.00,R,Agere Learning,No
Http://opendatacommunities.org/id/metropolitan-district-council/leeds,Leeds City Council,31/12/2018,City Development,Libraries  Arts & Heritage,Supplies and Services,Bought In Professional Services,277,24/12/2018,1812-00416,0.00,1000.00,R,Agere Learning,No
Http://opendatacommunities.org/id/metropolitan-district-council/leeds,Leeds City Council,31/12/2018,City Development,Highways,Capital,Construction,3,18/12/2018,1812-00417,0.00,52395.96,C,Aggregate Industries Uk Ltd,No
Http://opendatacommunities.org/id/metropolitan-district-council/leeds,Leeds City Council,31/12/2018,City Development,Libraries  Arts & Heritage,Supplies and Services,Other Hired And Contracted Services,265,21/12/2018,1812-00418,0.00,2500.00,R,Agnis Smallwood,No
Http://opendatacommunities.org/id/metropolitan-district-council/leeds,Leeds City Council,31/12/2018,City Development,Libraries  Arts & Heritage,Supplies and Services,Other Hired And Contracted Services,265,24/12/2018,1812-00419,0.00,239.00,R,Agnis Smallwood,No
Http://opendatacommunities.org/id/metropolitan-district-council/leeds,Leeds City Council As Accountable Body,31/12/2018,Social Services Pooled Budgets,Leeds Community Equip Store Pooled Budgt,Supplies and Services,Other Equipment,203,07/12/2018,1812-00420,0.00,256.50,R,Aidapt Bathrooms Ltd,No
Http://opendatacommunities.org/id/metropolitan-district-council/leeds,Leeds City Council As Accountable Body,31/12/2018,Social Services Pooled Budgets,Leeds Community Equip Store Pooled Budgt,Supplies and Services,Other Equipment,203,14/12/2018,1812-00421,0.00,110.00,R,Aidapt Bathrooms Ltd,No
Http://opendatacommunities.org/id/metropolitan-district-council/leeds,Leeds City Council As Accountable Body,31/12/2018,Social Services Pooled Budgets,Leeds Community Equip Store Pooled Budgt,Supplies and Services,Other Equipment,203,14/12/2018,1812-00422,0.00,944.55,R,Aidapt Bathrooms Ltd,No
Http://opendatacommunities.org/id/metropolitan-district-council/leeds,Leeds City Council As Accountable Body,31/12/2018,Social Services Pooled Budgets,Leeds Community Equip Store Pooled Budgt,Supplies and Services,Other Equipment,203,19/12/2018,1812-00423,0.00,849.70,R,Aidapt Bathrooms Ltd,No
Http://opendatacommunities.org/id/metropolitan-district-council/leeds,Leeds City Council As Accountable Body,31/12/2018,Social Services Pooled Budgets,Leeds Community Equip Store Pooled Budgt,Supplies and Services,Other Equipment,203,19/12/2018,1812-00424,0.00,300.00,R,Aidapt Bathrooms Ltd,No
Http://opendatacommunities.org/id/metropolitan-district-council/leeds,Leeds City Council As Accountable Body,31/12/2018,Social Services Pooled Budgets,Leeds Community Equip Store Pooled Budgt,Supplies and Services,Other Equipment,203,28/12/2018,1812-00425,0.00,920.80,R,Aidapt Bathrooms Ltd,No
Http://opendatacommunities.org/id/metropolitan-district-council/leeds,Leeds City Council As Accountable Body,31/12/2018,Social Services Pooled Budgets,Leeds Community Equip Store Pooled Budgt,Supplies and Services,Other Equipment,203,28/12/2018,1812-00426,0.00,6734.10,R,Aidapt Bathrooms Ltd,No
Http://opendatacommunities.org/id/metropolitan-district-council/leeds,Leeds City Council As Accountable Body,31/12/2018,Social Services Pooled Budgets,Leeds Community Equip Store Pooled Budgt,Supplies and Services,Other Equipment,203,28/12/2018,1812-00427,0.00,37.20,R,Aidapt Bathrooms Ltd,No
Http://opendatacommunities.org/id/metropolitan-district-council/leeds,Leeds City Council As Accountable Body,31/12/2018,Social Services Pooled Budgets,Jcs For People With Learning Disabilitie,Transfer Payments,Direct Payments,626,21/12/2018,1812-00428,0.00,3138.53,R,REDACTED PERSONAL DATA,No
Http://opendatacommunities.org/id/metropolitan-district-council/leeds,Leeds City Council,31/12/2018,City Development,Libraries  Arts & Heritage,Supplies and Services,Other Hired And Contracted Services,265,07/12/2018,1812-00429,0.00,210.00,R,Aimee Grundell,No
Http://opendatacommunities.org/id/metropolitan-district-council/leeds,Leeds City Council,31/12/2018,City Development,Highways,Supplies and Services,Computer Software & Equipment,214,13/12/2018,1812-00430,0.00,17890.00,R,Aimsun Ltd,No
Http://opendatacommunities.org/id/metropolitan-district-council/leeds,Leeds City Council,31/12/2018,City Development,Libraries  Arts & Heritage,Supplies and Services,Other Hired And Contracted Services,265,04/12/2018,1812-00431,0.00,120.00,R,Ainsley Johns,No
Http://opendatacommunities.org/id/metropolitan-district-council/leeds,Leeds City Council,31/12/2018,Resources and Housing,Leeds Building Services,Supplies and Services,Operational Materials,205,05/12/2018,1812-00432,0.00,7.34,R,Air Conditioning Accessories,No
Http://opendatacommunities.org/id/metropolitan-district-council/leeds,Leeds City Council,31/12/2018,Resources and Housing,Leeds Building Services,Supplies and Services,Operational Materials,205,05/12/2018,1812-00433,0.00,687.71,R,Air Conditioning Accessories,No
Http://opendatacommunities.org/id/metropolitan-district-council/leeds,Leeds City Council,31/12/2018,Resources and Housing,Leeds Building Services,Supplies and Services,Operational Materials,205,14/12/2018,1812-00434,0.00,512.90,R,Air Conditioning Accessories,No
Http://opendatacommunities.org/id/metropolitan-district-council/leeds,Leeds City Council,31/12/2018,Resources and Housing,Leeds Building Services,Supplies and Services,Operational Materials,205,14/12/2018,1812-00435,0.00,94.79,R,Air Conditioning Accessories,No
Http://opendatacommunities.org/id/metropolitan-district-council/leeds,Leeds City Council,31/12/2018,Resources and Housing,Leeds Building Services,Supplies and Services,Operational Materials,205,21/12/2018,1812-00436,0.00,1233.60,R,Air Conditioning Accessories,No
Http://opendatacommunities.org/id/metropolitan-district-council/leeds,Leeds City Council,31/12/2018,Resources and Housing,Leeds Building Services,Supplies and Services,Operational Materials,205,21/12/2018,1812-00437,0.00,73.46,R,Air Conditioning Accessories,No
Http://opendatacommunities.org/id/metropolitan-district-council/leeds,Leeds City Council,31/12/2018,Resources and Housing,Commercial Services  ,Supplies and Services,Operational Materials,205,01/11/2018,1812-00438,0.00,166.68,R,Air Force Pneumati,Yes
Http://opendatacommunities.org/id/metropolitan-district-council/leeds,Leeds City Council,31/12/2018,Resources and Housing,Commercial Services  ,Supplies and Services,Operational Materials,205,06/11/2018,1812-00439,0.00,132.57,R,Air Force Pneumati,Yes
Http://opendatacommunities.org/id/metropolitan-district-council/leeds,Leeds City Council,31/12/2018,Resources and Housing,Commercial Services  ,Supplies and Services,Operational Materials,205,07/11/2018,1812-00440,0.00,123.00,R,Air Force Pneumati,Yes
Http://opendatacommunities.org/id/metropolitan-district-council/leeds,Leeds City Council,31/12/2018,Communities and Environment,Environmental Health,Supplies and Services,Other Hired And Contracted Services,265,07/12/2018,1812-00441,0.00,9.86,R,Air Liquide Uk,No
Http://opendatacommunities.org/id/metropolitan-district-council/leeds,Leeds City Council,31/12/2018,Communities and Environment,Environmental Health,Supplies and Services,Other Hired And Contracted Services,265,07/12/2018,1812-00442,0.00,9.86,R,Air Liquide Uk,No
Http://opendatacommunities.org/id/metropolitan-district-council/leeds,Leeds City Council,31/12/2018,Communities and Environment,Environmental Health,Supplies and Services,Other Hired And Contracted Services,265,07/12/2018,1812-00443,0.00,15.03,R,Air Liquide Uk,No
Http://opendatacommunities.org/id/metropolitan-district-council/leeds,Leeds City Council,31/12/2018,Communities and Environment,Environmental Health,Supplies and Services,Other Hired And Contracted Services,265,07/12/2018,1812-00444,0.00,69.02,R,Air Liquide Uk,No
Http://opendatacommunities.org/id/metropolitan-district-council/leeds,Leeds City Council,31/12/2018,Resources and Housing,Leeds Building Services,Supplies and Services,Operational Materials,205,13/12/2018,1812-00445,0.00,180.88,R,Air Liquide Uk,No
Http://opendatacommunities.org/id/metropolitan-district-council/leeds,Leeds City Council,31/12/2018,Resources and Housing,Leeds Building Services,Supplies and Services,Operational Materials,205,28/12/2018,1812-00446,0.00,201.57,R,Air Liquide Uk,No
Http://opendatacommunities.org/id/metropolitan-district-council/leeds,Leeds City Council,31/12/2018,City Development,Libraries  Arts & Heritage,Supplies and Services,Non-Recurring Grants,227,24/12/2018,1812-00447,0.00,10000.00,R,Aire Place Studios Cic,No
Http://opendatacommunities.org/id/metropolitan-district-council/leeds,Leeds City Council,31/12/2018,Adults and Health,Services For Older People - 65 And Over,Third Party Payments,Residential Care Dementia,571,12/12/2018,1812-00448,0.00,53731.05,R,Aire View Residential Home,No
Http://opendatacommunities.org/id/metropolitan-district-council/leeds,Leeds City Council,31/12/2018,Adults and Health,Services For Older People - 65 And Over,Third Party Payments,Residential,580,12/12/2018,1812-00449,0.00,18312.81,R,Aire View Residential Home,No
Http://opendatacommunities.org/id/metropolitan-district-council/leeds,Leeds City Council,31/12/2018,Adults and Health,Services For Older People - 65 And Over,Third Party Payments,Residential Care Dementia,571,12/12/2018,1812-00450,0.00,4160.12,R,Airedale Care Home,No
Http://opendatacommunities.org/id/metropolitan-district-council/leeds,Leeds City Council,31/12/2018,Adults and Health,Services For Older People - 65 And Over,Third Party Payments,Residential,580,12/12/2018,1812-00451,0.00,36695.91,R,Airedale Care Home,No
Http://opendatacommunities.org/id/metropolitan-district-council/leeds,Leeds City Council,31/12/2018,Resources and Housing,Commercial Services,Supplies and Services,Operational Furniture And Equipment,203,14/12/2018,1812-00452,0.00,1330.00,R,Airedale Catering Equipment Ltd,No
Http://opendatacommunities.org/id/metropolitan-district-council/leeds,Leeds City Council,31/12/2018,Resources and Housing,Commercial Services,Supplies and Services,Operational Furniture And Equipment,203,28/12/2018,1812-00453,0.00,940.00,R,Airedale Catering Equipment Ltd,No
Http://opendatacommunities.org/id/metropolitan-district-council/leeds,Leeds City Council,31/12/2018,Resources and Housing,Commercial Services,Supplies and Services,Operational Materials,205,31/12/2018,1812-00454,0.00,4767.00,R,Airedale Catering Equipment Ltd,No
Http://opendatacommunities.org/id/metropolitan-district-council/leeds,Leeds City Council,31/12/2018,Resources and Housing,Commercial Services,Supplies and Services,Other Hired And Contracted Services,265,07/12/2018,1812-00455,0.00,225.00,R,Air-Weigh Europe Limited,No
Http://opendatacommunities.org/id/metropolitan-district-council/leeds,Leeds City Council,31/12/2018,Adults and Health,Services For Adults Under 65 Mental/Dis,Third Party Payments,Services Provided By Other NHS Bodies,522,07/12/2018,1812-00456,0.00,175.00,R,Ait Mitra Limited,No
Http://opendatacommunities.org/id/metropolitan-district-council/leeds,Leeds City Council,31/12/2018,Adults and Health,Services For Adults Under 65 Mental/Dis,Third Party Payments,Services Provided By Other NHS Bodies,522,07/12/2018,1812-00457,0.00,175.00,R,Ait Mitra Limited,No
Http://opendatacommunities.org/id/metropolitan-district-council/leeds,Leeds City Council,31/12/2018,Adults and Health,Services For Adults Under 65 Mental/Dis,Third Party Payments,Services Provided By Other NHS Bodies,522,07/12/2018,1812-00458,0.00,175.00,R,Ait Mitra Limited,No
Http://opendatacommunities.org/id/metropolitan-district-council/leeds,Leeds City Council,31/12/2018,Adults and Health,Services For Adults Under 65 Mental/Dis,Third Party Payments,Services Provided By Other NHS Bodies,522,07/12/2018,1812-00459,0.00,175.00,R,Ait Mitra Limited,No
Http://opendatacommunities.org/id/metropolitan-district-council/leeds,Leeds City Council,31/12/2018,Adults and Health,Services For Adults Under 65 Mental/Dis,Third Party Payments,Services Provided By Other NHS Bodies,522,07/12/2018,1812-00460,0.00,175.00,R,Ait Mitra Limited,No
Http://opendatacommunities.org/id/metropolitan-district-council/leeds,Leeds City Council,31/12/2018,Adults and Health,Services For Adults Under 65 Mental/Dis,Third Party Payments,Services Provided By Other NHS Bodies,522,07/12/2018,1812-00461,0.00,175.00,R,Ait Mitra Limited,No
Http://opendatacommunities.org/id/metropolitan-district-council/leeds,Leeds City Council,31/12/2018,Adults and Health,Services For Adults Under 65 Mental/Dis,Third Party Payments,Services Provided By Other NHS Bodies,522,07/12/2018,1812-00462,0.00,175.00,R,Ait Mitra Limited,No
Http://opendatacommunities.org/id/metropolitan-district-council/leeds,Leeds City Council,31/12/2018,Adults and Health,Services For Adults Under 65 Mental/Dis,Third Party Payments,Services Provided By Other NHS Bodies,522,07/12/2018,1812-00463,0.00,175.00,R,Ait Mitra Limited,No
Http://opendatacommunities.org/id/metropolitan-district-council/leeds,Leeds City Council,31/12/2018,Adults and Health,Services For Adults Under 65 Mental/Dis,Third Party Payments,Services Provided By Other NHS Bodies,522,07/12/2018,1812-00464,0.00,239.50,R,Ait Mitra Limited,No
Http://opendatacommunities.org/id/metropolitan-district-council/leeds,Leeds City Council,31/12/2018,Adults and Health,Services For Adults Under 65 Mental/Dis,Third Party Payments,Services Provided By Other NHS Bodies,522,07/12/2018,1812-00465,0.00,175.00,R,Ait Mitra Limited,No
Http://opendatacommunities.org/id/metropolitan-district-council/leeds,Leeds City Council,31/12/2018,Adults and Health,Services For Adults Under 65 Mental/Dis,Third Party Payments,Services Provided By Other NHS Bodies,522,07/12/2018,1812-00466,0.00,175.00,R,Ait Mitra Limited,No
Http://opendatacommunities.org/id/metropolitan-district-council/leeds,Leeds City Council,31/12/2018,Adults and Health,Services For Adults Under 65 Mental/Dis,Third Party Payments,Services Provided By Other NHS Bodies,522,07/12/2018,1812-00467,0.00,175.00,R,Ait Mitra Limited,No
Http://opendatacommunities.org/id/metropolitan-district-council/leeds,Leeds City Council,31/12/2018,Adults and Health,Services For Adults Under 65 Mental/Dis,Third Party Payments,Services Provided By Other NHS Bodies,522,07/12/2018,1812-00468,0.00,175.00,R,Ait Mitra Limited,No
Http://opendatacommunities.org/id/metropolitan-district-council/leeds,Leeds City Council,31/12/2018,Adults and Health,Services For Adults Under 65 Mental/Dis,Third Party Payments,Services Provided By Other NHS Bodies,522,11/12/2018,1812-00469,0.00,175.00,R,Ait Mitra Limited,No
Http://opendatacommunities.org/id/metropolitan-district-council/leeds,Leeds City Council,31/12/2018,Adults and Health,Services For Adults Under 65 Mental/Dis,Third Party Payments,Services Provided By Other NHS Bodies,522,11/12/2018,1812-00470,0.00,175.00,R,Ait Mitra Limited,No
Http://opendatacommunities.org/id/metropolitan-district-council/leeds,Leeds City Council,31/12/2018,Adults and Health,Services For Adults Under 65 Mental/Dis,Third Party Payments,Services Provided By Other NHS Bodies,522,11/12/2018,1812-00471,0.00,175.00,R,Ait Mitra Limited,No
Http://opendatacommunities.org/id/metropolitan-district-council/leeds,Leeds City Council,31/12/2018,Adults and Health,Services For Adults Under 65 Mental/Dis,Third Party Payments,Services Provided By Other NHS Bodies,522,17/12/2018,1812-00472,0.00,175.00,R,Ait Mitra Limited,No
Http://opendatacommunities.org/id/metropolitan-district-council/leeds,Leeds City Council,31/12/2018,Adults and Health,Services For Adults Under 65 Mental/Dis,Third Party Payments,Services Provided By Other NHS Bodies,522,18/12/2018,1812-00473,0.00,230.90,R,Ait Mitra Limited,No
Http://opendatacommunities.org/id/metropolitan-district-council/leeds,Leeds City Council,31/12/2018,Adults and Health,Services For Adults Under 65 Mental/Dis,Third Party Payments,Services Provided By Other NHS Bodies,522,18/12/2018,1812-00474,0.00,175.00,R,Ait Mitra Limited,No
Http://opendatacommunities.org/id/metropolitan-district-council/leeds,Leeds City Council,31/12/2018,Adults and Health,Services For Adults Under 65 Mental/Dis,Third Party Payments,Services Provided By Other NHS Bodies,522,18/12/2018,1812-00475,0.00,175.00,R,Ait Mitra Limited,No
Http://opendatacommunities.org/id/metropolitan-district-council/leeds,Leeds City Council,31/12/2018,Adults and Health,Services For Adults Under 65 Mental/Dis,Third Party Payments,Services Provided By Other NHS Bodies,522,18/12/2018,1812-00476,0.00,175.00,R,Ait Mitra Limited,No
Http://opendatacommunities.org/id/metropolitan-district-council/leeds,Leeds City Council,31/12/2018,Adults and Health,Services For Adults Under 65 Mental/Dis,Third Party Payments,Services Provided By Other NHS Bodies,522,18/12/2018,1812-00477,0.00,175.00,R,Ait Mitra Limited,No
Http://opendatacommunities.org/id/metropolitan-district-council/leeds,Leeds City Council,31/12/2018,Adults and Health,Services For Adults Under 65 Mental/Dis,Third Party Payments,Services Provided By Other NHS Bodies,522,18/12/2018,1812-00478,0.00,175.00,R,Ait Mitra Limited,No
Http://opendatacommunities.org/id/metropolitan-district-council/leeds,Leeds City Council,31/12/2018,Adults and Health,Services For Adults Under 65 Mental/Dis,Third Party Payments,Services Provided By Other NHS Bodies,522,18/12/2018,1812-00479,0.00,175.00,R,Ait Mitra Limited,No
Http://opendatacommunities.org/id/metropolitan-district-council/leeds,Leeds City Council,31/12/2018,Adults and Health,Services For Adults Under 65 Mental/Dis,Third Party Payments,Services Provided By Other NHS Bodies,522,19/12/2018,1812-00480,0.00,175.00,R,Ait Mitra Limited,No
Http://opendatacommunities.org/id/metropolitan-district-council/leeds,Leeds City Council,31/12/2018,Adults and Health,Services For Adults Under 65 Mental/Dis,Third Party Payments,Services Provided By Other NHS Bodies,522,19/12/2018,1812-00481,0.00,175.00,R,Ait Mitra Limited,No
Http://opendatacommunities.org/id/metropolitan-district-council/leeds,Leeds City Council,31/12/2018,Adults and Health,Services For Adults Under 65 Mental/Dis,Third Party Payments,Services Provided By Other NHS Bodies,522,19/12/2018,1812-00482,0.00,175.00,R,Ait Mitra Limited,No
Http://opendatacommunities.org/id/metropolitan-district-council/leeds,Leeds City Council,31/12/2018,Adults and Health,Services For Adults Under 65 Mental/Dis,Third Party Payments,Services Provided By Other NHS Bodies,522,20/12/2018,1812-00483,0.00,175.00,R,Ait Mitra Limited,No
Http://opendatacommunities.org/id/metropolitan-district-council/leeds,Leeds City Council,31/12/2018,Adults and Health,Services For Adults Under 65 Mental/Dis,Third Party Payments,Services Provided By Other NHS Bodies,522,20/12/2018,1812-00484,0.00,239.50,R,Ait Mitra Limited,No
Http://opendatacommunities.org/id/metropolitan-district-council/leeds,Leeds City Council,31/12/2018,Adults and Health,Services For Adults Under 65 Mental/Dis,Third Party Payments,Services Provided By Other NHS Bodies,522,20/12/2018,1812-00485,0.00,175.00,R,Ait Mitra Limited,No
Http://opendatacommunities.org/id/metropolitan-district-council/leeds,Leeds City Council,31/12/2018,Adults and Health,Services For Adults Under 65 Mental/Dis,Third Party Payments,Services Provided By Other NHS Bodies,522,20/12/2018,1812-00486,0.00,175.00,R,Ait Mitra Limited,No
Http://opendatacommunities.org/id/metropolitan-district-council/leeds,Leeds City Council,31/12/2018,Adults and Health,Services For Adults Under 65 Mental/Dis,Third Party Payments,Services Provided By Other NHS Bodies,522,24/12/2018,1812-00487,0.00,239.50,R,Ait Mitra Limited,No
Http://opendatacommunities.org/id/metropolitan-district-council/leeds,Leeds City Council,31/12/2018,Adults and Health,Services For Adults Under 65 Mental/Dis,Third Party Payments,Services Provided By Other NHS Bodies,522,24/12/2018,1812-00488,0.00,175.00,R,Ait Mitra Limited,No
Http://opendatacommunities.org/id/metropolitan-district-council/leeds,Leeds City Council,31/12/2018,Adults and Health,Services For Adults Under 65 Mental/Dis,Third Party Payments,Services Provided By Other NHS Bodies,522,24/12/2018,1812-00489,0.00,175.00,R,Ait Mitra Limited,No
Http://opendatacommunities.org/id/metropolitan-district-council/leeds,Leeds City Council,31/12/2018,Adults and Health,Services For Adults Under 65 Mental/Dis,Third Party Payments,Services Provided By Other NHS Bodies,522,24/12/2018,1812-00490,0.00,175.00,R,Ait Mitra Limited,No
Http://opendatacommunities.org/id/metropolitan-district-council/leeds,Leeds City Council,31/12/2018,Adults and Health,Services For Adults Under 65 Mental/Dis,Third Party Payments,Services Provided By Other NHS Bodies,522,24/12/2018,1812-00491,0.00,175.00,R,Ait Mitra Limited,No
Http://opendatacommunities.org/id/metropolitan-district-council/leeds,Leeds City Council,31/12/2018,Adults and Health,Services For Adults Under 65 Mental/Dis,Third Party Payments,Services Provided By Other NHS Bodies,522,24/12/2018,1812-00492,0.00,175.00,R,Ait Mitra Limited,No
Http://opendatacommunities.org/id/metropolitan-district-council/leeds,Leeds City Council,31/12/2018,Adults and Health,Services For Adults Under 65 Mental/Dis,Third Party Payments,Services Provided By Other NHS Bodies,522,24/12/2018,1812-00493,0.00,175.00,R,Ait Mitra Limited,No
Http://opendatacommunities.org/id/metropolitan-district-council/leeds,Leeds City Council,31/12/2018,Adults and Health,Services For Adults Under 65 Mental/Dis,Third Party Payments,Services Provided By Other NHS Bodies,522,24/12/2018,1812-00494,0.00,175.00,R,Ait Mitra Limited,No
Http://opendatacommunities.org/id/metropolitan-district-council/leeds,Leeds City Council As Accountable Body,31/12/2018,Social Services Pooled Budgets,Jcs For People With Learning Disabilitie,Third Party Payments,Residential,580,12/12/2018,1812-00495,0.00,6173.24,R,Aitch Care Homes,No
Http://opendatacommunities.org/id/metropolitan-district-council/leeds,Leeds City Council,31/12/2018,Resources and Housing,Commercial Services,Supplies and Services,Other Hired And Contracted Services,265,17/12/2018,1812-00496,0.00,675.00,R,REDACTED PERSONAL DATA,No
Http://opendatacommunities.org/id/metropolitan-district-council/leeds,Leeds City Council,31/12/2018,Resources and Housing,Commercial Services,Supplies and Services,Other Hired And Contracted Services,265,17/12/2018,1812-00497,0.00,675.00,R,REDACTED PERSONAL DATA,No
Http://opendatacommunities.org/id/metropolitan-district-council/leeds,Leeds City Council,31/12/2018,Adults and Health,Services For Older People - 65 And Over,Third Party Payments,Home Care,568,14/12/2018,1812-00498,0.00,3597.16,R,Aj Community Care Ltd,No
Http://opendatacommunities.org/id/metropolitan-district-council/leeds,Leeds City Council,31/12/2018,Adults and Health,Services For Older People Under 65 P/Dis,Third Party Payments,Home Care,568,14/12/2018,1812-00499,0.00,3131.02,R,Aj Community Care Ltd,No
Http://opendatacommunities.org/id/metropolitan-district-council/leeds,Leeds City Council,31/12/2018,Adults and Health,Services For Older People - 65 And Over,Third Party Payments,Home Care,568,14/12/2018,1812-00500,0.00,23192.64,R,Aj Community Care Ltd,No
Http://opendatacommunities.org/id/metropolitan-district-council/leeds,Leeds City Council,31/12/2018,Adults and Health,Services For Older People Under 65 P/Dis,Third Party Payments,Home Care,568,27/12/2018,1812-00501,0.00,26.39,R,Aj Community Care Ltd,No
Http://opendatacommunities.org/id/metropolitan-district-council/leeds,Leeds City Council,31/12/2018,Resources and Housing,Leeds Building Services,Supplies and Services,Operational Furniture And Equipment,203,07/12/2018,1812-00502,0.00,6356.00,R,Ajm Fixings & Power Tools Ltd,No
Http://opendatacommunities.org/id/metropolitan-district-council/leeds,Leeds City Council,31/12/2018,Resources and Housing,Leeds Building Services,Supplies and Services,Operational Furniture And Equipment,203,07/12/2018,1812-00503,0.00,603.43,R,Ajm Fixings & Power Tools Ltd,No
Http://opendatacommunities.org/id/metropolitan-district-council/leeds,Leeds City Council,31/12/2018,Resources and Housing,Leeds Building Services,Supplies and Services,Operational Furniture And Equipment,203,07/12/2018,1812-00504,0.00,425.00,R,Ajm Fixings & Power Tools Ltd,No
Http://opendatacommunities.org/id/metropolitan-district-council/leeds,Leeds City Council,31/12/2018,Resources and Housing,Leeds Building Services,Supplies and Services,Operational Furniture And Equipment,203,07/12/2018,1812-00505,0.00,30.91,R,Ajm Fixings & Power Tools Ltd,No
Http://opendatacommunities.org/id/metropolitan-district-council/leeds,Leeds City Council,31/12/2018,Resources and Housing,Leeds Building Services,Supplies and Services,Stores - Central And Other Depots,5,07/12/2018,1812-00506,0.00,231.00,R,Ajm Fixings & Power Tools Ltd,No
Http://opendatacommunities.org/id/metropolitan-district-council/leeds,Leeds City Council,31/12/2018,Resources and Housing,Leeds Building Services,Supplies and Services,Stores - Central And Other Depots,5,07/12/2018,1812-00507,0.00,247.50,R,Ajm Fixings & Power Tools Ltd,No
Http://opendatacommunities.org/id/metropolitan-district-council/leeds,Leeds City Council,31/12/2018,Resources and Housing,Leeds Building Services,Supplies and Services,Operational Furniture And Equipment,203,07/12/2018,1812-00508,0.00,380.00,R,Ajm Fixings & Power Tools Ltd,No
Http://opendatacommunities.org/id/metropolitan-district-council/leeds,Leeds City Council,31/12/2018,Resources and Housing,Leeds Building Services,Supplies and Services,Operational Furniture And Equipment,203,13/12/2018,1812-00509,0.00,3121.02,R,Ajm Fixings & Power Tools Ltd,No
Http://opendatacommunities.org/id/metropolitan-district-council/leeds,Leeds City Council,31/12/2018,Resources and Housing,Leeds Building Services,Supplies and Services,Operational Furniture And Equipment,203,13/12/2018,1812-00510,0.00,82.07,R,Ajm Fixings & Power Tools Ltd,No
Http://opendatacommunities.org/id/metropolitan-district-council/leeds,Leeds City Council,31/12/2018,Resources and Housing,Leeds Building Services,Supplies and Services,Operational Furniture And Equipment,203,13/12/2018,1812-00511,0.00,293.16,R,Ajm Fixings & Power Tools Ltd,No
Http://opendatacommunities.org/id/metropolitan-district-council/leeds,Leeds City Council,31/12/2018,Resources and Housing,Leeds Building Services,Supplies and Services,Operational Materials,205,14/12/2018,1812-00512,0.00,56.76,R,Ajm Fixings & Power Tools Ltd,No
Http://opendatacommunities.org/id/metropolitan-district-council/leeds,Leeds City Council,31/12/2018,Resources and Housing,Leeds Building Services,Supplies and Services,Stores - Central And Other Depots,5,14/12/2018,1812-00513,0.00,1063.74,R,Ajm Fixings & Power Tools Ltd,No
Http://opendatacommunities.org/id/metropolitan-district-council/leeds,Leeds City Council,31/12/2018,Resources and Housing,Leeds Building Services,Supplies and Services,Operational Furniture And Equipment,203,20/12/2018,1812-00514,0.00,2175.00,R,Ajm Fixings & Power Tools Ltd,No
Http://opendatacommunities.org/id/metropolitan-district-council/leeds,Leeds City Council,31/12/2018,Resources and Housing,Leeds Building Services,Supplies and Services,Operational Furniture And Equipment,203,20/12/2018,1812-00515,0.00,120.00,R,Ajm Fixings & Power Tools Ltd,No
Http://opendatacommunities.org/id/metropolitan-district-council/leeds,Leeds City Council,31/12/2018,Resources and Housing,Leeds Building Services,Supplies and Services,Operational Furniture And Equipment,203,27/12/2018,1812-00516,0.00,220.62,R,Ajm Fixings & Power Tools Ltd,No
Http://opendatacommunities.org/id/metropolitan-district-council/leeds,Leeds City Council,31/12/2018,Resources and Housing,Leeds Building Services,Supplies and Services,Operational Furniture And Equipment,203,27/12/2018,1812-00517,0.00,264.25,R,Ajm Fixings & Power Tools Ltd,No
Http://opendatacommunities.org/id/metropolitan-district-council/leeds,Leeds City Council,31/12/2018,Resources and Housing,Leeds Building Services,Supplies and Services,Operational Furniture And Equipment,203,28/12/2018,1812-00518,0.00,49.00,R,Ajm Fixings & Power Tools Ltd,No
Http://opendatacommunities.org/id/metropolitan-district-council/leeds,Leeds City Council,31/12/2018,Resources and Housing,Leeds Building Services,Supplies and Services,Operational Furniture And Equipment,203,28/12/2018,1812-00519,0.00,2479.49,R,Ajm Fixings & Power Tools Ltd,No
Http://opendatacommunities.org/id/metropolitan-district-council/leeds,Leeds City Council,31/12/2018,Resources and Housing,Leeds Building Services,Supplies and Services,Operational Furniture And Equipment,203,28/12/2018,1812-00520,0.00,531.65,R,Ajm Fixings & Power Tools Ltd,No
Http://opendatacommunities.org/id/metropolitan-district-council/leeds,Leeds City Council,31/12/2018,Adults and Health,Social Services Support Services,Employees,Training & Development,70,03/12/2018,1812-00521,0.00,7500.00,R,Akd Solutions Ltd,No
Http://opendatacommunities.org/id/metropolitan-district-council/leeds,Leeds City Council,31/12/2018,Resources and Housing,Strategic Housing Partnerships,Capital,Construction,3,21/12/2018,1812-00522,0.00,13000.00,C,Akr Construction Ltd,No
Http://opendatacommunities.org/id/metropolitan-district-council/leeds,Leeds City Council,31/12/2018,Resources and Housing,Commercial Services,Premises,Maintenance Of Buildings,101,13/12/2018,1812-00523,0.00,255.50,R,Akua Uk Ltd,No
Http://opendatacommunities.org/id/metropolitan-district-council/leeds,Leeds City Council,31/12/2018,Resources and Housing,Commercial Services,Premises,Maintenance Of Buildings,101,13/12/2018,1812-00524,0.00,154.00,R,Akua Uk Ltd,No
Http://opendatacommunities.org/id/metropolitan-district-council/leeds,Leeds City Council,31/12/2018,Resources and Housing,Commercial Services,Premises,Maintenance Of Buildings,101,20/12/2018,1812-00525,0.00,152.30,R,Akua Uk Ltd,No
Http://opendatacommunities.org/id/metropolitan-district-council/leeds,Leeds City Council,31/12/2018,Communities and Environment,Waste Management,Supplies and Services,Operational Furniture And Equipment,203,28/12/2018,1812-00526,0.00,185.00,R,Akua Uk Ltd,No
Http://opendatacommunities.org/id/metropolitan-district-council/leeds,Leeds City Council,31/12/2018,Adults and Health,Services For Older People - 65 And Over,Third Party Payments,Payments To Voluntary Organisations,561,31/12/2018,1812-00527,0.00,3000.00,R,Al Khidmat Centre,No
Http://opendatacommunities.org/id/metropolitan-district-council/leeds,Leeds City Council,31/12/2018,Children and Families,Social Care,Transfer Payments,Leaving Care Allowances,634,28/12/2018,1812-00528,0.00,20.00,R,REDACTED PERSONAL DATA,No
Http://opendatacommunities.org/id/metropolitan-district-council/leeds,Leeds City Council,31/12/2018,Children and Families,Social Care,Support Services,Legal Disbursements,411,14/12/2018,1812-00529,0.00,750.00,R,Alan Inglis,No
Http://opendatacommunities.org/id/metropolitan-district-council/leeds,Leeds City Council,31/12/2018,Children and Families,Social Care,Third Party Payments,Services Rendered By Other Organisations,511,21/12/2018,1812-00530,0.00,892.50,R,REDACTED PERSONAL DATA,No
Http://opendatacommunities.org/id/metropolitan-district-council/leeds,Leeds City Council,31/12/2018,Adults and Health,Services For Older People - 65 And Over,Third Party Payments,Residential Care Dementia,571,12/12/2018,1812-00531,0.00,1088.80,R,Albemarle,No
Http://opendatacommunities.org/id/metropolitan-district-council/leeds,Leeds City Council,31/12/2018,Resources and Housing,Commercial Services,Transport,Vehicle Spares,345,19/12/2018,1812-00532,0.00,60.39,R,Albert Jagger Limited,No
Http://opendatacommunities.org/id/metropolitan-district-council/leeds,Leeds City Council As Accountable Body,31/12/2018,Social Services Pooled Budgets,Leeds Community Equip Store Pooled Budgt,Supplies and Services,Other Equipment,203,28/12/2018,1812-00533,0.00,18.75,R,Albion Electric Stores Ltd,No
Http://opendatacommunities.org/id/metropolitan-district-council/leeds,Leeds City Council,31/12/2018,City Development,Libraries  Arts & Heritage,Income,Arts/Sports Facility Hire,920,10/12/2018,1812-00534,0.00,-3848.00,R,Alchemy Promotions Ltd (The Mjr Group),No
Http://opendatacommunities.org/id/metropolitan-district-council/leeds,Leeds City Council,31/12/2018,City Development,Libraries  Arts & Heritage,Income,Other cultural & rec fees & charges,924,10/12/2018,1812-00535,0.00,-1408.00,R,Alchemy Promotions Ltd (The Mjr Group),No
Http://opendatacommunities.org/id/metropolitan-district-council/leeds,Leeds City Council,31/12/2018,City Development,Libraries  Arts & Heritage,Income,Admissions  Booking Fees & Ticket Sales,933,10/12/2018,1812-00536,0.00,21044.00,R,Alchemy Promotions Ltd (The Mjr Group),No
Http://opendatacommunities.org/id/metropolitan-district-council/leeds,Leeds City Council,31/12/2018,City Development,Libraries  Arts & Heritage,Income,Advertising,969,10/12/2018,1812-00537,0.00,-708.50,R,Alchemy Promotions Ltd (The Mjr Group),No
Http://opendatacommunities.org/id/metropolitan-district-council/leeds,Leeds City Council,31/12/2018,City Development,Libraries  Arts & Heritage,Income,Other Income,973,10/12/2018,1812-00538,0.00,-1385.23,R,Alchemy Promotions Ltd (The Mjr Group),No
Http://opendatacommunities.org/id/metropolitan-district-council/leeds,Leeds City Council,31/12/2018,City Development,Economic Development,Supplies and Services,Computer Software & Equipment,214,28/12/2018,1812-00539,0.00,12552.00,R,Alcium Software Ltd,No
Http://opendatacommunities.org/id/metropolitan-district-council/leeds,Leeds City Council,31/12/2018,Communities and Environment,Communities,Supplies and Services,Other Hired And Contracted Services,265,28/12/2018,1812-00540,0.00,1075.00,R,Alcium Software Ltd,No
Http://opendatacommunities.org/id/metropolitan-district-council/leeds,Leeds City Council,31/12/2018,Children and Families,Social Care  ,Supplies and Services,Food & Drink,231,13/11/2018,1812-00541,0.00,66.83,R,Aldi,Yes
Http://opendatacommunities.org/id/metropolitan-district-council/leeds,Leeds City Council,31/12/2018,Children and Families,Social Care  ,Supplies and Services,Food & Drink,231,13/11/2018,1812-00542,0.00,3.73,R,Aldi,Yes
Http://opendatacommunities.org/id/metropolitan-district-council/leeds,Leeds City Council,31/12/2018,Children and Families,Social Care  ,Supplies and Services,Food & Drink,231,21/11/2018,1812-00543,0.00,14.99,R,Aldi,Yes
Http://opendatacommunities.org/id/metropolitan-district-council/leeds,Leeds City Council,31/12/2018,Children and Families,Social Care  ,Supplies and Services,Food & Drink,231,27/11/2018,1812-00544,0.00,4.88,R,Aldi,Yes
Http://opendatacommunities.org/id/metropolitan-district-council/leeds,Leeds City Council,31/12/2018,Communities and Environment,Parks And Countryside  ,Supplies and Services,Operational Materials,205,03/11/2018,1812-00545,0.00,21.15,R,Aldi 40 779,Yes
Http://opendatacommunities.org/id/metropolitan-district-council/leeds,Leeds City Council,31/12/2018,Children and Families,Social Care  ,Supplies and Services,Food & Drink,231,19/11/2018,1812-00546,0.00,50.93,R,Aldi 40 779,Yes
Http://opendatacommunities.org/id/metropolitan-district-council/leeds,Leeds City Council,31/12/2018,Children and Families,Social Care  ,Supplies and Services,Food & Drink,231,28/11/2018,1812-00547,0.00,4.37,R,Aldi 40 779,Yes
Http://opendatacommunities.org/id/metropolitan-district-council/leeds,Leeds City Council,31/12/2018,Children and Families,Social Care  ,Supplies and Services,Food & Drink,231,28/11/2018,1812-00548,0.00,58.53,R,Aldi 40 779,Yes
Http://opendatacommunities.org/id/metropolitan-district-council/leeds,Leeds City Council,31/12/2018,Children and Families,Social Care  ,Supplies and Services,Food & Drink,231,09/11/2018,1812-00549,0.00,74.96,R,Aldi 49 779,Yes
Http://opendatacommunities.org/id/metropolitan-district-council/leeds,Leeds City Council,31/12/2018,Communities and Environment,Customer Access  ,Supplies and Services,Operational Materials,205,15/11/2018,1812-00550,0.00,2.58,R,Aldi 49 779,Yes
Http://opendatacommunities.org/id/metropolitan-district-council/leeds,Leeds City Council,31/12/2018,Children and Families,Social Care  ,Transfer Payments,Leaving Care Allowances,634,23/11/2018,1812-00551,0.00,74.19,R,Aldi 71 779,Yes
Http://opendatacommunities.org/id/metropolitan-district-council/leeds,Leeds City Council,31/12/2018,Children and Families,Social Care  ,Supplies and Services,Food & Drink,231,25/11/2018,1812-00552,0.00,96.70,R,Aldi 71 779,Yes
Http://opendatacommunities.org/id/metropolitan-district-council/leeds,Leeds City Council,31/12/2018,Resources and Housing,Strategy And Improvement  ,Supplies and Services,Food & Drink,231,28/11/2018,1812-00553,0.00,6.49,R,Aldi 71 779,Yes
Http://opendatacommunities.org/id/metropolitan-district-council/leeds,Leeds City Council,31/12/2018,Communities and Environment,Customer Access  ,Supplies and Services,Office Consumables,210,27/11/2018,1812-00554,0.00,20.93,R,Aldi 779-90,Yes
Http://opendatacommunities.org/id/metropolitan-district-council/leeds,Leeds City Council,31/12/2018,Children and Families,Social Care  ,Supplies and Services,Food & Drink,231,04/11/2018,1812-00555,0.00,36.85,R,Aldi 85 779,Yes
Http://opendatacommunities.org/id/metropolitan-district-council/leeds,Leeds City Council,31/12/2018,Adults and Health,Other Generic Services  ,Supplies and Services,Operational Furniture And Equipment,203,20/11/2018,1812-00556,0.00,4.97,R,Aldi 85 779,Yes
Http://opendatacommunities.org/id/metropolitan-district-council/leeds,Leeds City Council,31/12/2018,Children and Families,Social Care  ,Supplies and Services,Food & Drink,231,31/10/2018,1812-00557,0.00,6.08,R,Aldi 88 779,Yes
Http://opendatacommunities.org/id/metropolitan-district-council/leeds,Leeds City Council,31/12/2018,Children and Families,Social Care  ,Supplies and Services,Food & Drink,231,06/11/2018,1812-00558,0.00,65.41,R,Aldi Stores,Yes
Http://opendatacommunities.org/id/metropolitan-district-council/leeds,Leeds City Council,31/12/2018,Children and Families,Social Care  ,Supplies and Services,Teaching Materials,202,28/11/2018,1812-00559,0.00,24.83,R,Aldi Stores,Yes
Http://opendatacommunities.org/id/metropolitan-district-council/leeds,Leeds City Council,31/12/2018,Communities and Environment,Customer Access,Supplies and Services,Other Hired And Contracted Services,265,11/12/2018,1812-00560,0.00,138.00,R,Alena Zueva,No
Http://opendatacommunities.org/id/metropolitan-district-council/leeds,Leeds City Council,31/12/2018,Communities and Environment,Customer Access,Supplies and Services,Other Hired And Contracted Services,265,20/12/2018,1812-00561,0.00,171.00,R,Alena Zueva,No
Http://opendatacommunities.org/id/metropolitan-district-council/leeds,Leeds City Council,31/12/2018,Insurance,Insurance,Supplies and Services,Insurance Claims,248,17/12/2018,1812-00562,0.00,130.00,R,REDACTED PERSONAL DATA,No
Http://opendatacommunities.org/id/metropolitan-district-council/leeds,Leeds City Council,31/12/2018,Insurance,Insurance,Supplies and Services,Insurance Claims,248,24/12/2018,1812-00563,0.00,17.12,R,REDACTED PERSONAL DATA,No
Http://opendatacommunities.org/id/metropolitan-district-council/leeds,Leeds City Council,31/12/2018,Children and Families,Learning,Supplies and Services,Bought In Professional Services,277,13/12/2018,1812-00564,0.00,1272.50,R,Alex Quigley Consultancy Limited,No
Http://opendatacommunities.org/id/metropolitan-district-council/leeds,Leeds City Council,31/12/2018,Children and Families,Social Care,Support Services,Legal Disbursements,411,19/12/2018,1812-00565,0.00,270.00,R,Alex Taylor,No
Http://opendatacommunities.org/id/metropolitan-district-council/leeds,Leeds City Council,31/12/2018,Children and Families,Social Care,Support Services,Legal Disbursements,411,27/12/2018,1812-00566,0.00,469.00,R,Alex Taylor,No
Http://opendatacommunities.org/id/metropolitan-district-council/leeds,Leeds City Council,31/12/2018,Resources and Housing,Commercial Services,Supplies and Services,Other Hired And Contracted Services,265,06/12/2018,1812-00567,0.00,60.00,R,Alex Wagg,No
Http://opendatacommunities.org/id/metropolitan-district-council/leeds,Leeds City Council,31/12/2018,Resources and Housing,Commercial Services,Supplies and Services,Other Hired And Contracted Services,265,06/12/2018,1812-00568,0.00,60.00,R,Alex Wagg,No
Http://opendatacommunities.org/id/metropolitan-district-council/leeds,Leeds City Council,31/12/2018,Resources and Housing,Commercial Services,Supplies and Services,Other Hired And Contracted Services,265,13/12/2018,1812-00569,0.00,90.00,R,Alex Wagg,No
Http://opendatacommunities.org/id/metropolitan-district-council/leeds,Leeds City Council,31/12/2018,Resources and Housing,Commercial Services,Supplies and Services,Other Hired And Contracted Services,265,13/12/2018,1812-00570,0.00,250.00,R,Alex Wagg,No
Http://opendatacommunities.org/id/metropolitan-district-council/leeds,Leeds City Council,31/12/2018,Resources and Housing,Commercial Services,Supplies and Services,Other Hired And Contracted Services,265,13/12/2018,1812-00571,0.00,80.00,R,Alex Wagg,No
Http://opendatacommunities.org/id/metropolitan-district-council/leeds,Leeds City Council,31/12/2018,Resources and Housing,Commercial Services,Supplies and Services,Other Hired And Contracted Services,265,20/12/2018,1812-00572,0.00,210.00,R,Alex Wagg,No
Http://opendatacommunities.org/id/metropolitan-district-council/leeds,Leeds City Council,31/12/2018,Resources and Housing,Commercial Services,Supplies and Services,Other Hired And Contracted Services,265,20/12/2018,1812-00573,0.00,60.00,R,Alex Wagg,No
Http://opendatacommunities.org/id/metropolitan-district-council/leeds,Leeds City Council,31/12/2018,Resources and Housing,Commercial Services,Supplies and Services,Other Hired And Contracted Services,265,20/12/2018,1812-00574,0.00,60.00,R,Alex Wagg,No
Http://opendatacommunities.org/id/metropolitan-district-council/leeds,Leeds City Council,31/12/2018,Resources and Housing,Commercial Services,Supplies and Services,Other Hired And Contracted Services,265,20/12/2018,1812-00575,0.00,100.00,R,Alex Wagg,No
Http://opendatacommunities.org/id/metropolitan-district-council/leeds,Leeds City Council,31/12/2018,Resources and Housing,Commercial Services,Supplies and Services,Other Hired And Contracted Services,265,20/12/2018,1812-00576,0.00,140.00,R,Alex Wagg,No
Http://opendatacommunities.org/id/metropolitan-district-council/leeds,Leeds City Council,31/12/2018,Resources and Housing,Commercial Services,Supplies and Services,Other Hired And Contracted Services,265,20/12/2018,1812-00577,0.00,30.00,R,Alex Wagg,No
Http://opendatacommunities.org/id/metropolitan-district-council/leeds,Leeds City Council,31/12/2018,Resources and Housing,Commercial Services,Supplies and Services,Other Hired And Contracted Services,265,20/12/2018,1812-00578,0.00,50.00,R,Alex Wagg,No
Http://opendatacommunities.org/id/metropolitan-district-council/leeds,Leeds City Council,31/12/2018,Resources and Housing,Commercial Services,Supplies and Services,Other Hired And Contracted Services,265,20/12/2018,1812-00579,0.00,100.00,R,Alex Wagg,No
Http://opendatacommunities.org/id/metropolitan-district-council/leeds,Leeds City Council,31/12/2018,Resources and Housing,Commercial Services,Supplies and Services,Other Hired And Contracted Services,265,20/12/2018,1812-00580,0.00,90.00,R,Alex Wagg,No
Http://opendatacommunities.org/id/metropolitan-district-council/leeds,Leeds City Council,31/12/2018,Children and Families,Social Care,Transfer Payments,Leaving Care Allowances,634,14/12/2018,1812-00581,0.00,50.00,R,REDACTED PERSONAL DATA,No
Http://opendatacommunities.org/id/metropolitan-district-council/leeds,Leeds City Council,31/12/2018,Adults and Health,Services For Older People - 65 And Over,Third Party Payments,Residential Care Dementia,571,12/12/2018,1812-00582,0.00,50141.77,R,Alexander Residential Home,No
Http://opendatacommunities.org/id/metropolitan-district-council/leeds,Leeds City Council,31/12/2018,Adults and Health,Services For Older People - 65 And Over,Third Party Payments,Residential,580,12/12/2018,1812-00583,0.00,16851.57,R,Alexander Residential Home,No
Http://opendatacommunities.org/id/metropolitan-district-council/leeds,Leeds City Council,31/12/2018,Communities and Environment,Customer Access,Supplies and Services,Other Hired And Contracted Services,265,11/12/2018,1812-00584,0.00,265.50,R,Alexandra Costenco,No
Http://opendatacommunities.org/id/metropolitan-district-council/leeds,Leeds City Council,31/12/2018,Adults and Health,Services For Older People - 65 And Over,Third Party Payments,Residential,580,12/12/2018,1812-00585,0.00,3928.77,R,Alexandra Court,No
Http://opendatacommunities.org/id/metropolitan-district-council/leeds,Leeds City Council,31/12/2018,City Development,Libraries  Arts & Heritage,Supplies and Services,Other Hired And Contracted Services,265,31/12/2018,1812-00586,0.00,300.00,R,Alexandra George,No
Http://opendatacommunities.org/id/metropolitan-district-council/leeds,Leeds City Council,31/12/2018,Adults and Health,Services For Older People - 65 And Over  ,Supplies and Services,Clothing & Uniforms,241,03/10/2018,1812-00587,0.00,-139.93,R,Alexandra Website,Yes
Http://opendatacommunities.org/id/metropolitan-district-council/leeds,Leeds City Council,31/12/2018,Adults and Health,Services For Older People Under 65 P/Dis,Supplies and Services,Operational Furniture And Equipment,203,05/12/2018,1812-00588,0.00,1900.00,R,Alfred Bagnall & Sons (Leeds) Ltd,No
Http://opendatacommunities.org/id/metropolitan-district-council/leeds,Leeds City Council,31/12/2018,Resources and Housing,Leeds Building Services,Supplies and Services,Other Hired And Contracted Services,265,05/12/2018,1812-00589,0.00,195.35,R,Alfred Bagnall & Sons (Leeds) Ltd,No
Http://opendatacommunities.org/id/metropolitan-district-council/leeds,Leeds City Council,31/12/2018,Resources and Housing,Leeds Building Services,Supplies and Services,Other Hired And Contracted Services,265,05/12/2018,1812-00590,0.00,4860.00,R,Alfred Bagnall & Sons (Leeds) Ltd,No
Http://opendatacommunities.org/id/metropolitan-district-council/leeds,Leeds City Council,31/12/2018,City Development,Libraries  Arts & Heritage,Premises,Maintenance Of Buildings,101,05/12/2018,1812-00591,0.00,1400.00,R,Alfred Bagnall & Sons (Leeds) Ltd,No
Http://opendatacommunities.org/id/metropolitan-district-council/leeds,Leeds City Council,31/12/2018,Resources and Housing,Leeds Building Services,Supplies and Services,Other Hired And Contracted Services,265,05/12/2018,1812-00592,0.00,1677.00,R,Alfred Bagnall & Sons (Leeds) Ltd,No
Http://opendatacommunities.org/id/metropolitan-district-council/leeds,Leeds City Council,31/12/2018,City Development,Highways,Premises,Highways Maintenance,145,05/12/2018,1812-00593,0.00,315.00,R,Alfred Bagnall & Sons (Leeds) Ltd,No
Http://opendatacommunities.org/id/metropolitan-district-council/leeds,Leeds City Council,31/12/2018,Resources and Housing,Leeds Building Services,Supplies and Services,Other Hired And Contracted Services,265,05/12/2018,1812-00594,0.00,1290.00,R,Alfred Bagnall & Sons (Leeds) Ltd,No
Http://opendatacommunities.org/id/metropolitan-district-council/leeds,Leeds City Council,31/12/2018,Resources and Housing,Corporate Property Management,Premises,Maintenance Of Buildings,101,06/12/2018,1812-00595,0.00,2880.00,R,Alfred Bagnall & Sons (Leeds) Ltd,No
Http://opendatacommunities.org/id/metropolitan-district-council/leeds,Leeds City Council,31/12/2018,Resources and Housing,Leeds Building Services,Supplies and Services,Other Hired And Contracted Services,265,07/12/2018,1812-00596,0.00,2489.74,R,Alfred Bagnall & Sons (Leeds) Ltd,No
Http://opendatacommunities.org/id/metropolitan-district-council/leeds,Leeds City Council,31/12/2018,Resources and Housing,Leeds Building Services,Supplies and Services,Other Hired And Contracted Services,265,07/12/2018,1812-00597,0.00,1640.00,R,Alfred Bagnall & Sons (Leeds) Ltd,No
Http://opendatacommunities.org/id/metropolitan-district-council/leeds,Leeds City Council,31/12/2018,Resources and Housing,Leeds Building Services,Supplies and Services,Other Hired And Contracted Services,265,07/12/2018,1812-00598,0.00,340.00,R,Alfred Bagnall & Sons (Leeds) Ltd,No
Http://opendatacommunities.org/id/metropolitan-district-council/leeds,Leeds City Council,31/12/2018,Resources and Housing,Corporate Property Management,Capital,Construction,3,12/12/2018,1812-00599,0.00,40000.00,C,Alfred Bagnall & Sons (Leeds) Ltd,No
Http://opendatacommunities.org/id/metropolitan-district-council/leeds,Leeds City Council,31/12/2018,Resources and Housing,Leeds Building Services,Supplies and Services,Other Hired And Contracted Services,265,14/12/2018,1812-00600,0.00,630.00,R,Alfred Bagnall & Sons (Leeds) Ltd,No
Http://opendatacommunities.org/id/metropolitan-district-council/leeds,Leeds City Council,31/12/2018,Resources and Housing,Leeds Building Services,Supplies and Services,Other Hired And Contracted Services,265,14/12/2018,1812-00601,0.00,380.00,R,Alfred Bagnall & Sons (Leeds) Ltd,No
Http://opendatacommunities.org/id/metropolitan-district-council/leeds,Leeds City Council,31/12/2018,Resources and Housing,Leeds Building Services,Supplies and Services,Other Hired And Contracted Services,265,14/12/2018,1812-00602,0.00,1950.00,R,Alfred Bagnall & Sons (Leeds) Ltd,No
Http://opendatacommunities.org/id/metropolitan-district-council/leeds,Leeds City Council,31/12/2018,Resources and Housing,Leeds Building Services,Supplies and Services,Other Hired And Contracted Services,265,18/12/2018,1812-00603,0.00,18470.00,R,Alfred Bagnall & Sons (Leeds) Ltd,No
Http://opendatacommunities.org/id/metropolitan-district-council/leeds,Leeds City Council,31/12/2018,Resources and Housing,Leeds Building Services,Supplies and Services,Other Hired And Contracted Services,265,18/12/2018,1812-00604,0.00,184.70,R,Alfred Bagnall & Sons (Leeds) Ltd,No
Http://opendatacommunities.org/id/metropolitan-district-council/leeds,Leeds City Council,31/12/2018,Resources and Housing,Leeds Building Services,Supplies and Services,Other Hired And Contracted Services,265,18/12/2018,1812-00605,0.00,140.00,R,Alfred Bagnall & Sons (Leeds) Ltd,No
Http://opendatacommunities.org/id/metropolitan-district-council/leeds,Leeds City Council,31/12/2018,City Development,Libraries  Arts & Heritage,Supplies and Services,Operational Materials,205,18/12/2018,1812-00606,0.00,3920.00,R,Alfred Bagnall & Sons (Leeds) Ltd,No
Http://opendatacommunities.org/id/metropolitan-district-council/leeds,Leeds City Council,31/12/2018,Resources and Housing,Leeds Building Services,Supplies and Services,Other Hired And Contracted Services,265,21/12/2018,1812-00607,0.00,3136.00,R,Alfred Bagnall & Sons (Leeds) Ltd,No
Http://opendatacommunities.org/id/metropolitan-district-council/leeds,Leeds City Council,31/12/2018,Resources and Housing,Leeds Building Services,Supplies and Services,Other Hired And Contracted Services,265,24/12/2018,1812-00608,0.00,21472.52,R,Alfred Bagnall & Sons (Leeds) Ltd,No
Http://opendatacommunities.org/id/metropolitan-district-council/leeds,Leeds City Council,31/12/2018,Resources and Housing,Leeds Building Services,Supplies and Services,Other Hired And Contracted Services,265,28/12/2018,1812-00609,0.00,585.00,R,Alfred Bagnall & Sons (Leeds) Ltd,No
Http://opendatacommunities.org/id/metropolitan-district-council/leeds,Leeds City Council,31/12/2018,City Development,Libraries  Arts & Heritage,Supplies and Services,Other Hired And Contracted Services,265,28/12/2018,1812-00610,0.00,4287.00,R,Alfred Bagnall & Sons (Leeds) Ltd,No
Http://opendatacommunities.org/id/metropolitan-district-council/leeds,Leeds City Council,31/12/2018,Resources and Housing,Leeds Building Services,Supplies and Services,Other Hired And Contracted Services,265,31/12/2018,1812-00611,0.00,3967.20,R,Alfred Bagnall & Sons (Leeds) Ltd,No
Http://opendatacommunities.org/id/metropolitan-district-council/leeds,Leeds City Council,31/12/2018,Resources and Housing,Corporate Property Management,Capital,Construction,3,31/12/2018,1812-00612,0.00,20000.00,C,Alfred Bagnall & Sons (Leeds) Ltd,No
Http://opendatacommunities.org/id/metropolitan-district-council/leeds,Leeds City Council,31/12/2018,Communities and Environment,Customer Access,Supplies and Services,Other Hired And Contracted Services,265,11/12/2018,1812-00613,0.00,108.00,R,Ali Pourakaberian,No
Http://opendatacommunities.org/id/metropolitan-district-council/leeds,Leeds City Council,31/12/2018,Communities and Environment,Customer Access,Supplies and Services,Other Hired And Contracted Services,265,20/12/2018,1812-00614,0.00,144.00,R,Ali Pourakaberian,No
Http://opendatacommunities.org/id/metropolitan-district-council/leeds,Leeds City Council,31/12/2018,Children and Families,Partnerships & Health,Employees,Training & Development,70,14/12/2018,1812-00615,0.00,1416.64,R,REDACTED PERSONAL DATA,No
Http://opendatacommunities.org/id/metropolitan-district-council/leeds,Leeds City Council,31/12/2018,Children and Families,Social Care,Third Party Payments,Services Rendered By Other Organisations,511,19/12/2018,1812-00616,0.00,267.75,R,REDACTED PERSONAL DATA,No
Http://opendatacommunities.org/id/metropolitan-district-council/leeds,Leeds City Council,31/12/2018,Communities and Environment,Car Parking Services,Income,Penalties  Fines & Car Parking Charges,934,14/12/2018,1812-00617,0.00,3.60,R,REDACTED PERSONAL DATA,No
Http://opendatacommunities.org/id/metropolitan-district-council/leeds,Leeds City Council,31/12/2018,City Development,Libraries  Arts & Heritage,Supplies and Services,Bought In Professional Services,277,24/12/2018,1812-00618,0.00,1000.00,R,Alison Mcintyre,No
Http://opendatacommunities.org/id/metropolitan-district-council/leeds,Leeds City Council,31/12/2018,Resources and Housing,Leeds Building Services,Supplies and Services,Other Hired And Contracted Services,265,05/12/2018,1812-00619,0.00,195.00,R,All Clear Solutions Ltd,No
Http://opendatacommunities.org/id/metropolitan-district-council/leeds,Leeds City Council,31/12/2018,Resources and Housing,Leeds Building Services,Supplies and Services,Other Hired And Contracted Services,265,05/12/2018,1812-00620,0.00,195.00,R,All Clear Solutions Ltd,No
Http://opendatacommunities.org/id/metropolitan-district-council/leeds,Leeds City Council,31/12/2018,Resources and Housing,Leeds Building Services,Supplies and Services,Other Hired And Contracted Services,265,05/12/2018,1812-00621,0.00,195.00,R,All Clear Solutions Ltd,No
Http://opendatacommunities.org/id/metropolitan-district-council/leeds,Leeds City Council,31/12/2018,Resources and Housing,Leeds Building Services,Supplies and Services,Other Hired And Contracted Services,265,05/12/2018,1812-00622,0.00,500.00,R,All Clear Solutions Ltd,No
Http://opendatacommunities.org/id/metropolitan-district-council/leeds,Leeds City Council,31/12/2018,Resources and Housing,Leeds Building Services,Supplies and Services,Other Hired And Contracted Services,265,05/12/2018,1812-00623,0.00,195.00,R,All Clear Solutions Ltd,No
Http://opendatacommunities.org/id/metropolitan-district-council/leeds,Leeds City Council,31/12/2018,Resources and Housing,Leeds Building Services,Supplies and Services,Other Hired And Contracted Services,265,05/12/2018,1812-00624,0.00,195.00,R,All Clear Solutions Ltd,No
Http://opendatacommunities.org/id/metropolitan-district-council/leeds,Leeds City Council,31/12/2018,Resources and Housing,Leeds Building Services,Supplies and Services,Other Hired And Contracted Services,265,14/12/2018,1812-00625,0.00,195.00,R,All Clear Solutions Ltd,No
Http://opendatacommunities.org/id/metropolitan-district-council/leeds,Leeds City Council,31/12/2018,Resources and Housing,Leeds Building Services,Supplies and Services,Other Hired And Contracted Services,265,14/12/2018,1812-00626,0.00,195.00,R,All Clear Solutions Ltd,No
Http://opendatacommunities.org/id/metropolitan-district-council/leeds,Leeds City Council,31/12/2018,Resources and Housing,Leeds Building Services,Supplies and Services,Other Hired And Contracted Services,265,14/12/2018,1812-00627,0.00,235.00,R,All Clear Solutions Ltd,No
Http://opendatacommunities.org/id/metropolitan-district-council/leeds,Leeds City Council,31/12/2018,Resources and Housing,Leeds Building Services,Supplies and Services,Other Hired And Contracted Services,265,14/12/2018,1812-00628,0.00,195.00,R,All Clear Solutions Ltd,No
Http://opendatacommunities.org/id/metropolitan-district-council/leeds,Leeds City Council,31/12/2018,Resources and Housing,Leeds Building Services,Supplies and Services,Other Hired And Contracted Services,265,14/12/2018,1812-00629,0.00,250.00,R,All Clear Solutions Ltd,No
Http://opendatacommunities.org/id/metropolitan-district-council/leeds,Leeds City Council,31/12/2018,Resources and Housing,Leeds Building Services,Supplies and Services,Other Hired And Contracted Services,265,14/12/2018,1812-00630,0.00,195.00,R,All Clear Solutions Ltd,No
Http://opendatacommunities.org/id/metropolitan-district-council/leeds,Leeds City Council,31/12/2018,Resources and Housing,Leeds Building Services,Supplies and Services,Other Hired And Contracted Services,265,14/12/2018,1812-00631,0.00,195.00,R,All Clear Solutions Ltd,No
Http://opendatacommunities.org/id/metropolitan-district-council/leeds,Leeds City Council,31/12/2018,Resources and Housing,Leeds Building Services,Supplies and Services,Other Hired And Contracted Services,265,14/12/2018,1812-00632,0.00,195.00,R,All Clear Solutions Ltd,No
Http://opendatacommunities.org/id/metropolitan-district-council/leeds,Leeds City Council,31/12/2018,Resources and Housing,Leeds Building Services,Supplies and Services,Other Hired And Contracted Services,265,14/12/2018,1812-00633,0.00,195.00,R,All Clear Solutions Ltd,No
Http://opendatacommunities.org/id/metropolitan-district-council/leeds,Leeds City Council,31/12/2018,Resources and Housing,Leeds Building Services,Supplies and Services,Other Hired And Contracted Services,265,14/12/2018,1812-00634,0.00,195.00,R,All Clear Solutions Ltd,No
Http://opendatacommunities.org/id/metropolitan-district-council/leeds,Leeds City Council,31/12/2018,Resources and Housing,Leeds Building Services,Supplies and Services,Other Hired And Contracted Services,265,14/12/2018,1812-00635,0.00,950.00,R,All Clear Solutions Ltd,No
Http://opendatacommunities.org/id/metropolitan-district-council/leeds,Leeds City Council,31/12/2018,Resources and Housing,Leeds Building Services,Supplies and Services,Other Hired And Contracted Services,265,14/12/2018,1812-00636,0.00,195.00,R,All Clear Solutions Ltd,No
Http://opendatacommunities.org/id/metropolitan-district-council/leeds,Leeds City Council,31/12/2018,Resources and Housing,Leeds Building Services,Supplies and Services,Other Hired And Contracted Services,265,14/12/2018,1812-00637,0.00,195.00,R,All Clear Solutions Ltd,No
Http://opendatacommunities.org/id/metropolitan-district-council/leeds,Leeds City Council,31/12/2018,Resources and Housing,Leeds Building Services,Supplies and Services,Other Hired And Contracted Services,265,20/12/2018,1812-00638,0.00,250.00,R,All Clear Solutions Ltd,No
Http://opendatacommunities.org/id/metropolitan-district-council/leeds,Leeds City Council,31/12/2018,Resources and Housing,Leeds Building Services,Supplies and Services,Other Hired And Contracted Services,265,20/12/2018,1812-00639,0.00,250.00,R,All Clear Solutions Ltd,No
Http://opendatacommunities.org/id/metropolitan-district-council/leeds,Leeds City Council,31/12/2018,Resources and Housing,Leeds Building Services,Supplies and Services,Other Hired And Contracted Services,265,20/12/2018,1812-00640,0.00,235.00,R,All Clear Solutions Ltd,No
Http://opendatacommunities.org/id/metropolitan-district-council/leeds,Leeds City Council,31/12/2018,Resources and Housing,Leeds Building Services,Supplies and Services,Other Hired And Contracted Services,265,20/12/2018,1812-00641,0.00,350.00,R,All Clear Solutions Ltd,No
Http://opendatacommunities.org/id/metropolitan-district-council/leeds,Leeds City Council,31/12/2018,Resources and Housing,Leeds Building Services,Supplies and Services,Other Hired And Contracted Services,265,20/12/2018,1812-00642,0.00,195.00,R,All Clear Solutions Ltd,No
Http://opendatacommunities.org/id/metropolitan-district-council/leeds,Leeds City Council,31/12/2018,Resources and Housing,Leeds Building Services,Supplies and Services,Other Hired And Contracted Services,265,20/12/2018,1812-00643,0.00,195.00,R,All Clear Solutions Ltd,No
Http://opendatacommunities.org/id/metropolitan-district-council/leeds,Leeds City Council,31/12/2018,Resources and Housing,Leeds Building Services,Supplies and Services,Other Hired And Contracted Services,265,20/12/2018,1812-00644,0.00,195.00,R,All Clear Solutions Ltd,No
Http://opendatacommunities.org/id/metropolitan-district-council/leeds,Leeds City Council,31/12/2018,Resources and Housing,Leeds Building Services,Supplies and Services,Other Hired And Contracted Services,265,20/12/2018,1812-00645,0.00,195.00,R,All Clear Solutions Ltd,No
Http://opendatacommunities.org/id/metropolitan-district-council/leeds,Leeds City Council,31/12/2018,Children and Families,Social Care,Third Party Payments,Services Rendered By Other Organisations,511,19/12/2018,1812-00646,0.00,3519.00,R,All Stars Childcare,No
Http://opendatacommunities.org/id/metropolitan-district-council/leeds,Leeds City Council,31/12/2018,Children and Families,Social Care,Third Party Payments,Services Rendered By Other Organisations,511,21/12/2018,1812-00647,0.00,15771.75,R,All Stars Childcare,No
Http://opendatacommunities.org/id/metropolitan-district-council/leeds,Leeds City Council,31/12/2018,Adults and Health,Services For Adults Under 65 Mental/Dis,Supplies and Services,Operational Furniture And Equipment,203,24/12/2018,1812-00648,0.00,89.10,R,Allansound Communications,No
Http://opendatacommunities.org/id/metropolitan-district-council/leeds,Leeds City Council As Accountable Body,31/12/2018,Social Services Pooled Budgets,Jcs For People With Learning Disabilitie,Third Party Payments,Sheltered Accommodation,569,12/12/2018,1812-00649,0.00,13578.36,R,Allerton Avenue,No
Http://opendatacommunities.org/id/metropolitan-district-council/leeds,Leeds City Council,31/12/2018,Adults and Health,Services For Older People - 65 And Over,Third Party Payments,Nursing Care Dementia,574,12/12/2018,1812-00650,0.00,2094.28,R,Allerton Park N H,No
Http://opendatacommunities.org/id/metropolitan-district-council/leeds,Leeds City Council,31/12/2018,Resources and Housing,Finance,Supplies and Services,Bank Charges,263,03/12/2018,1812-00651,0.00,-57.21,R,Alliance & Leicester Commercial Bank,No
Http://opendatacommunities.org/id/metropolitan-district-council/leeds,Leeds City Council,31/12/2018,Resources and Housing,Finance,Supplies and Services,Bank Charges,263,05/12/2018,1812-00652,0.00,525.60,R,Alliance & Leicester Commercial Bank,No
Http://opendatacommunities.org/id/metropolitan-district-council/leeds,Leeds City Council,31/12/2018,Resources and Housing,Finance,Supplies and Services,Bank Charges,263,05/12/2018,1812-00653,0.00,100.00,R,Alliance & Leicester Commercial Bank,No
Http://opendatacommunities.org/id/metropolitan-district-council/leeds,Leeds City Council,31/12/2018,City Development,Recreation,Employees,Training & Development,70,05/12/2018,1812-00654,0.00,937.50,R,Alliance Leisure Service Ltd,No
Http://opendatacommunities.org/id/metropolitan-district-council/leeds,Leeds City Council,31/12/2018,City Development,Highways,Supplies and Services,Other Hired And Contracted Services,265,12/12/2018,1812-00655,0.00,324.00,R,Allied Exploration & Geotechnics Ltd,No
Http://opendatacommunities.org/id/metropolitan-district-council/leeds,Leeds City Council,31/12/2018,City Development,Highways,Supplies and Services,Other Hired And Contracted Services,265,13/12/2018,1812-00656,0.00,1216.70,R,Allied Exploration & Geotechnics Ltd,No
Http://opendatacommunities.org/id/metropolitan-district-council/leeds,Leeds City Council,31/12/2018,City Development,Highways,Supplies and Services,Other Hired And Contracted Services,265,13/12/2018,1812-00657,0.00,355.00,R,Allied Exploration & Geotechnics Ltd,No
Http://opendatacommunities.org/id/metropolitan-district-council/leeds,Leeds City Council As Accountable Body,31/12/2018,Social Services Pooled Budgets,Jcs For People With Learning Disabilitie,Third Party Payments,Home Care,568,05/12/2018,1812-00658,0.00,321.57,R,Allied Healthcare,No
Http://opendatacommunities.org/id/metropolitan-district-council/leeds,Leeds City Council As Accountable Body,31/12/2018,Social Services Pooled Budgets,Jcs For People With Learning Disabilitie,Third Party Payments,Home Care,568,14/12/2018,1812-00659,0.00,15035.52,R,Allied Healthcare,No
Http://opendatacommunities.org/id/metropolitan-district-council/leeds,Leeds City Council,31/12/2018,Adults and Health,Services For Older People - 65 And Over,Third Party Payments,Home Care,568,18/12/2018,1812-00660,0.00,15201.66,R,Allied Healthcare,No
Http://opendatacommunities.org/id/metropolitan-district-council/leeds,Leeds City Council,31/12/2018,Adults and Health,Services For Older People Under 65 P/Dis,Third Party Payments,Home Care,568,18/12/2018,1812-00661,0.00,559.97,R,Allied Healthcare,No
Http://opendatacommunities.org/id/metropolitan-district-council/leeds,Leeds City Council,31/12/2018,Adults and Health,Services For Older People - 65 And Over,Third Party Payments,Home Care,568,18/12/2018,1812-00662,0.00,8091.62,R,Allied Healthcare,No
Http://opendatacommunities.org/id/metropolitan-district-council/leeds,Leeds City Council,31/12/2018,Adults and Health,Services For Older People Under 65 P/Dis,Third Party Payments,Home Care,568,18/12/2018,1812-00663,0.00,1563.40,R,Allied Healthcare,No
Http://opendatacommunities.org/id/metropolitan-district-council/leeds,Leeds City Council,31/12/2018,Adults and Health,Services For Older People - 65 And Over,Third Party Payments,Home Care,568,20/12/2018,1812-00664,0.00,241.86,R,Allied Healthcare,No
Http://opendatacommunities.org/id/metropolitan-district-council/leeds,Leeds City Council,31/12/2018,Adults and Health,Services For Older People - 65 And Over,Third Party Payments,Home Care,568,20/12/2018,1812-00665,0.00,1644.63,R,Allied Healthcare,No
Http://opendatacommunities.org/id/metropolitan-district-council/leeds,Leeds City Council,31/12/2018,Adults and Health,Services For Older People - 65 And Over,Third Party Payments,Home Care,568,27/12/2018,1812-00666,0.00,12454.08,R,Allied Healthcare,No
Http://opendatacommunities.org/id/metropolitan-district-council/leeds,Leeds City Council,31/12/2018,Adults and Health,Services For Older People Under 65 P/Dis,Third Party Payments,Home Care,568,27/12/2018,1812-00667,0.00,6832.36,R,Allied Healthcare,No
Http://opendatacommunities.org/id/metropolitan-district-council/leeds,Leeds City Council,31/12/2018,Adults and Health,Assessment And Care Management  ,Supplies and Services,Other Hired And Contracted Services,265,02/11/2018,1812-00668,0.00,10.00,R,Allpay *robin Hood Energy,Yes
Http://opendatacommunities.org/id/metropolitan-district-council/leeds,Leeds City Council,31/12/2018,Adults and Health,Assessment And Care Management  ,Supplies and Services,Other Hired And Contracted Services,265,02/11/2018,1812-00669,0.00,20.00,R,Allpay *robin Hood Energy,Yes
Http://opendatacommunities.org/id/metropolitan-district-council/leeds,Leeds City Council,31/12/2018,Children and Families,Social Care  ,Transfer Payments,Leaving Care Allowances,634,26/11/2018,1812-00670,0.00,60.00,R,Allpay *robin Hood Energy,Yes
Http://opendatacommunities.org/id/metropolitan-district-council/leeds,Leeds City Council,31/12/2018,Resources and Housing,Finance,Supplies and Services,Bank Charges,263,07/12/2018,1812-00671,0.00,5031.52,R,Allpay Limted,No
Http://opendatacommunities.org/id/metropolitan-district-council/leeds,Leeds City Council,31/12/2018,Resources and Housing,Finance,Supplies and Services,Bank Charges,263,07/12/2018,1812-00672,0.00,116.49,R,Allpay Limted,No
Http://opendatacommunities.org/id/metropolitan-district-council/leeds,Leeds City Council,31/12/2018,Resources and Housing,Finance,Supplies and Services,Bank Charges,263,31/12/2018,1812-00673,0.00,9943.75,R,Allpay Limted,No
Http://opendatacommunities.org/id/metropolitan-district-council/leeds,Leeds City Council,31/12/2018,Resources and Housing,Finance,Supplies and Services,Bank Charges,263,31/12/2018,1812-00674,0.00,4661.74,R,Allpay Limted,No
Http://opendatacommunities.org/id/metropolitan-district-council/leeds,Leeds City Council,31/12/2018,Resources and Housing,Finance,Supplies and Services,Bank Charges,263,31/12/2018,1812-00675,0.00,340.18,R,Allpay Limted,No
Http://opendatacommunities.org/id/metropolitan-district-council/leeds,Leeds City Council,31/12/2018,Strategic Landlord,Housing Management,Supplies and Services,Other Hired And Contracted Services,265,31/12/2018,1812-00676,0.00,4.45,R,Allpay Limted,No
Http://opendatacommunities.org/id/metropolitan-district-council/leeds,Leeds City Council,31/12/2018,Strategic Landlord,Housing Management,Supplies and Services,Other Hired And Contracted Services,265,31/12/2018,1812-00677,0.00,0.79,R,Allpay Limted,No
Http://opendatacommunities.org/id/metropolitan-district-council/leeds,Leeds City Council,31/12/2018,Strategic Landlord,Housing Management,Supplies and Services,Other Hired And Contracted Services,265,31/12/2018,1812-00678,0.00,260.99,R,Allpay Limted,No
Http://opendatacommunities.org/id/metropolitan-district-council/leeds,Leeds City Council,31/12/2018,Resources and Housing,Finance,Supplies and Services,Bank Charges,263,31/12/2018,1812-00679,0.00,115.33,R,Allpay Limted,No
Http://opendatacommunities.org/id/metropolitan-district-council/leeds,Leeds City Council,31/12/2018,Resources and Housing,Finance,Supplies and Services,Bank Charges,263,31/12/2018,1812-00680,0.00,3.03,R,Allpay Limted,No
Http://opendatacommunities.org/id/metropolitan-district-council/leeds,Leeds City Council,31/12/2018,Resources and Housing,Finance,Supplies and Services,Bank Charges,263,31/12/2018,1812-00681,0.00,2865.90,R,Allpay Limted,No
Http://opendatacommunities.org/id/metropolitan-district-council/leeds,Leeds City Council,31/12/2018,Resources and Housing,Democratic Services,Transport,Fuel (Non LCC Supplies),321,07/12/2018,1812-00682,0.00,46.48,R,Allstar Business Solutions Ltd,No
Http://opendatacommunities.org/id/metropolitan-district-council/leeds,Leeds City Council,31/12/2018,Communities and Environment,Parks and Countryside,Transport,Fuel (Non LCC Supplies),321,07/12/2018,1812-00683,0.00,940.68,R,Allstar Business Solutions Ltd,No
Http://opendatacommunities.org/id/metropolitan-district-council/leeds,Leeds City Council,31/12/2018,City Development,Highways,Transport,Fuel (Non LCC Supplies),321,07/12/2018,1812-00684,0.00,155.48,R,Allstar Business Solutions Ltd,No
Http://opendatacommunities.org/id/metropolitan-district-council/leeds,Leeds City Council,31/12/2018,Children and Families,Learning,Transport,Fuel (Non LCC Supplies),321,07/12/2018,1812-00685,0.00,1466.51,R,Allstar Business Solutions Ltd,No
Http://opendatacommunities.org/id/metropolitan-district-council/leeds,Leeds City Council,31/12/2018,Resources and Housing,Leeds Building Services,Transport,Fuel (Non LCC Supplies),321,13/12/2018,1812-00686,0.00,82.00,R,Allstar Business Solutions Ltd,No
Http://opendatacommunities.org/id/metropolitan-district-council/leeds,Leeds City Council,31/12/2018,Resources and Housing,Leeds Building Services,Transport,Fuel (Non LCC Supplies),321,28/12/2018,1812-00687,0.00,72.58,R,Allstar Business Solutions Ltd,No
Http://opendatacommunities.org/id/metropolitan-district-council/leeds,Leeds City Council,31/12/2018,City Development,Recreation,Supplies and Services,Other Hired And Contracted Services,265,27/12/2018,1812-00688,0.00,156.20,R,Alpha Awards Ltd,No
Http://opendatacommunities.org/id/metropolitan-district-council/leeds,Leeds City Council,31/12/2018,Adults and Health,Public Health  ,Supplies and Services,Publication And Promotion,267,02/11/2018,1812-00689,0.00,1497.00,R,Alpha Card,Yes
Http://opendatacommunities.org/id/metropolitan-district-council/leeds,Leeds City Council,31/12/2018,Children and Families,Social Care,Support Services,Legal Disbursements,411,04/12/2018,1812-00690,0.00,189.68,R,Alphabiolabs,No
Http://opendatacommunities.org/id/metropolitan-district-council/leeds,Leeds City Council,31/12/2018,Children and Families,Social Care,Support Services,Legal Disbursements,411,04/12/2018,1812-00691,0.00,190.00,R,Alphabiolabs,No
Http://opendatacommunities.org/id/metropolitan-district-council/leeds,Leeds City Council,31/12/2018,Children and Families,Social Care,Support Services,Legal Disbursements,411,04/12/2018,1812-00692,0.00,323.00,R,Alphabiolabs,No
Http://opendatacommunities.org/id/metropolitan-district-council/leeds,Leeds City Council,31/12/2018,Children and Families,Social Care,Support Services,Legal Disbursements,411,04/12/2018,1812-00693,0.00,162.25,R,Alphabiolabs,No
Http://opendatacommunities.org/id/metropolitan-district-council/leeds,Leeds City Council,31/12/2018,Children and Families,Social Care,Support Services,Legal Disbursements,411,07/12/2018,1812-00694,0.00,273.50,R,Alphabiolabs,No
Http://opendatacommunities.org/id/metropolitan-district-council/leeds,Leeds City Council,31/12/2018,Children and Families,Social Care,Support Services,Legal Disbursements,411,14/12/2018,1812-00695,0.00,293.50,R,Alphabiolabs,No
Http://opendatacommunities.org/id/metropolitan-district-council/leeds,Leeds City Council,31/12/2018,Children and Families,Social Care,Support Services,Legal Disbursements,411,14/12/2018,1812-00696,0.00,171.25,R,Alphabiolabs,No
Http://opendatacommunities.org/id/metropolitan-district-council/leeds,Leeds City Council,31/12/2018,Children and Families,Social Care,Support Services,Legal Disbursements,411,14/12/2018,1812-00697,0.00,539.00,R,Alphabiolabs,No
Http://opendatacommunities.org/id/metropolitan-district-council/leeds,Leeds City Council,31/12/2018,Children and Families,Social Care,Support Services,Legal Disbursements,411,14/12/2018,1812-00698,0.00,58.75,R,Alphabiolabs,No
Http://opendatacommunities.org/id/metropolitan-district-council/leeds,Leeds City Council,31/12/2018,Children and Families,Social Care,Support Services,Legal Disbursements,411,14/12/2018,1812-00699,0.00,163.00,R,Alphabiolabs,No
Http://opendatacommunities.org/id/metropolitan-district-council/leeds,Leeds City Council,31/12/2018,Children and Families,Social Care,Support Services,Legal Disbursements,411,14/12/2018,1812-00700,0.00,156.34,R,Alphabiolabs,No
Http://opendatacommunities.org/id/metropolitan-district-council/leeds,Leeds City Council,31/12/2018,Children and Families,Social Care,Support Services,Legal Disbursements,411,21/12/2018,1812-00701,0.00,141.67,R,Alphabiolabs,No
Http://opendatacommunities.org/id/metropolitan-district-council/leeds,Leeds City Council,31/12/2018,Children and Families,Social Care,Third Party Payments,Placement Support,550,21/12/2018,1812-00702,0.00,330.00,R,Alphabiolabs,No
Http://opendatacommunities.org/id/metropolitan-district-council/leeds,Leeds City Council,31/12/2018,Children and Families,Social Care,Third Party Payments,Section 17,551,28/12/2018,1812-00703,0.00,320.00,R,Alphabiolabs,No
Http://opendatacommunities.org/id/metropolitan-district-council/leeds,Leeds City Council,31/12/2018,Resources and Housing,Strategy and Improvement,Supplies and Services,Memberships,226,19/12/2018,1812-00704,0.00,855.00,R,Alps (Alkemygold Ltd),No
Http://opendatacommunities.org/id/metropolitan-district-council/leeds,Leeds City Council,31/12/2018,Communities and Environment,Waste Management,Supplies and Services,Other Hired And Contracted Services,265,18/12/2018,1812-00705,0.00,100.00,R,Als Life Sciences Limited,No
Http://opendatacommunities.org/id/metropolitan-district-council/leeds,Leeds City Council,31/12/2018,Resources and Housing,Corporate Property Management,Premises,Maintenance Of Buildings,101,18/12/2018,1812-00706,0.00,206.00,R,Alternative Drainage Company Ltd,No
Http://opendatacommunities.org/id/metropolitan-district-council/leeds,Leeds City Council,31/12/2018,Strategic Accounts,Miscellaneous,Supplies and Services,Non-Recurring Grants,227,17/12/2018,1812-00707,0.00,50.00,R,Alzheimers Research Uk,No
Http://opendatacommunities.org/id/metropolitan-district-council/leeds,Leeds City Council,31/12/2018,Children and Families,Social Care,Third Party Payments,Services Rendered By Other Organisations,511,21/12/2018,1812-00708,0.00,334.68,R,REDACTED PERSONAL DATA,No
Http://opendatacommunities.org/id/metropolitan-district-council/leeds,Leeds City Council,31/12/2018,Children and Families,Social Care,Third Party Payments,Services Rendered By Other Organisations,511,21/12/2018,1812-00709,0.00,892.50,R,REDACTED PERSONAL DATA,No
Http://opendatacommunities.org/id/metropolitan-district-council/leeds,Leeds City Council,31/12/2018,Adults and Health,Services For Adults Under 65 Mental/Dis,Support Services,Legal Disbursements,411,24/12/2018,1812-00710,0.00,1293.40,R,Amanda Murphy Limited,No
Http://opendatacommunities.org/id/metropolitan-district-council/leeds,Leeds City Council,31/12/2018,City Development,Libraries  Arts & Heritage,Supplies and Services,Operational Materials,205,07/12/2018,1812-00711,0.00,18.00,R,REDACTED PERSONAL DATA,No
Http://opendatacommunities.org/id/metropolitan-district-council/leeds,Leeds City Council,31/12/2018,City Development,Libraries  Arts & Heritage,Supplies and Services,Other Hired And Contracted Services,265,07/12/2018,1812-00712,0.00,150.00,R,REDACTED PERSONAL DATA,No
Http://opendatacommunities.org/id/metropolitan-district-council/leeds,Leeds City Council,31/12/2018,Children and Families,Social Care,Third Party Payments,Services Rendered By Other Organisations,511,19/12/2018,1812-00713,0.00,535.50,R,REDACTED PERSONAL DATA,No
Http://opendatacommunities.org/id/metropolitan-district-council/leeds,Leeds City Council,31/12/2018,Resources and Housing,Shared Services,Supplies and Services,Other Hired And Contracted Services,265,06/12/2018,1812-00714,0.00,61.65,R,Amari Plastics Plc,No
Http://opendatacommunities.org/id/metropolitan-district-council/leeds,Leeds City Council,31/12/2018,Resources and Housing,Shared Services,Supplies and Services,Operational Materials,205,14/12/2018,1812-00715,0.00,432.00,R,Amari Plastics Plc,No
Http://opendatacommunities.org/id/metropolitan-district-council/leeds,Leeds City Council,31/12/2018,Resources and Housing,Shared Services,Supplies and Services,Operational Materials,205,14/12/2018,1812-00716,0.00,481.20,R,Amari Plastics Plc,No
Http://opendatacommunities.org/id/metropolitan-district-council/leeds,Leeds City Council,31/12/2018,Resources and Housing,Shared Services,Supplies and Services,Operational Materials,205,14/12/2018,1812-00717,0.00,87.84,R,Amari Plastics Plc,No
Http://opendatacommunities.org/id/metropolitan-district-council/leeds,Leeds City Council,31/12/2018,Resources and Housing,Leeds Building Services,Supplies and Services,Operational Materials,205,20/12/2018,1812-00718,0.00,58.00,R,Amari Plastics Plc,No
Http://opendatacommunities.org/id/metropolitan-district-council/leeds,Leeds City Council,31/12/2018,Resources and Housing,Shared Services,Supplies and Services,Operational Materials,205,21/12/2018,1812-00719,0.00,123.92,R,Amari Plastics Plc,No
Http://opendatacommunities.org/id/metropolitan-district-council/leeds,Leeds City Council,31/12/2018,Resources and Housing,Shared Services,Supplies and Services,Operational Materials,205,28/12/2018,1812-00720,0.00,34.28,R,Amari Plastics Plc,No
Http://opendatacommunities.org/id/metropolitan-district-council/leeds,Leeds City Council,31/12/2018,Children and Families,Social Care,Third Party Payments,Services Rendered By Other Organisations,511,19/12/2018,1812-00721,0.00,3978.00,R,Amazing Grace Early Years Childcare,No
Http://opendatacommunities.org/id/metropolitan-district-council/leeds,Leeds City Council,31/12/2018,Children and Families,Social Care,Third Party Payments,Services Rendered By Other Organisations,511,21/12/2018,1812-00722,0.00,7140.00,R,Amazing Grace Early Years Childcare,No
Http://opendatacommunities.org/id/metropolitan-district-council/leeds,Leeds City Council,31/12/2018,Children and Families,Social Care,Third Party Payments,Services Rendered By Other Organisations,511,21/12/2018,1812-00723,0.00,111.30,R,Amazing Grace Early Years Childcare,No
Http://opendatacommunities.org/id/metropolitan-district-council/leeds,Leeds City Council,31/12/2018,City Development,Recreation,Supplies and Services,Operational Furniture And Equipment,203,07/12/2018,1812-00724,0.00,78.31,R,Amazon Leisure Uk Ltd,No
Http://opendatacommunities.org/id/metropolitan-district-council/leeds,Leeds City Council,31/12/2018,City Development,Recreation,Supplies and Services,Operational Furniture And Equipment,203,13/12/2018,1812-00725,0.00,1038.75,R,Amazon Leisure Uk Ltd,No
Http://opendatacommunities.org/id/metropolitan-district-council/leeds,Leeds City Council,31/12/2018,City Development,Recreation,Supplies and Services,Operational Furniture And Equipment,203,13/12/2018,1812-00726,0.00,112.65,R,Amazon Leisure Uk Ltd,No
Http://opendatacommunities.org/id/metropolitan-district-council/leeds,Leeds City Council,31/12/2018,City Development,Recreation,Supplies and Services,Operational Furniture And Equipment,203,13/12/2018,1812-00727,0.00,105.00,R,Amazon Leisure Uk Ltd,No
Http://opendatacommunities.org/id/metropolitan-district-council/leeds,Leeds City Council,31/12/2018,City Development,Recreation,Supplies and Services,Operational Furniture And Equipment,203,14/12/2018,1812-00728,0.00,146.40,R,Amazon Leisure Uk Ltd,No
Http://opendatacommunities.org/id/metropolitan-district-council/leeds,Leeds City Council,31/12/2018,City Development,Recreation,Supplies and Services,Operational Furniture And Equipment,203,19/12/2018,1812-00729,0.00,1603.05,R,Amazon Leisure Uk Ltd,No
Http://opendatacommunities.org/id/metropolitan-district-council/leeds,Leeds City Council,31/12/2018,City Development,Recreation,Supplies and Services,Operational Furniture And Equipment,203,20/12/2018,1812-00730,0.00,1114.18,R,Amazon Leisure Uk Ltd,No
Http://opendatacommunities.org/id/metropolitan-district-council/leeds,Leeds City Council,31/12/2018,City Development,Recreation,Supplies and Services,Operational Furniture And Equipment,203,20/12/2018,1812-00731,0.00,342.67,R,Amazon Leisure Uk Ltd,No
Http://opendatacommunities.org/id/metropolitan-district-council/leeds,Leeds City Council,31/12/2018,City Development,Recreation,Supplies and Services,Operational Furniture And Equipment,203,21/12/2018,1812-00732,0.00,105.00,R,Amazon Leisure Uk Ltd,No
Http://opendatacommunities.org/id/metropolitan-district-council/leeds,Leeds City Council,31/12/2018,City Development,Recreation,Supplies and Services,Operational Furniture And Equipment,203,21/12/2018,1812-00733,0.00,112.65,R,Amazon Leisure Uk Ltd,No
Http://opendatacommunities.org/id/metropolitan-district-council/leeds,Leeds City Council,31/12/2018,Communities and Environment,Parks And Countryside  ,Supplies and Services,Operational Materials,205,15/11/2018,1812-00734,0.00,-7.99,R,Amazon Prime Amzn.Co.Uk/P,Yes
Http://opendatacommunities.org/id/metropolitan-district-council/leeds,Leeds City Council,31/12/2018,Resources and Housing,Commercial Services  ,Supplies and Services,Operational Materials,205,27/11/2018,1812-00735,0.00,7.99,R,Amazon Prime*m048b6od4 Am,Yes
Http://opendatacommunities.org/id/metropolitan-district-council/leeds,Leeds City Council,31/12/2018,Children and Families,Social Care  ,Supplies and Services,Teaching Materials,202,24/11/2018,1812-00736,0.00,7.99,R,Amazon Prime*m84u779g4,Yes
Http://opendatacommunities.org/id/metropolitan-district-council/leeds,Leeds City Council,31/12/2018,City Development,Libraries  Arts & Heritage  ,Supplies and Services,Operational Materials,205,14/11/2018,1812-00737,0.00,7.99,R,Amazon Prime*m84yb6tl4,Yes
Http://opendatacommunities.org/id/metropolitan-district-council/leeds,Leeds City Council,31/12/2018,Communities and Environment,Parks And Countryside  ,Supplies and Services,Office Consumables,210,19/11/2018,1812-00738,0.00,7.99,R,Amazon Prime*m85lq05o4,Yes
Http://opendatacommunities.org/id/metropolitan-district-council/leeds,Leeds City Council,31/12/2018,Communities and Environment,Parks And Countryside  ,Supplies and Services,Operational Materials,205,10/11/2018,1812-00739,0.00,7.99,R,Amazon Prime*m86vn8f34 Am,Yes
Http://opendatacommunities.org/id/metropolitan-district-council/leeds,Leeds City Council,31/12/2018,City Development,Highways  ,Supplies and Services,Operational Furniture And Equipment,203,24/11/2018,1812-00740,0.00,6.66,R,Amazon Prime*m86wn59z4,Yes
Http://opendatacommunities.org/id/metropolitan-district-council/leeds,Leeds City Council,31/12/2018,City Development,Libraries  Arts & Heritage  ,Supplies and Services,Operational Materials,205,09/11/2018,1812-00741,0.00,7.99,R,Amazon Prime*m87cl6oz4,Yes
Http://opendatacommunities.org/id/metropolitan-district-council/leeds,Leeds City Council,31/12/2018,Children and Families,Social Care  ,Transfer Payments,Leaving Care Allowances,634,21/11/2018,1812-00742,0.00,7.99,R,Amazon Prime*m88bu66u4,Yes
Http://opendatacommunities.org/id/metropolitan-district-council/leeds,Leeds City Council,31/12/2018,City Development,Libraries  Arts & Heritage  ,Supplies and Services,Office Consumables,210,14/11/2018,1812-00743,0.00,-5.99,R,Amazon.Co.Uk Amazon.Co.Uk,Yes
Http://opendatacommunities.org/id/metropolitan-district-council/leeds,Leeds City Council,31/12/2018,Communities and Environment,Communities  ,Supplies and Services,Office Consumables,210,26/11/2018,1812-00744,0.00,79.72,R,Amazon.Co.Uk*m00ha9c44 Am,Yes
Http://opendatacommunities.org/id/metropolitan-district-council/leeds,Leeds City Council,31/12/2018,Resources and Housing,Commercial Services  ,Transport,Miscellaneous Transport Related Costs,324,28/11/2018,1812-00745,0.00,17.48,R,Amazon.Co.Uk*m015f1zk4 Am,Yes
Http://opendatacommunities.org/id/metropolitan-district-council/leeds,Leeds City Council,31/12/2018,Communities and Environment,Benefits  Wlefare And Poverty  ,Supplies and Services,Other Hired And Contracted Services,265,27/11/2018,1812-00746,0.00,7.60,R,Amazon.Co.Uk*m01to0fi4,Yes
Http://opendatacommunities.org/id/metropolitan-district-council/leeds,Leeds City Council,31/12/2018,Children and Families,Social Care  ,Supplies and Services,Teaching Furniture & Equipment,207,26/11/2018,1812-00747,0.00,14.25,R,Amazon.Co.Uk*m025s3cd4 Am,Yes
Http://opendatacommunities.org/id/metropolitan-district-council/leeds,Leeds City Council,31/12/2018,City Development,Employment & Skills  ,Supplies and Services,Operational Materials,205,28/11/2018,1812-00748,0.00,10.61,R,Amazon.Co.Uk*m02dw0lc4 Am,Yes
Http://opendatacommunities.org/id/metropolitan-district-council/leeds,Leeds City Council,31/12/2018,Children and Families,Social Care  ,Supplies and Services,Teaching Furniture & Equipment,207,27/11/2018,1812-00749,0.00,10.11,R,Amazon.Co.Uk*m02n35o04 Am,Yes
Http://opendatacommunities.org/id/metropolitan-district-council/leeds,Leeds City Council,31/12/2018,Children and Families,Social Care  ,Supplies and Services,Teaching Materials,202,28/11/2018,1812-00750,0.00,10.41,R,Amazon.Co.Uk*m03ma9z74,Yes
Http://opendatacommunities.org/id/metropolitan-district-council/leeds,Leeds City Council,31/12/2018,Children and Families,Social Care  ,Supplies and Services,General Amenity For Clients/Residents,285,28/11/2018,1812-00751,0.00,6.57,R,Amazon.Co.Uk*m03pw8zb4 Am,Yes
Http://opendatacommunities.org/id/metropolitan-district-council/leeds,Leeds City Council,31/12/2018,City Development,Libraries  Arts & Heritage  ,Supplies and Services,Operational Materials,205,26/11/2018,1812-00752,0.00,110.00,R,Amazon.Co.Uk*m06uu6c14 Am,Yes
Http://opendatacommunities.org/id/metropolitan-district-council/leeds,Leeds City Council,31/12/2018,Communities and Environment,Customer Access  ,Supplies and Services,Computer Software & Equipment,214,28/11/2018,1812-00753,0.00,68.95,R,Amazon.Co.Uk*m075r7ni4 Am,Yes
Http://opendatacommunities.org/id/metropolitan-district-council/leeds,Leeds City Council,31/12/2018,Children and Families,Social Care  ,Supplies and Services,Teaching Furniture & Equipment,207,27/11/2018,1812-00754,0.00,68.12,R,Amazon.Co.Uk*m07d214s4 Am,Yes
Http://opendatacommunities.org/id/metropolitan-district-council/leeds,Leeds City Council,31/12/2018,Adults and Health,Public Health  ,Supplies and Services,Office Consumables,210,28/11/2018,1812-00755,0.00,4.59,R,Amazon.Co.Uk*m07sl2434 Am,Yes
Http://opendatacommunities.org/id/metropolitan-district-council/leeds,Leeds City Council,31/12/2018,Children and Families,Social Care  ,Supplies and Services,Crockery  Cutlery & Utensils,221,28/11/2018,1812-00756,0.00,36.49,R,Amazon.Co.Uk*m08sb34n4 Am,Yes
Http://opendatacommunities.org/id/metropolitan-district-council/leeds,Leeds City Council,31/12/2018,Communities and Environment,Customer Access  ,Supplies and Services,Office Furniture & Equipment,201,27/11/2018,1812-00757,0.00,3.43,R,Amazon.Co.Uk*m09jh2o14 Am,Yes
Http://opendatacommunities.org/id/metropolitan-district-council/leeds,Leeds City Council,31/12/2018,Resources and Housing,Finance  ,Supplies and Services,Office Furniture & Equipment,201,29/11/2018,1812-00758,0.00,5.43,R,Amazon.Co.Uk*m09of03c4 Am,Yes
Http://opendatacommunities.org/id/metropolitan-district-council/leeds,Leeds City Council,31/12/2018,Children and Families,Social Care  ,Supplies and Services,Office Consumables,210,09/11/2018,1812-00759,0.00,17.23,R,Amazon.Co.Uk*m80ak7o04 Am,Yes
Http://opendatacommunities.org/id/metropolitan-district-council/leeds,Leeds City Council,31/12/2018,Children and Families,Social Care  ,Transfer Payments,Leaving Care Allowances,634,13/11/2018,1812-00760,0.00,27.54,R,Amazon.Co.Uk*m80d21tf4 Am,Yes
Http://opendatacommunities.org/id/metropolitan-district-council/leeds,Leeds City Council,31/12/2018,Children and Families,Social Care  ,Supplies and Services,Office Consumables,210,09/11/2018,1812-00761,0.00,17.23,R,Amazon.Co.Uk*m80dv5od4 Am,Yes
Http://opendatacommunities.org/id/metropolitan-district-council/leeds,Leeds City Council,31/12/2018,Communities and Environment,Customer Access  ,Supplies and Services,Computer Software & Equipment,214,15/11/2018,1812-00762,0.00,177.60,R,Amazon.Co.Uk*m80hb40v4 Am,Yes
Http://opendatacommunities.org/id/metropolitan-district-council/leeds,Leeds City Council,31/12/2018,City Development,Highways  ,Supplies and Services,Office Consumables,210,13/11/2018,1812-00763,0.00,2.62,R,Amazon.Co.Uk*m80mh4jb4 Am,Yes
Http://opendatacommunities.org/id/metropolitan-district-council/leeds,Leeds City Council,31/12/2018,Children and Families,Social Care  ,Supplies and Services,Teaching Materials,202,11/11/2018,1812-00764,0.00,30.66,R,Amazon.Co.Uk*m80nf24m4 Am,Yes
Http://opendatacommunities.org/id/metropolitan-district-council/leeds,Leeds City Council,31/12/2018,Adults and Health,Social Services Support Services  ,Supplies and Services,Operational Furniture And Equipment,203,13/11/2018,1812-00765,0.00,20.40,R,Amazon.Co.Uk*m80yf8jk4 Am,Yes
Http://opendatacommunities.org/id/metropolitan-district-council/leeds,Leeds City Council,31/12/2018,Children and Families,Social Care  ,Supplies and Services,Teaching Furniture & Equipment,207,25/11/2018,1812-00766,0.00,55.73,R,Amazon.Co.Uk*m811l9ic4 Am,Yes
Http://opendatacommunities.org/id/metropolitan-district-council/leeds,Leeds City Council,31/12/2018,Communities and Environment,Parks And Countryside  ,Supplies and Services,Office Consumables,210,22/11/2018,1812-00767,0.00,36.36,R,Amazon.Co.Uk*m81249dd4 Am,Yes
